Body Name,Date Paid,Transaction Number,Amount,Supplier Name,Supplier Type,Expense Area,Cost Centre Description,Expense Type
Cambridgeshire County Council,01-Jun-16,20817679-13420692,-80635.22,Ameycespa Wm (East )Limited,Trade Supplier,Assets & Commissioning,Waste PFI,Landfill Tax
Cambridgeshire County Council,14-Jun-16,20873816-13482719,-36508.48,Civica Uk Ltd,Trade Supplier,LGSS,3rd Party Contracts,Computer hardware - maintenance
Cambridgeshire County Council,16-Jun-16,20904700-13493267,-36508.48,Civica Uk Ltd,Trade Supplier,LGSS,3rd Party Contracts,Computer hardware - maintenance
Cambridgeshire County Council,02-Jun-16,20850033-13434739,-29576.4,Ameycespa Wm (East )Limited,Trade Supplier,Assets & Commissioning,Bluntisham HWRC,WRA Licenses
Cambridgeshire County Council,27-Jun-16,20966412-13554089,-21073.05,Guidant Group,Trade Supplier,4 - Operations - Providers services,Jasmine House,Pay - Agency Staff
Cambridgeshire County Council,27-Jun-16,20574624-13553996,-13076,The Edmund Trust,Care Establishment,2 - Commissioning - Older people Pool,Older People - City & South,Day and Domicillary Care Independent Sector
Cambridgeshire County Council,02-Jun-16,20751696-13431070,-7856.5,Balfour Beatty Living Places Limited,Company,Traffic Management & Road Safety,Signals Capital,Capital WIP - roads  -  Construction cost
Cambridgeshire County Council,30-Jun-16,20964320-13570997,-6590.1,Ameycespa (East) Ltd,Trade Supplier,LGSS Managed,Building Maintenance,Refuse collection charge
Cambridgeshire County Council,24-Jun-16,20964454-13551215,-6490,S Anjum T/A A Star Cars,Trade Supplier,S&C,H to S Transport - HRC,Home to School - Contract
Cambridgeshire County Council,01-Jun-16,20777743-13420608,-4840,South Cambridgeshire District Council,Other Public Bodies,SMI's,LMS - Rates Secondary,Business rates
Cambridgeshire County Council,24-Jun-16,20966301-13551181,-3671.71,Hopwells Ltd,Trade Supplier,S&C,Catering - Hopwells Payments,School Meals
Cambridgeshire County Council,02-Jun-16,20846453-13433117,-3509.69,Hesley Care Limited,Care Establishment,2 - Operations - Learning Disability,LDP Hunts special needs,Residential Independent Sector
Cambridgeshire County Council,02-Jun-16,20846454-13433118,-3509.69,Hesley Care Limited,Care Establishment,2 - Operations - Learning Disability,LDP Hunts special needs,Residential Independent Sector
Cambridgeshire County Council,02-Jun-16,20846458-13433119,-3509.69,Hesley Care Limited,Care Establishment,2 - Operations - Learning Disability,LDP Hunts special needs,Residential Independent Sector
Cambridgeshire County Council,02-Jun-16,20846464-13433103,-3509.69,Hesley Care Limited,Care Establishment,2 - Operations - Learning Disability,LDP Hunts special needs,Residential Independent Sector
Cambridgeshire County Council,02-Jun-16,20846465-13433104,-3509.69,Hesley Care Limited,Care Establishment,2 - Operations - Learning Disability,LDP Hunts special needs,Residential Independent Sector
Cambridgeshire County Council,02-Jun-16,20846466-13433105,-3509.69,Hesley Care Limited,Care Establishment,2 - Operations - Learning Disability,LDP Hunts special needs,Residential Independent Sector
Cambridgeshire County Council,02-Jun-16,20846468-13433106,-3509.69,Hesley Care Limited,Care Establishment,2 - Operations - Learning Disability,LDP Hunts special needs,Residential Independent Sector
Cambridgeshire County Council,02-Jun-16,20846472-13433110,-3509.69,Hesley Care Limited,Care Establishment,2 - Operations - Learning Disability,LDP Hunts special needs,Residential Independent Sector
Cambridgeshire County Council,02-Jun-16,20846473-13433111,-3509.69,Hesley Care Limited,Care Establishment,2 - Operations - Learning Disability,LDP Hunts special needs,Residential Independent Sector
Cambridgeshire County Council,02-Jun-16,20846476-13433113,-3509.69,Hesley Care Limited,Care Establishment,2 - Operations - Learning Disability,LDP Hunts special needs,Residential Independent Sector
Cambridgeshire County Council,02-Jun-16,20847927-13433128,-3509.69,Hesley Care Limited,Care Establishment,2 - Operations - Learning Disability,LDP Hunts special needs,Residential Independent Sector
Cambridgeshire County Council,02-Jun-16,20847928-13433129,-3509.69,Hesley Care Limited,Care Establishment,2 - Operations - Learning Disability,LDP Hunts special needs,Residential Independent Sector
Cambridgeshire County Council,02-Jun-16,20847930-13433130,-3509.69,Hesley Care Limited,Care Establishment,2 - Operations - Learning Disability,LDP Hunts special needs,Residential Independent Sector
Cambridgeshire County Council,02-Jun-16,20847932-13433132,-3509.69,Hesley Care Limited,Care Establishment,2 - Operations - Learning Disability,LDP Hunts special needs,Residential Independent Sector
Cambridgeshire County Council,02-Jun-16,20847935-13433135,-3509.69,Hesley Care Limited,Care Establishment,2 - Operations - Learning Disability,LDP Hunts special needs,Residential Independent Sector
Cambridgeshire County Council,02-Jun-16,20847939-13433137,-3509.69,Hesley Care Limited,Care Establishment,2 - Operations - Learning Disability,LDP Hunts special needs,Residential Independent Sector
Cambridgeshire County Council,02-Jun-16,20847941-13433139,-3509.69,Hesley Care Limited,Care Establishment,2 - Operations - Learning Disability,LDP Hunts special needs,Residential Independent Sector
Cambridgeshire County Council,02-Jun-16,20847943-13433140,-3509.69,Hesley Care Limited,Care Establishment,2 - Operations - Learning Disability,LDP Hunts special needs,Residential Independent Sector
Cambridgeshire County Council,02-Jun-16,20847946-13433141,-3509.69,Hesley Care Limited,Care Establishment,2 - Operations - Learning Disability,LDP Hunts special needs,Residential Independent Sector
Cambridgeshire County Council,02-Jun-16,20847948-13433142,-3509.69,Hesley Care Limited,Care Establishment,2 - Operations - Learning Disability,LDP Hunts special needs,Residential Independent Sector
Cambridgeshire County Council,02-Jun-16,20847959-13433149,-3509.69,Hesley Care Limited,Care Establishment,2 - Operations - Learning Disability,LDP Hunts special needs,Residential Independent Sector
Cambridgeshire County Council,02-Jun-16,20847960-13433150,-3509.69,Hesley Care Limited,Care Establishment,2 - Operations - Learning Disability,LDP Hunts special needs,Residential Independent Sector
Cambridgeshire County Council,16-Jun-16,20879847-13492522,-3425.3,Graham Facilities Management Ltd,Company,LGSS Managed,"Waterlees Adventure Playground	",Building Maintenance - Structural Maintenance - Unplanned
Cambridgeshire County Council,16-Jun-16,20910829-13492842,-2580.3,Social Care Solutions Ltd,Care Establishment,2 - Operations - Learning Disability,LDP South Cambs Locality - Care,Supported Living
Cambridgeshire County Council,16-Jun-16,20910832-13492845,-2580.3,Social Care Solutions Ltd,Care Establishment,2 - Operations - Learning Disability,LDP South Cambs Locality - Care,Supported Living
Cambridgeshire County Council,16-Jun-16,20910837-13492850,-2580.3,Social Care Solutions Ltd,Care Establishment,2 - Operations - Learning Disability,LDP South Cambs Locality - Care,Supported Living
Cambridgeshire County Council,16-Jun-16,20910843-13492856,-2580.3,Social Care Solutions Ltd,Care Establishment,2 - Operations - Learning Disability,LDP South Cambs Locality - Care,Supported Living
Cambridgeshire County Council,16-Jun-16,20910849-13492862,-2580.3,Social Care Solutions Ltd,Care Establishment,2 - Operations - Learning Disability,LDP South Cambs Locality - Care,Supported Living
Cambridgeshire County Council,16-Jun-16,20911798-13492803,-2580.3,Social Care Solutions Ltd,Care Establishment,2 - Operations - Learning Disability,LDP South Cambs Locality - Care,Supported Living
Cambridgeshire County Council,16-Jun-16,20911815-13492819,-2580.3,Social Care Solutions Ltd,Care Establishment,2 - Operations - Learning Disability,LDP South Cambs Locality - Care,Supported Living
Cambridgeshire County Council,16-Jun-16,20911825-13492829,-2580.3,Social Care Solutions Ltd,Care Establishment,2 - Operations - Learning Disability,LDP South Cambs Locality - Care,Supported Living
Cambridgeshire County Council,16-Jun-16,20911826-13492830,-2580.3,Social Care Solutions Ltd,Care Establishment,2 - Operations - Learning Disability,LDP South Cambs Locality - Care,Supported Living
Cambridgeshire County Council,16-Jun-16,20911830-13492834,-2580.3,Social Care Solutions Ltd,Care Establishment,2 - Operations - Learning Disability,LDP South Cambs Locality - Care,Supported Living
Cambridgeshire County Council,16-Jun-16,20911832-13492836,-2580.3,Social Care Solutions Ltd,Care Establishment,2 - Operations - Learning Disability,LDP South Cambs Locality - Care,Supported Living
Cambridgeshire County Council,16-Jun-16,20911833-13492837,-2580.3,Social Care Solutions Ltd,Care Establishment,2 - Operations - Learning Disability,LDP South Cambs Locality - Care,Supported Living
Cambridgeshire County Council,16-Jun-16,20911836-13492840,-2580.3,Social Care Solutions Ltd,Care Establishment,2 - Operations - Learning Disability,LDP South Cambs Locality - Care,Supported Living
Cambridgeshire County Council,28-Jun-16,20978560-13562635,-2538.94,Bill Ibbotts Catering Equipment Services Ltd,Trade Supplier,S&C,"Catering - Property, Equipment & Maintenance",Purchase of canteen equipment
Cambridgeshire County Council,02-Jun-16,20719601-13430067,-2237.16,Chs Group,Care Establishment,2 - Commissioning - Older people Pool,Older People - City & South,Residential Independent Sector
Cambridgeshire County Council,16-Jun-16,20911816-13492820,-2211.69,Social Care Solutions Ltd,Care Establishment,2 - Operations - Learning Disability,LDP South Cambs Locality - Care,Supported Living
Cambridgeshire County Council,10-Jun-16,20775629-13475118,-2100.38,A10 Taxis,Trade Supplier,S&C,Home to School Transport - Special,Home to School - Outcounty
Cambridgeshire County Council,09-Jun-16,20846813-13467460,-1992.45,Affinity Trust,Care Establishment,2 - Operations - Learning Disability,LDP South Cambs Locality - Care,Supported Living
Cambridgeshire County Council,09-Jun-16,20846815-13467462,-1992.45,Affinity Trust,Care Establishment,2 - Operations - Learning Disability,LDP South Cambs Locality - Care,Supported Living
Cambridgeshire County Council,09-Jun-16,20846816-13467463,-1992.45,Affinity Trust,Care Establishment,2 - Operations - Learning Disability,LDP South Cambs Locality - Care,Supported Living
Cambridgeshire County Council,09-Jun-16,20846817-13467464,-1992.45,Affinity Trust,Care Establishment,2 - Operations - Learning Disability,LDP South Cambs Locality - Care,Supported Living
Cambridgeshire County Council,09-Jun-16,20846819-13467466,-1992.45,Affinity Trust,Care Establishment,2 - Operations - Learning Disability,LDP South Cambs Locality - Care,Supported Living
Cambridgeshire County Council,09-Jun-16,20846820-13467467,-1992.45,Affinity Trust,Care Establishment,2 - Operations - Learning Disability,LDP South Cambs Locality - Care,Supported Living
Cambridgeshire County Council,09-Jun-16,20846821-13467468,-1992.45,Affinity Trust,Care Establishment,2 - Operations - Learning Disability,LDP South Cambs Locality - Care,Supported Living
Cambridgeshire County Council,09-Jun-16,20846822-13467469,-1992.45,Affinity Trust,Care Establishment,2 - Operations - Learning Disability,LDP South Cambs Locality - Care,Supported Living
Cambridgeshire County Council,09-Jun-16,20846823-13467470,-1992.45,Affinity Trust,Care Establishment,2 - Operations - Learning Disability,LDP South Cambs Locality - Care,Supported Living
Cambridgeshire County Council,09-Jun-16,20846824-13467471,-1992.45,Affinity Trust,Care Establishment,2 - Operations - Learning Disability,LDP South Cambs Locality - Care,Supported Living
Cambridgeshire County Council,09-Jun-16,20846825-13467472,-1992.45,Affinity Trust,Care Establishment,2 - Operations - Learning Disability,LDP South Cambs Locality - Care,Supported Living
Cambridgeshire County Council,09-Jun-16,20846827-13467474,-1992.45,Affinity Trust,Care Establishment,2 - Operations - Learning Disability,LDP South Cambs Locality - Care,Supported Living
Cambridgeshire County Council,09-Jun-16,20846828-13467475,-1992.45,Affinity Trust,Care Establishment,2 - Operations - Learning Disability,LDP South Cambs Locality - Care,Supported Living
Cambridgeshire County Council,27-Jun-16,20529620-13553952,-1971.42,The Benjamin Trust Foundation,Charity,S&C,Placements - Social Care,Agency Placements - Out County
Cambridgeshire County Council,16-Jun-16,20911794-13492799,-1843.07,Social Care Solutions Ltd,Care Establishment,2 - Operations - Learning Disability,LDP South Cambs Locality - Care,Supported Living
Cambridgeshire County Council,09-Jun-16,20846814-13467461,-1707.81,Affinity Trust,Care Establishment,2 - Operations - Learning Disability,LDP South Cambs Locality - Care,Supported Living
Cambridgeshire County Council,20-Jun-16,20918157-13505953,-1575,Sawston Village College,Education,LGSS Managed,Sawston Locality Office,Rents and Leases
Cambridgeshire County Council,10-Jun-16,20777649-13474964,-1539,Archway Care Ltd (Milton Keynes),Care Establishment,S&C,Placements - Social Care,Agency Placements - Out County
Cambridgeshire County Council,01-Jun-16,20817688-13421030,-1498.02,Rheola Healthcare,Care Establishment,4 - Commissioning - Mental Health & Supporting People,OP Blocks - Care Placements,Respite Independent Sector
Cambridgeshire County Council,09-Jun-16,20846818-13467465,-1423.18,Affinity Trust,Care Establishment,2 - Operations - Learning Disability,LDP South Cambs Locality - Care,Supported Living
Cambridgeshire County Council,23-Jun-16,20656602-13533394,-1411.88,Thera East Anglia,Trust (Other),2 - Operations - Learning Disability,LDP E Cambs Locality - Care,Supported Living
Cambridgeshire County Council,23-Jun-16,20656603-13533395,-1411.88,Thera East Anglia,Trust (Other),2 - Operations - Learning Disability,LDP E Cambs Locality - Care,Supported Living
Cambridgeshire County Council,23-Jun-16,20656615-13533399,-1411.88,Thera East Anglia,Trust (Other),2 - Operations - Learning Disability,LDP E Cambs Locality - Care,Supported Living
Cambridgeshire County Council,23-Jun-16,20656624-13533402,-1411.88,Thera East Anglia,Trust (Other),2 - Operations - Learning Disability,LDP E Cambs Locality - Care,Supported Living
Cambridgeshire County Council,23-Jun-16,20881596-13539636,-1395.36,Mencap,Care Establishment,2 - Operations - Learning Disability,LDP Huntingdonshire Locality - Care,Day and Domicillary Care Independent Sector
Cambridgeshire County Council,10-Jun-16,20685471-13475121,-1359.07,A10 Taxis,Trade Supplier,S&C,Home to School Transport - Special,Home to School - Outcounty
Cambridgeshire County Council,13-Jun-16,20669822-13478215,-1353.24,The Riverside Group Ltd,Care Establishment,S&C,Placements - Social Care,Outreach
Cambridgeshire County Council,22-Jun-16,20935503-13518968,-1327.81,A J Speechley Son & Partner,Partnership,LGSS Managed,County Farms,County Farms Maintenance Planned
Cambridgeshire County Council,20-Jun-16,20904673-13505903,-1261.15,Nexus Fostering Ltd,Care Establishment,S&C,Placements - Social Care,Agency Placements - In Cambs
Cambridgeshire County Council,07-Jun-16,20860542-13456997,-1125.6,Carter Jonas Llp,Trade Supplier,LGSS Managed,County Farms,Other Hired Contract Services
Cambridgeshire County Council,13-Jun-16,20880804-13478008,-1046.15,Graham Facilities Management Ltd,Company,LGSS Managed,Burwell House,Building Maintenance - Structural Maintenance - Unplanned
Cambridgeshire County Council,23-Jun-16,20959848-13533176,-1021.7,Thera East Anglia,Trust (Other),2 - Operations - Learning Disability,LDP South Cambs Locality - Care,Supported Living
Cambridgeshire County Council,23-Jun-16,20959853-13533180,-1021.7,Thera East Anglia,Trust (Other),2 - Operations - Learning Disability,LDP South Cambs Locality - Care,Supported Living
Cambridgeshire County Council,23-Jun-16,20959855-13533182,-1021.7,Thera East Anglia,Trust (Other),2 - Operations - Learning Disability,LDP South Cambs Locality - Care,Supported Living
Cambridgeshire County Council,23-Jun-16,20959859-13533184,-1021.7,Thera East Anglia,Trust (Other),2 - Operations - Learning Disability,LDP South Cambs Locality - Care,Supported Living
Cambridgeshire County Council,23-Jun-16,20959862-13533187,-1021.7,Thera East Anglia,Trust (Other),2 - Operations - Learning Disability,LDP South Cambs Locality - Care,Supported Living
Cambridgeshire County Council,23-Jun-16,20959889-13533209,-1021.7,Thera East Anglia,Trust (Other),2 - Operations - Learning Disability,LDP South Cambs Locality - Care,Supported Living
Cambridgeshire County Council,23-Jun-16,20959890-13533210,-1021.7,Thera East Anglia,Trust (Other),2 - Operations - Learning Disability,LDP South Cambs Locality - Care,Supported Living
Cambridgeshire County Council,23-Jun-16,20959892-13533212,-1021.7,Thera East Anglia,Trust (Other),2 - Operations - Learning Disability,LDP South Cambs Locality - Care,Supported Living
Cambridgeshire County Council,02-Jun-16,20847955-13433146,-1002.77,Hesley Care Limited,Care Establishment,2 - Operations - Learning Disability,LDP Hunts special needs,Residential Independent Sector
Cambridgeshire County Council,09-Jun-16,20871913-13469632,-984.88,Redacted Personal Data,Individual,3 - Operations - Countywide Services,Countywide PD Service - Care,Direct Payments - Social Services
Cambridgeshire County Council,09-Jun-16,20871919-13469638,-984.88,Redacted Personal Data,Individual,3 - Operations - Countywide Services,Countywide PD Service - Care,Direct Payments - Social Services
Cambridgeshire County Council,13-Jun-16,20063825-13477938,-937.8,C & J Supplies Ltd,Trade Supplier,Winter Maintenance,Rights of Way and Access,Capital WIP - other  -  Expenditure / Payments
Cambridgeshire County Council,02-Jun-16,20753234-13431811,-926.11,Making Space#1,Care Establishment,3 - Operations - Countywide Services,Countywide PD Service - Care,Nursing Independent Sector
Cambridgeshire County Council,02-Jun-16,20753235-13431812,-926.11,Making Space#1,Care Establishment,3 - Operations - Countywide Services,Countywide PD Service - Care,Nursing Independent Sector
Cambridgeshire County Council,02-Jun-16,20753236-13431813,-926.11,Making Space#1,Care Establishment,3 - Operations - Countywide Services,Countywide PD Service - Care,Nursing Independent Sector
Cambridgeshire County Council,02-Jun-16,20753237-13431814,-926.11,Making Space#1,Care Establishment,3 - Operations - Countywide Services,Countywide PD Service - Care,Nursing Independent Sector
Cambridgeshire County Council,02-Jun-16,20753238-13431815,-926.11,Making Space#1,Care Establishment,3 - Operations - Countywide Services,Countywide PD Service - Care,Nursing Independent Sector
Cambridgeshire County Council,02-Jun-16,20762627-13431844,-926.11,Making Space#1,Care Establishment,3 - Operations - Countywide Services,Countywide PD Service - Care,Nursing Independent Sector
Cambridgeshire County Council,02-Jun-16,20762629-13431846,-926.11,Making Space#1,Care Establishment,3 - Operations - Countywide Services,Countywide PD Service - Care,Nursing Independent Sector
Cambridgeshire County Council,02-Jun-16,20762631-13431848,-926.11,Making Space#1,Care Establishment,3 - Operations - Countywide Services,Countywide PD Service - Care,Nursing Independent Sector
Cambridgeshire County Council,02-Jun-16,20762633-13431850,-926.11,Making Space#1,Care Establishment,3 - Operations - Countywide Services,Countywide PD Service - Care,Nursing Independent Sector
Cambridgeshire County Council,02-Jun-16,20762636-13431853,-926.11,Making Space#1,Care Establishment,3 - Operations - Countywide Services,Countywide PD Service - Care,Nursing Independent Sector
Cambridgeshire County Council,02-Jun-16,20762638-13431855,-926.11,Making Space#1,Care Establishment,3 - Operations - Countywide Services,Countywide PD Service - Care,Nursing Independent Sector
Cambridgeshire County Council,02-Jun-16,20762642-13431859,-926.11,Making Space#1,Care Establishment,3 - Operations - Countywide Services,Countywide PD Service - Care,Nursing Independent Sector
Cambridgeshire County Council,02-Jun-16,20762644-13431861,-926.11,Making Space#1,Care Establishment,3 - Operations - Countywide Services,Countywide PD Service - Care,Nursing Independent Sector
Cambridgeshire County Council,02-Jun-16,20762645-13431862,-926.11,Making Space#1,Care Establishment,3 - Operations - Countywide Services,Countywide PD Service - Care,Nursing Independent Sector
Cambridgeshire County Council,02-Jun-16,20762648-13431865,-926.11,Making Space#1,Care Establishment,3 - Operations - Countywide Services,Countywide PD Service - Care,Nursing Independent Sector
Cambridgeshire County Council,02-Jun-16,20762650-13431867,-926.11,Making Space#1,Care Establishment,3 - Operations - Countywide Services,Countywide PD Service - Care,Nursing Independent Sector
Cambridgeshire County Council,02-Jun-16,20762651-13431868,-926.11,Making Space#1,Care Establishment,3 - Operations - Countywide Services,Countywide PD Service - Care,Nursing Independent Sector
Cambridgeshire County Council,02-Jun-16,20762653-13431870,-926.11,Making Space#1,Care Establishment,3 - Operations - Countywide Services,Countywide PD Service - Care,Nursing Independent Sector
Cambridgeshire County Council,02-Jun-16,20762654-13431871,-926.11,Making Space#1,Care Establishment,3 - Operations - Countywide Services,Countywide PD Service - Care,Nursing Independent Sector
Cambridgeshire County Council,02-Jun-16,20762655-13431872,-926.11,Making Space#1,Care Establishment,3 - Operations - Countywide Services,Countywide PD Service - Care,Nursing Independent Sector
Cambridgeshire County Council,02-Jun-16,20762656-13431873,-926.11,Making Space#1,Care Establishment,3 - Operations - Countywide Services,Countywide PD Service - Care,Nursing Independent Sector
Cambridgeshire County Council,02-Jun-16,20762658-13431875,-926.11,Making Space#1,Care Establishment,3 - Operations - Countywide Services,Countywide PD Service - Care,Nursing Independent Sector
Cambridgeshire County Council,02-Jun-16,20762662-13431818,-926.11,Making Space#1,Care Establishment,3 - Operations - Countywide Services,Countywide PD Service - Care,Nursing Independent Sector
Cambridgeshire County Council,02-Jun-16,20762663-13431819,-926.11,Making Space#1,Care Establishment,3 - Operations - Countywide Services,Countywide PD Service - Care,Nursing Independent Sector
Cambridgeshire County Council,02-Jun-16,20762667-13431823,-926.11,Making Space#1,Care Establishment,3 - Operations - Countywide Services,Countywide PD Service - Care,Nursing Independent Sector
Cambridgeshire County Council,02-Jun-16,20762669-13431825,-926.11,Making Space#1,Care Establishment,3 - Operations - Countywide Services,Countywide PD Service - Care,Nursing Independent Sector
Cambridgeshire County Council,02-Jun-16,20762672-13431828,-926.11,Making Space#1,Care Establishment,3 - Operations - Countywide Services,Countywide PD Service - Care,Nursing Independent Sector
Cambridgeshire County Council,02-Jun-16,20762680-13431836,-926.11,Making Space#1,Care Establishment,3 - Operations - Countywide Services,Countywide PD Service - Care,Nursing Independent Sector
Cambridgeshire County Council,02-Jun-16,20762682-13431838,-926.11,Making Space#1,Care Establishment,3 - Operations - Countywide Services,Countywide PD Service - Care,Nursing Independent Sector
Cambridgeshire County Council,02-Jun-16,20762683-13431839,-926.11,Making Space#1,Care Establishment,3 - Operations - Countywide Services,Countywide PD Service - Care,Nursing Independent Sector
Cambridgeshire County Council,02-Jun-16,20762684-13431840,-926.11,Making Space#1,Care Establishment,3 - Operations - Countywide Services,Countywide PD Service - Care,Nursing Independent Sector
Cambridgeshire County Council,02-Jun-16,20762685-13431841,-926.11,Making Space#1,Care Establishment,3 - Operations - Countywide Services,Countywide PD Service - Care,Nursing Independent Sector
Cambridgeshire County Council,02-Jun-16,20841740-13431928,-926.11,Making Space#1,Care Establishment,3 - Operations - Countywide Services,Countywide PD Service - Care,Nursing Independent Sector
Cambridgeshire County Council,02-Jun-16,20841742-13431930,-926.11,Making Space#1,Care Establishment,3 - Operations - Countywide Services,Countywide PD Service - Care,Nursing Independent Sector
Cambridgeshire County Council,02-Jun-16,20841743-13431931,-926.11,Making Space#1,Care Establishment,3 - Operations - Countywide Services,Countywide PD Service - Care,Nursing Independent Sector
Cambridgeshire County Council,02-Jun-16,20841747-13431935,-926.11,Making Space#1,Care Establishment,3 - Operations - Countywide Services,Countywide PD Service - Care,Nursing Independent Sector
Cambridgeshire County Council,02-Jun-16,20841751-13431939,-926.11,Making Space#1,Care Establishment,3 - Operations - Countywide Services,Countywide PD Service - Care,Nursing Independent Sector
Cambridgeshire County Council,02-Jun-16,20841752-13431940,-926.11,Making Space#1,Care Establishment,3 - Operations - Countywide Services,Countywide PD Service - Care,Nursing Independent Sector
Cambridgeshire County Council,02-Jun-16,20841753-13431941,-926.11,Making Space#1,Care Establishment,3 - Operations - Countywide Services,Countywide PD Service - Care,Nursing Independent Sector
Cambridgeshire County Council,02-Jun-16,20841756-13431944,-926.11,Making Space#1,Care Establishment,3 - Operations - Countywide Services,Countywide PD Service - Care,Nursing Independent Sector
Cambridgeshire County Council,02-Jun-16,20841758-13431946,-926.11,Making Space#1,Care Establishment,3 - Operations - Countywide Services,Countywide PD Service - Care,Nursing Independent Sector
Cambridgeshire County Council,02-Jun-16,20841759-13431947,-926.11,Making Space#1,Care Establishment,3 - Operations - Countywide Services,Countywide PD Service - Care,Nursing Independent Sector
Cambridgeshire County Council,02-Jun-16,20841761-13431949,-926.11,Making Space#1,Care Establishment,3 - Operations - Countywide Services,Countywide PD Service - Care,Nursing Independent Sector
Cambridgeshire County Council,02-Jun-16,20841762-13431950,-926.11,Making Space#1,Care Establishment,3 - Operations - Countywide Services,Countywide PD Service - Care,Nursing Independent Sector
Cambridgeshire County Council,02-Jun-16,20841763-13431951,-926.11,Making Space#1,Care Establishment,3 - Operations - Countywide Services,Countywide PD Service - Care,Nursing Independent Sector
Cambridgeshire County Council,02-Jun-16,20843613-13431887,-926.11,Making Space#1,Care Establishment,3 - Operations - Countywide Services,Countywide PD Service - Care,Nursing Independent Sector
Cambridgeshire County Council,02-Jun-16,20843614-13431888,-926.11,Making Space#1,Care Establishment,3 - Operations - Countywide Services,Countywide PD Service - Care,Nursing Independent Sector
Cambridgeshire County Council,02-Jun-16,20843616-13431890,-926.11,Making Space#1,Care Establishment,3 - Operations - Countywide Services,Countywide PD Service - Care,Nursing Independent Sector
Cambridgeshire County Council,02-Jun-16,20843617-13431891,-926.11,Making Space#1,Care Establishment,3 - Operations - Countywide Services,Countywide PD Service - Care,Nursing Independent Sector
Cambridgeshire County Council,02-Jun-16,20843620-13431894,-926.11,Making Space#1,Care Establishment,3 - Operations - Countywide Services,Countywide PD Service - Care,Nursing Independent Sector
Cambridgeshire County Council,02-Jun-16,20843621-13431895,-926.11,Making Space#1,Care Establishment,3 - Operations - Countywide Services,Countywide PD Service - Care,Nursing Independent Sector
Cambridgeshire County Council,02-Jun-16,20843623-13431897,-926.11,Making Space#1,Care Establishment,3 - Operations - Countywide Services,Countywide PD Service - Care,Nursing Independent Sector
Cambridgeshire County Council,02-Jun-16,20843624-13431898,-926.11,Making Space#1,Care Establishment,3 - Operations - Countywide Services,Countywide PD Service - Care,Nursing Independent Sector
Cambridgeshire County Council,02-Jun-16,20843625-13431899,-926.11,Making Space#1,Care Establishment,3 - Operations - Countywide Services,Countywide PD Service - Care,Nursing Independent Sector
Cambridgeshire County Council,02-Jun-16,20843628-13431902,-926.11,Making Space#1,Care Establishment,3 - Operations - Countywide Services,Countywide PD Service - Care,Nursing Independent Sector
Cambridgeshire County Council,02-Jun-16,20843630-13431904,-926.11,Making Space#1,Care Establishment,3 - Operations - Countywide Services,Countywide PD Service - Care,Nursing Independent Sector
Cambridgeshire County Council,02-Jun-16,20843632-13431906,-926.11,Making Space#1,Care Establishment,3 - Operations - Countywide Services,Countywide PD Service - Care,Nursing Independent Sector
Cambridgeshire County Council,02-Jun-16,20843635-13431909,-926.11,Making Space#1,Care Establishment,3 - Operations - Countywide Services,Countywide PD Service - Care,Nursing Independent Sector
Cambridgeshire County Council,02-Jun-16,20843637-13431911,-926.11,Making Space#1,Care Establishment,3 - Operations - Countywide Services,Countywide PD Service - Care,Nursing Independent Sector
Cambridgeshire County Council,02-Jun-16,20843639-13431913,-926.11,Making Space#1,Care Establishment,3 - Operations - Countywide Services,Countywide PD Service - Care,Nursing Independent Sector
Cambridgeshire County Council,02-Jun-16,20843640-13431914,-926.11,Making Space#1,Care Establishment,3 - Operations - Countywide Services,Countywide PD Service - Care,Nursing Independent Sector
Cambridgeshire County Council,02-Jun-16,20843644-13431918,-926.11,Making Space#1,Care Establishment,3 - Operations - Countywide Services,Countywide PD Service - Care,Nursing Independent Sector
Cambridgeshire County Council,02-Jun-16,20843646-13431920,-926.11,Making Space#1,Care Establishment,3 - Operations - Countywide Services,Countywide PD Service - Care,Nursing Independent Sector
Cambridgeshire County Council,02-Jun-16,20843647-13431921,-926.11,Making Space#1,Care Establishment,3 - Operations - Countywide Services,Countywide PD Service - Care,Nursing Independent Sector
Cambridgeshire County Council,09-Jun-16,20869197-13467224,-926.11,Making Space#1,Care Establishment,3 - Operations - Countywide Services,Countywide PD Service - Care,Nursing Independent Sector
Cambridgeshire County Council,09-Jun-16,20869199-13467226,-926.11,Making Space#1,Care Establishment,3 - Operations - Countywide Services,Countywide PD Service - Care,Nursing Independent Sector
Cambridgeshire County Council,09-Jun-16,20869200-13467227,-926.11,Making Space#1,Care Establishment,3 - Operations - Countywide Services,Countywide PD Service - Care,Nursing Independent Sector
Cambridgeshire County Council,09-Jun-16,20869201-13467228,-926.11,Making Space#1,Care Establishment,3 - Operations - Countywide Services,Countywide PD Service - Care,Nursing Independent Sector
Cambridgeshire County Council,09-Jun-16,20869205-13467232,-926.11,Making Space#1,Care Establishment,3 - Operations - Countywide Services,Countywide PD Service - Care,Nursing Independent Sector
Cambridgeshire County Council,09-Jun-16,20869206-13467233,-926.11,Making Space#1,Care Establishment,3 - Operations - Countywide Services,Countywide PD Service - Care,Nursing Independent Sector
Cambridgeshire County Council,09-Jun-16,20869208-13467235,-926.11,Making Space#1,Care Establishment,3 - Operations - Countywide Services,Countywide PD Service - Care,Nursing Independent Sector
Cambridgeshire County Council,09-Jun-16,20869210-13467237,-926.11,Making Space#1,Care Establishment,3 - Operations - Countywide Services,Countywide PD Service - Care,Nursing Independent Sector
Cambridgeshire County Council,09-Jun-16,20869216-13467243,-926.11,Making Space#1,Care Establishment,3 - Operations - Countywide Services,Countywide PD Service - Care,Nursing Independent Sector
Cambridgeshire County Council,09-Jun-16,20869218-13467245,-926.11,Making Space#1,Care Establishment,3 - Operations - Countywide Services,Countywide PD Service - Care,Nursing Independent Sector
Cambridgeshire County Council,09-Jun-16,20869219-13467246,-926.11,Making Space#1,Care Establishment,3 - Operations - Countywide Services,Countywide PD Service - Care,Nursing Independent Sector
Cambridgeshire County Council,09-Jun-16,20869221-13467248,-926.11,Making Space#1,Care Establishment,3 - Operations - Countywide Services,Countywide PD Service - Care,Nursing Independent Sector
Cambridgeshire County Council,09-Jun-16,20869222-13467249,-926.11,Making Space#1,Care Establishment,3 - Operations - Countywide Services,Countywide PD Service - Care,Nursing Independent Sector
Cambridgeshire County Council,09-Jun-16,20869224-13467251,-926.11,Making Space#1,Care Establishment,3 - Operations - Countywide Services,Countywide PD Service - Care,Nursing Independent Sector
Cambridgeshire County Council,09-Jun-16,20869230-13467257,-926.11,Making Space#1,Care Establishment,3 - Operations - Countywide Services,Countywide PD Service - Care,Nursing Independent Sector
Cambridgeshire County Council,09-Jun-16,20869231-13467258,-926.11,Making Space#1,Care Establishment,3 - Operations - Countywide Services,Countywide PD Service - Care,Nursing Independent Sector
Cambridgeshire County Council,09-Jun-16,20869232-13467259,-926.11,Making Space#1,Care Establishment,3 - Operations - Countywide Services,Countywide PD Service - Care,Nursing Independent Sector
Cambridgeshire County Council,09-Jun-16,20869233-13467260,-926.11,Making Space#1,Care Establishment,3 - Operations - Countywide Services,Countywide PD Service - Care,Nursing Independent Sector
Cambridgeshire County Council,09-Jun-16,20869235-13467262,-926.11,Making Space#1,Care Establishment,3 - Operations - Countywide Services,Countywide PD Service - Care,Nursing Independent Sector
Cambridgeshire County Council,09-Jun-16,20869237-13467264,-926.11,Making Space#1,Care Establishment,3 - Operations - Countywide Services,Countywide PD Service - Care,Nursing Independent Sector
Cambridgeshire County Council,09-Jun-16,20869239-13467266,-926.11,Making Space#1,Care Establishment,3 - Operations - Countywide Services,Countywide PD Service - Care,Nursing Independent Sector
Cambridgeshire County Council,09-Jun-16,20869240-13467267,-926.11,Making Space#1,Care Establishment,3 - Operations - Countywide Services,Countywide PD Service - Care,Nursing Independent Sector
Cambridgeshire County Council,09-Jun-16,20869242-13467269,-926.11,Making Space#1,Care Establishment,3 - Operations - Countywide Services,Countywide PD Service - Care,Nursing Independent Sector
Cambridgeshire County Council,09-Jun-16,20869245-13467272,-926.11,Making Space#1,Care Establishment,3 - Operations - Countywide Services,Countywide PD Service - Care,Nursing Independent Sector
Cambridgeshire County Council,09-Jun-16,20869247-13467274,-926.11,Making Space#1,Care Establishment,3 - Operations - Countywide Services,Countywide PD Service - Care,Nursing Independent Sector
Cambridgeshire County Council,09-Jun-16,20869252-13467213,-926.11,Making Space#1,Care Establishment,3 - Operations - Countywide Services,Countywide PD Service - Care,Nursing Independent Sector
Cambridgeshire County Council,09-Jun-16,20869253-13467214,-926.11,Making Space#1,Care Establishment,3 - Operations - Countywide Services,Countywide PD Service - Care,Nursing Independent Sector
Cambridgeshire County Council,09-Jun-16,20869254-13467215,-926.11,Making Space#1,Care Establishment,3 - Operations - Countywide Services,Countywide PD Service - Care,Nursing Independent Sector
Cambridgeshire County Council,09-Jun-16,20869255-13467216,-926.11,Making Space#1,Care Establishment,3 - Operations - Countywide Services,Countywide PD Service - Care,Nursing Independent Sector
Cambridgeshire County Council,09-Jun-16,20869256-13467217,-926.11,Making Space#1,Care Establishment,3 - Operations - Countywide Services,Countywide PD Service - Care,Nursing Independent Sector
Cambridgeshire County Council,09-Jun-16,20869259-13467220,-926.11,Making Space#1,Care Establishment,3 - Operations - Countywide Services,Countywide PD Service - Care,Nursing Independent Sector
Cambridgeshire County Council,09-Jun-16,20869262-13467223,-926.11,Making Space#1,Care Establishment,3 - Operations - Countywide Services,Countywide PD Service - Care,Nursing Independent Sector
Cambridgeshire County Council,16-Jun-16,20842352-13492988,-911.22,Bramley Court,Care Establishment,2 - Commissioning - Older people Pool,Older People - City & South,Residential Independent Sector
Cambridgeshire County Council,16-Jun-16,20842358-13492989,-911.22,Bramley Court,Care Establishment,2 - Commissioning - Older people Pool,Older People - City & South,Residential Independent Sector
Cambridgeshire County Council,16-Jun-16,20842378-13492991,-911.22,Bramley Court,Care Establishment,2 - Commissioning - Older people Pool,Older People - City & South,Residential Independent Sector
Cambridgeshire County Council,16-Jun-16,20842383-13492992,-911.22,Bramley Court,Care Establishment,2 - Commissioning - Older people Pool,Older People - City & South,Residential Independent Sector
Cambridgeshire County Council,16-Jun-16,20842389-13492993,-911.22,Bramley Court,Care Establishment,2 - Commissioning - Older people Pool,Older People - City & South,Residential Independent Sector
Cambridgeshire County Council,16-Jun-16,20842390-13492994,-911.22,Bramley Court,Care Establishment,2 - Commissioning - Older people Pool,Older People - City & South,Residential Independent Sector
Cambridgeshire County Council,13-Jun-16,20669821-13478214,-902.16,The Riverside Group Ltd,Care Establishment,S&C,Placements - Social Care,Outreach
Cambridgeshire County Council,16-Jun-16,20907092-13493196,-858.52,The Manor Cheshire Home,Care Establishment,3 - Operations - Countywide Services,Countywide PD Service - Care,Residential Independent Sector
Cambridgeshire County Council,16-Jun-16,20907093-13493197,-858.52,The Manor Cheshire Home,Care Establishment,3 - Operations - Countywide Services,Countywide PD Service - Care,Residential Independent Sector
Cambridgeshire County Council,16-Jun-16,20907096-13493200,-858.52,The Manor Cheshire Home,Care Establishment,3 - Operations - Countywide Services,Countywide PD Service - Care,Residential Independent Sector
Cambridgeshire County Council,16-Jun-16,20907098-13493202,-858.52,The Manor Cheshire Home,Care Establishment,3 - Operations - Countywide Services,Countywide PD Service - Care,Residential Independent Sector
Cambridgeshire County Council,16-Jun-16,20907101-13493205,-858.52,The Manor Cheshire Home,Care Establishment,3 - Operations - Countywide Services,Countywide PD Service - Care,Residential Independent Sector
Cambridgeshire County Council,16-Jun-16,20907104-13493208,-858.52,The Manor Cheshire Home,Care Establishment,3 - Operations - Countywide Services,Countywide PD Service - Care,Residential Independent Sector
Cambridgeshire County Council,16-Jun-16,20912210-13493179,-856.62,The Manor Cheshire Home,Care Establishment,3 - Operations - Countywide Services,Countywide PD Service - Care,Residential Independent Sector
Cambridgeshire County Council,16-Jun-16,20912215-13493183,-856.62,The Manor Cheshire Home,Care Establishment,3 - Operations - Countywide Services,Countywide PD Service - Care,Residential Independent Sector
Cambridgeshire County Council,16-Jun-16,20912217-13493185,-856.62,The Manor Cheshire Home,Care Establishment,3 - Operations - Countywide Services,Countywide PD Service - Care,Residential Independent Sector
Cambridgeshire County Council,16-Jun-16,20912218-13493186,-856.62,The Manor Cheshire Home,Care Establishment,3 - Operations - Countywide Services,Countywide PD Service - Care,Residential Independent Sector
Cambridgeshire County Council,16-Jun-16,20912222-13493189,-856.62,The Manor Cheshire Home,Care Establishment,3 - Operations - Countywide Services,Countywide PD Service - Care,Residential Independent Sector
Cambridgeshire County Council,16-Jun-16,20912226-13493192,-856.62,The Manor Cheshire Home,Care Establishment,3 - Operations - Countywide Services,Countywide PD Service - Care,Residential Independent Sector
Cambridgeshire County Council,23-Jun-16,20952971-13535735,-854.25,Abbey Healthcare (Huntingdon) Ltd,Care Establishment,2 - Commissioning - Older people Pool,Older People Mental Health Hunts,Nursing Independent Sector
Cambridgeshire County Council,23-Jun-16,20843872-13526146,-850,Meadows Homecare Services,Care Establishment,2 - Commissioning - Older people Pool,Older People - City & South,Day and Domicillary Care Independent Sector
Cambridgeshire County Council,23-Jun-16,20843873-13526147,-850,Meadows Homecare Services,Care Establishment,2 - Commissioning - Older people Pool,Older People - City & South,Day and Domicillary Care Independent Sector
Cambridgeshire County Council,23-Jun-16,20843874-13526148,-850,Meadows Homecare Services,Care Establishment,2 - Commissioning - Older people Pool,Older People - City & South,Day and Domicillary Care Independent Sector
Cambridgeshire County Council,23-Jun-16,20843875-13526149,-850,Meadows Homecare Services,Care Establishment,2 - Commissioning - Older people Pool,Older People - City & South,Day and Domicillary Care Independent Sector
Cambridgeshire County Council,23-Jun-16,20843876-13526150,-850,Meadows Homecare Services,Care Establishment,2 - Commissioning - Older people Pool,Older People - City & South,Day and Domicillary Care Independent Sector
Cambridgeshire County Council,23-Jun-16,20843877-13526151,-850,Meadows Homecare Services,Care Establishment,2 - Commissioning - Older people Pool,Older People - City & South,Day and Domicillary Care Independent Sector
Cambridgeshire County Council,13-Jun-16,20669913-13478216,-805.5,The Riverside Group Ltd,Care Establishment,S&C,Placements - Social Care,Outreach
Cambridgeshire County Council,02-Jun-16,20762659-13431876,-793.81,Making Space#1,Care Establishment,3 - Operations - Countywide Services,Countywide PD Service - Care,Nursing Independent Sector
Cambridgeshire County Council,02-Jun-16,20843645-13431919,-793.81,Making Space#1,Care Establishment,3 - Operations - Countywide Services,Countywide PD Service - Care,Nursing Independent Sector
Cambridgeshire County Council,09-Jun-16,20869229-13467256,-793.81,Making Space#1,Care Establishment,3 - Operations - Countywide Services,Countywide PD Service - Care,Nursing Independent Sector
Cambridgeshire County Council,23-Jun-16,19734665-13528058,-787.68,Sense (Hampton Resource Centre),Care Establishment,2 - Operations - Learning Disability,LDP Huntingdonshire Locality - Care,Daycare
Cambridgeshire County Council,23-Jun-16,19734667-13528060,-787.68,Sense (Hampton Resource Centre),Care Establishment,2 - Operations - Learning Disability,LDP Huntingdonshire Locality - Care,Daycare
Cambridgeshire County Council,23-Jun-16,19734669-13528062,-787.68,Sense (Hampton Resource Centre),Care Establishment,2 - Operations - Learning Disability,LDP Huntingdonshire Locality - Care,Daycare
Cambridgeshire County Council,23-Jun-16,19734670-13528063,-787.68,Sense (Hampton Resource Centre),Care Establishment,2 - Operations - Learning Disability,LDP Huntingdonshire Locality - Care,Daycare
Cambridgeshire County Council,23-Jun-16,19734671-13528064,-787.68,Sense (Hampton Resource Centre),Care Establishment,2 - Operations - Learning Disability,LDP Huntingdonshire Locality - Care,Daycare
Cambridgeshire County Council,23-Jun-16,19734672-13528065,-787.68,Sense (Hampton Resource Centre),Care Establishment,2 - Operations - Learning Disability,LDP Huntingdonshire Locality - Care,Daycare
Cambridgeshire County Council,23-Jun-16,19734673-13528066,-787.68,Sense (Hampton Resource Centre),Care Establishment,2 - Operations - Learning Disability,LDP Huntingdonshire Locality - Care,Daycare
Cambridgeshire County Council,23-Jun-16,19734674-13528067,-787.68,Sense (Hampton Resource Centre),Care Establishment,2 - Operations - Learning Disability,LDP Huntingdonshire Locality - Care,Daycare
Cambridgeshire County Council,23-Jun-16,19734675-13528068,-787.68,Sense (Hampton Resource Centre),Care Establishment,2 - Operations - Learning Disability,LDP Huntingdonshire Locality - Care,Daycare
Cambridgeshire County Council,23-Jun-16,19734676-13528069,-787.68,Sense (Hampton Resource Centre),Care Establishment,2 - Operations - Learning Disability,LDP Huntingdonshire Locality - Care,Daycare
Cambridgeshire County Council,23-Jun-16,19734678-13528071,-787.68,Sense (Hampton Resource Centre),Care Establishment,2 - Operations - Learning Disability,LDP Huntingdonshire Locality - Care,Daycare
Cambridgeshire County Council,23-Jun-16,19734679-13528072,-787.68,Sense (Hampton Resource Centre),Care Establishment,2 - Operations - Learning Disability,LDP Huntingdonshire Locality - Care,Daycare
Cambridgeshire County Council,23-Jun-16,19734682-13528075,-787.68,Sense (Hampton Resource Centre),Care Establishment,2 - Operations - Learning Disability,LDP Huntingdonshire Locality - Care,Daycare
Cambridgeshire County Council,23-Jun-16,19734685-13528078,-787.68,Sense (Hampton Resource Centre),Care Establishment,2 - Operations - Learning Disability,LDP Huntingdonshire Locality - Care,Daycare
Cambridgeshire County Council,23-Jun-16,19734686-13528079,-787.68,Sense (Hampton Resource Centre),Care Establishment,2 - Operations - Learning Disability,LDP Huntingdonshire Locality - Care,Daycare
Cambridgeshire County Council,23-Jun-16,19734691-13528084,-787.68,Sense (Hampton Resource Centre),Care Establishment,2 - Operations - Learning Disability,LDP Huntingdonshire Locality - Care,Daycare
Cambridgeshire County Council,23-Jun-16,19734693-13528086,-787.68,Sense (Hampton Resource Centre),Care Establishment,2 - Operations - Learning Disability,LDP Huntingdonshire Locality - Care,Daycare
Cambridgeshire County Council,23-Jun-16,19734694-13528087,-787.68,Sense (Hampton Resource Centre),Care Establishment,2 - Operations - Learning Disability,LDP Huntingdonshire Locality - Care,Daycare
Cambridgeshire County Council,23-Jun-16,19735346-13528091,-787.68,Sense (Hampton Resource Centre),Care Establishment,2 - Operations - Learning Disability,LDP Huntingdonshire Locality - Care,Daycare
Cambridgeshire County Council,23-Jun-16,19735348-13528093,-787.68,Sense (Hampton Resource Centre),Care Establishment,2 - Operations - Learning Disability,LDP Huntingdonshire Locality - Care,Daycare
Cambridgeshire County Council,23-Jun-16,19735351-13528096,-787.68,Sense (Hampton Resource Centre),Care Establishment,2 - Operations - Learning Disability,LDP Huntingdonshire Locality - Care,Daycare
Cambridgeshire County Council,23-Jun-16,19735352-13528097,-787.68,Sense (Hampton Resource Centre),Care Establishment,2 - Operations - Learning Disability,LDP Huntingdonshire Locality - Care,Daycare
Cambridgeshire County Council,23-Jun-16,19735355-13528100,-787.68,Sense (Hampton Resource Centre),Care Establishment,2 - Operations - Learning Disability,LDP Huntingdonshire Locality - Care,Daycare
Cambridgeshire County Council,23-Jun-16,19735357-13528102,-787.68,Sense (Hampton Resource Centre),Care Establishment,2 - Operations - Learning Disability,LDP Huntingdonshire Locality - Care,Daycare
Cambridgeshire County Council,23-Jun-16,19735358-13528103,-787.68,Sense (Hampton Resource Centre),Care Establishment,2 - Operations - Learning Disability,LDP Huntingdonshire Locality - Care,Daycare
Cambridgeshire County Council,23-Jun-16,19735360-13528105,-787.68,Sense (Hampton Resource Centre),Care Establishment,2 - Operations - Learning Disability,LDP Huntingdonshire Locality - Care,Daycare
Cambridgeshire County Council,23-Jun-16,19735361-13528106,-787.68,Sense (Hampton Resource Centre),Care Establishment,2 - Operations - Learning Disability,LDP Huntingdonshire Locality - Care,Daycare
Cambridgeshire County Council,23-Jun-16,19735362-13528107,-787.68,Sense (Hampton Resource Centre),Care Establishment,2 - Operations - Learning Disability,LDP Huntingdonshire Locality - Care,Daycare
Cambridgeshire County Council,23-Jun-16,19735366-13528111,-787.68,Sense (Hampton Resource Centre),Care Establishment,2 - Operations - Learning Disability,LDP Huntingdonshire Locality - Care,Daycare
Cambridgeshire County Council,23-Jun-16,19735369-13528114,-787.68,Sense (Hampton Resource Centre),Care Establishment,2 - Operations - Learning Disability,LDP Huntingdonshire Locality - Care,Daycare
Cambridgeshire County Council,23-Jun-16,19735370-13528115,-787.68,Sense (Hampton Resource Centre),Care Establishment,2 - Operations - Learning Disability,LDP Huntingdonshire Locality - Care,Daycare
Cambridgeshire County Council,23-Jun-16,19735371-13528116,-787.68,Sense (Hampton Resource Centre),Care Establishment,2 - Operations - Learning Disability,LDP Huntingdonshire Locality - Care,Daycare
Cambridgeshire County Council,23-Jun-16,19735372-13528117,-787.68,Sense (Hampton Resource Centre),Care Establishment,2 - Operations - Learning Disability,LDP Huntingdonshire Locality - Care,Daycare
Cambridgeshire County Council,23-Jun-16,19735374-13528119,-787.68,Sense (Hampton Resource Centre),Care Establishment,2 - Operations - Learning Disability,LDP Huntingdonshire Locality - Care,Daycare
Cambridgeshire County Council,23-Jun-16,19735375-13528120,-787.68,Sense (Hampton Resource Centre),Care Establishment,2 - Operations - Learning Disability,LDP Huntingdonshire Locality - Care,Daycare
Cambridgeshire County Council,23-Jun-16,19735377-13528122,-787.68,Sense (Hampton Resource Centre),Care Establishment,2 - Operations - Learning Disability,LDP Huntingdonshire Locality - Care,Daycare
Cambridgeshire County Council,23-Jun-16,20958241-13532141,-787.68,Gr Gibbs,Care Establishment,2 - Operations - Learning Disability,LDP Huntingdonshire Locality - Care,Residential Independent Sector
Cambridgeshire County Council,23-Jun-16,20958242-13532142,-787.68,Gr Gibbs,Care Establishment,2 - Operations - Learning Disability,LDP Huntingdonshire Locality - Care,Residential Independent Sector
Cambridgeshire County Council,23-Jun-16,20958246-13532146,-787.68,Gr Gibbs,Care Establishment,2 - Operations - Learning Disability,LDP Huntingdonshire Locality - Care,Residential Independent Sector
Cambridgeshire County Council,23-Jun-16,20958247-13532147,-787.68,Gr Gibbs,Care Establishment,2 - Operations - Learning Disability,LDP Huntingdonshire Locality - Care,Residential Independent Sector
Cambridgeshire County Council,23-Jun-16,20958248-13532148,-787.68,Gr Gibbs,Care Establishment,2 - Operations - Learning Disability,LDP Huntingdonshire Locality - Care,Residential Independent Sector
Cambridgeshire County Council,23-Jun-16,20958250-13532116,-787.68,Gr Gibbs,Care Establishment,2 - Operations - Learning Disability,LDP Huntingdonshire Locality - Care,Residential Independent Sector
Cambridgeshire County Council,23-Jun-16,20958251-13532117,-787.68,Gr Gibbs,Care Establishment,2 - Operations - Learning Disability,LDP Huntingdonshire Locality - Care,Residential Independent Sector
Cambridgeshire County Council,23-Jun-16,20958258-13532124,-787.68,Gr Gibbs,Care Establishment,2 - Operations - Learning Disability,LDP Huntingdonshire Locality - Care,Residential Independent Sector
Cambridgeshire County Council,23-Jun-16,20958259-13532125,-787.68,Gr Gibbs,Care Establishment,2 - Operations - Learning Disability,LDP Huntingdonshire Locality - Care,Residential Independent Sector
Cambridgeshire County Council,23-Jun-16,20958260-13532126,-787.68,Gr Gibbs,Care Establishment,2 - Operations - Learning Disability,LDP Huntingdonshire Locality - Care,Residential Independent Sector
Cambridgeshire County Council,23-Jun-16,20958262-13532128,-787.68,Gr Gibbs,Care Establishment,2 - Operations - Learning Disability,LDP Huntingdonshire Locality - Care,Residential Independent Sector
Cambridgeshire County Council,23-Jun-16,20958264-13532130,-787.68,Gr Gibbs,Care Establishment,2 - Operations - Learning Disability,LDP Huntingdonshire Locality - Care,Residential Independent Sector
Cambridgeshire County Council,23-Jun-16,20958269-13532135,-787.68,Gr Gibbs,Care Establishment,2 - Operations - Learning Disability,LDP Huntingdonshire Locality - Care,Residential Independent Sector
Cambridgeshire County Council,02-Jun-16,20842586-13430697,-786.91,Linkage Community Trust Ltd,Trust (Other),2 - Operations - Learning Disability,LDP Huntingdonshire Locality - Care,Residential Independent Sector
Cambridgeshire County Council,02-Jun-16,20842587-13430698,-786.91,Linkage Community Trust Ltd,Trust (Other),2 - Operations - Learning Disability,LDP Huntingdonshire Locality - Care,Residential Independent Sector
Cambridgeshire County Council,02-Jun-16,20842592-13430703,-786.91,Linkage Community Trust Ltd,Trust (Other),2 - Operations - Learning Disability,LDP Huntingdonshire Locality - Care,Residential Independent Sector
Cambridgeshire County Council,02-Jun-16,20842597-13430708,-786.91,Linkage Community Trust Ltd,Trust (Other),2 - Operations - Learning Disability,LDP Huntingdonshire Locality - Care,Residential Independent Sector
Cambridgeshire County Council,23-Jun-16,20657022-13533312,-764.15,Thera East Anglia,Trust (Other),2 - Operations - Learning Disability,LDP Huntingdonshire Locality - Care,Supported Living
Cambridgeshire County Council,23-Jun-16,20657025-13533315,-764.15,Thera East Anglia,Trust (Other),2 - Operations - Learning Disability,LDP Huntingdonshire Locality - Care,Supported Living
Cambridgeshire County Council,23-Jun-16,20657747-13533316,-764.15,Thera East Anglia,Trust (Other),2 - Operations - Learning Disability,LDP Huntingdonshire Locality - Care,Supported Living
Cambridgeshire County Council,23-Jun-16,20657748-13533317,-764.15,Thera East Anglia,Trust (Other),2 - Operations - Learning Disability,LDP Huntingdonshire Locality - Care,Supported Living
Cambridgeshire County Council,16-Jun-16,20869487-13492939,-753.75,Bramley Court,Care Establishment,2 - Commissioning - Older people Pool,Older People - City & South,Residential Independent Sector
Cambridgeshire County Council,16-Jun-16,20869489-13492941,-753.75,Bramley Court,Care Establishment,2 - Commissioning - Older people Pool,Older People - City & South,Residential Independent Sector
Cambridgeshire County Council,16-Jun-16,20869492-13492944,-753.75,Bramley Court,Care Establishment,2 - Commissioning - Older people Pool,Older People - City & South,Residential Independent Sector
Cambridgeshire County Council,16-Jun-16,20869493-13492945,-753.75,Bramley Court,Care Establishment,2 - Commissioning - Older people Pool,Older People - City & South,Residential Independent Sector
Cambridgeshire County Council,16-Jun-16,20869495-13492947,-753.75,Bramley Court,Care Establishment,2 - Commissioning - Older people Pool,Older People - City & South,Residential Independent Sector
Cambridgeshire County Council,16-Jun-16,20869497-13492948,-753.75,Bramley Court,Care Establishment,2 - Commissioning - Older people Pool,Older People - City & South,Residential Independent Sector
Cambridgeshire County Council,16-Jun-16,20869501-13492952,-753.75,Bramley Court,Care Establishment,2 - Commissioning - Older people Pool,Older People - City & South,Residential Independent Sector
Cambridgeshire County Council,16-Jun-16,20869502-13492953,-753.75,Bramley Court,Care Establishment,2 - Commissioning - Older people Pool,Older People - City & South,Residential Independent Sector
Cambridgeshire County Council,16-Jun-16,20869503-13492954,-753.75,Bramley Court,Care Establishment,2 - Commissioning - Older people Pool,Older People - City & South,Residential Independent Sector
Cambridgeshire County Council,16-Jun-16,20869504-13492955,-753.75,Bramley Court,Care Establishment,2 - Commissioning - Older people Pool,Older People - City & South,Residential Independent Sector
Cambridgeshire County Council,16-Jun-16,20869505-13492956,-753.75,Bramley Court,Care Establishment,2 - Commissioning - Older people Pool,Older People - City & South,Residential Independent Sector
Cambridgeshire County Council,16-Jun-16,20869507-13492958,-753.75,Bramley Court,Care Establishment,2 - Commissioning - Older people Pool,Older People - City & South,Residential Independent Sector
Cambridgeshire County Council,16-Jun-16,20869510-13492960,-753.75,Bramley Court,Care Establishment,2 - Commissioning - Older people Pool,Older People - City & South,Residential Independent Sector
Cambridgeshire County Council,16-Jun-16,20869512-13492962,-753.75,Bramley Court,Care Establishment,2 - Commissioning - Older people Pool,Older People - City & South,Residential Independent Sector
Cambridgeshire County Council,16-Jun-16,20869513-13492963,-753.75,Bramley Court,Care Establishment,2 - Commissioning - Older people Pool,Older People - City & South,Residential Independent Sector
Cambridgeshire County Council,16-Jun-16,20869517-13492967,-753.75,Bramley Court,Care Establishment,2 - Commissioning - Older people Pool,Older People - City & South,Residential Independent Sector
Cambridgeshire County Council,16-Jun-16,20869523-13492972,-753.75,Bramley Court,Care Establishment,2 - Commissioning - Older people Pool,Older People - City & South,Residential Independent Sector
Cambridgeshire County Council,16-Jun-16,20869527-13492975,-753.75,Bramley Court,Care Establishment,2 - Commissioning - Older people Pool,Older People - City & South,Residential Independent Sector
Cambridgeshire County Council,16-Jun-16,20869529-13492977,-753.75,Bramley Court,Care Establishment,2 - Commissioning - Older people Pool,Older People - City & South,Residential Independent Sector
Cambridgeshire County Council,16-Jun-16,20869530-13492978,-753.75,Bramley Court,Care Establishment,2 - Commissioning - Older people Pool,Older People - City & South,Residential Independent Sector
Cambridgeshire County Council,16-Jun-16,20869532-13492980,-753.75,Bramley Court,Care Establishment,2 - Commissioning - Older people Pool,Older People - City & South,Residential Independent Sector
Cambridgeshire County Council,16-Jun-16,20869535-13492983,-753.75,Bramley Court,Care Establishment,2 - Commissioning - Older people Pool,Older People - City & South,Residential Independent Sector
Cambridgeshire County Council,16-Jun-16,20871343-13492919,-753.75,Bramley Court,Care Establishment,2 - Commissioning - Older people Pool,Older People - City & South,Residential Independent Sector
Cambridgeshire County Council,16-Jun-16,20871344-13492920,-753.75,Bramley Court,Care Establishment,2 - Commissioning - Older people Pool,Older People - City & South,Residential Independent Sector
Cambridgeshire County Council,16-Jun-16,20871346-13492922,-753.75,Bramley Court,Care Establishment,2 - Commissioning - Older people Pool,Older People - City & South,Residential Independent Sector
Cambridgeshire County Council,16-Jun-16,20871349-13492925,-753.75,Bramley Court,Care Establishment,2 - Commissioning - Older people Pool,Older People - City & South,Residential Independent Sector
Cambridgeshire County Council,16-Jun-16,20871355-13492931,-753.75,Bramley Court,Care Establishment,2 - Commissioning - Older people Pool,Older People - City & South,Residential Independent Sector
Cambridgeshire County Council,23-Jun-16,20866205-13541399,-750,Barchester Healthcare Homes Ltd,Care Establishment,2 - Commissioning - Older people Pool,Older People Mental Health City & South,Nursing Independent Sector
Cambridgeshire County Council,23-Jun-16,20866206-13541400,-750,Barchester Healthcare Homes Ltd,Care Establishment,2 - Commissioning - Older people Pool,Older People Mental Health City & South,Nursing Independent Sector
Cambridgeshire County Council,23-Jun-16,20866208-13541401,-750,Barchester Healthcare Homes Ltd,Care Establishment,2 - Commissioning - Older people Pool,Older People Mental Health City & South,Nursing Independent Sector
Cambridgeshire County Council,23-Jun-16,20866209-13541402,-750,Barchester Healthcare Homes Ltd,Care Establishment,2 - Commissioning - Older people Pool,Older People Mental Health City & South,Nursing Independent Sector
Cambridgeshire County Council,23-Jun-16,20866211-13541404,-750,Barchester Healthcare Homes Ltd,Care Establishment,2 - Commissioning - Older people Pool,Older People Mental Health City & South,Nursing Independent Sector
Cambridgeshire County Council,23-Jun-16,20866212-13541405,-750,Barchester Healthcare Homes Ltd,Care Establishment,2 - Commissioning - Older people Pool,Older People Mental Health City & South,Nursing Independent Sector
Cambridgeshire County Council,23-Jun-16,20866214-13541406,-750,Barchester Healthcare Homes Ltd,Care Establishment,2 - Commissioning - Older people Pool,Older People Mental Health City & South,Nursing Independent Sector
Cambridgeshire County Council,23-Jun-16,20866218-13541407,-750,Barchester Healthcare Homes Ltd,Care Establishment,2 - Commissioning - Older people Pool,Older People Mental Health City & South,Nursing Independent Sector
Cambridgeshire County Council,23-Jun-16,20866220-13541408,-750,Barchester Healthcare Homes Ltd,Care Establishment,2 - Commissioning - Older people Pool,Older People Mental Health City & South,Nursing Independent Sector
Cambridgeshire County Council,23-Jun-16,20866221-13541409,-750,Barchester Healthcare Homes Ltd,Care Establishment,2 - Commissioning - Older people Pool,Older People Mental Health City & South,Nursing Independent Sector
Cambridgeshire County Council,23-Jun-16,20866223-13541410,-750,Barchester Healthcare Homes Ltd,Care Establishment,2 - Commissioning - Older people Pool,Older People Mental Health City & South,Nursing Independent Sector
Cambridgeshire County Council,23-Jun-16,20866225-13541411,-750,Barchester Healthcare Homes Ltd,Care Establishment,2 - Commissioning - Older people Pool,Older People Mental Health City & South,Nursing Independent Sector
Cambridgeshire County Council,23-Jun-16,20866226-13541412,-750,Barchester Healthcare Homes Ltd,Care Establishment,2 - Commissioning - Older people Pool,Older People Mental Health City & South,Nursing Independent Sector
Cambridgeshire County Council,23-Jun-16,20911455-13528561,-750,Better Healthcare Services Ltd,Care Establishment,3 - Operations - Countywide Services,Countywide PD Service - Care,Day and Domicillary Care Independent Sector
Cambridgeshire County Council,23-Jun-16,20911457-13528555,-750,Better Healthcare Services Ltd,Care Establishment,3 - Operations - Countywide Services,Countywide PD Service - Care,Day and Domicillary Care Independent Sector
Cambridgeshire County Council,23-Jun-16,20911458-13528556,-750,Better Healthcare Services Ltd,Care Establishment,3 - Operations - Countywide Services,Countywide PD Service - Care,Day and Domicillary Care Independent Sector
Cambridgeshire County Council,23-Jun-16,20911459-13528557,-750,Better Healthcare Services Ltd,Care Establishment,3 - Operations - Countywide Services,Countywide PD Service - Care,Day and Domicillary Care Independent Sector
Cambridgeshire County Council,23-Jun-16,20911460-13528558,-750,Better Healthcare Services Ltd,Care Establishment,3 - Operations - Countywide Services,Countywide PD Service - Care,Day and Domicillary Care Independent Sector
Cambridgeshire County Council,23-Jun-16,20911461-13528559,-750,Better Healthcare Services Ltd,Care Establishment,3 - Operations - Countywide Services,Countywide PD Service - Care,Day and Domicillary Care Independent Sector
Cambridgeshire County Council,16-Jun-16,20911810-13492814,-737.23,Social Care Solutions Ltd,Care Establishment,2 - Operations - Learning Disability,LDP South Cambs Locality - Care,Supported Living
Cambridgeshire County Council,09-Jun-16,20864772-13466528,-720,Office Update Ltd,Trade Supplier,LGSS Managed,Scott House,Office equipment
Cambridgeshire County Council,02-Jun-16,20840264-13437642,-693.63,Redacted Personal Data,Individual,2 - Commissioning - Older people Pool,Hunts O P  Team,Direct Payments - Social Services
Cambridgeshire County Council,02-Jun-16,20840269-13437646,-693.63,Redacted Personal Data,Individual,2 - Commissioning - Older people Pool,Hunts O P  Team,Direct Payments - Social Services
Cambridgeshire County Council,02-Jun-16,20840270-13437647,-693.63,Redacted Personal Data,Individual,2 - Commissioning - Older people Pool,Hunts O P  Team,Direct Payments - Social Services
Cambridgeshire County Council,02-Jun-16,20840272-13437648,-693.63,Redacted Personal Data,Individual,2 - Commissioning - Older people Pool,Hunts O P  Team,Direct Payments - Social Services
Cambridgeshire County Council,02-Jun-16,20840284-13437653,-693.63,Redacted Personal Data,Individual,2 - Commissioning - Older people Pool,Hunts O P  Team,Direct Payments - Social Services
Cambridgeshire County Council,02-Jun-16,20840292-13437626,-693.63,Redacted Personal Data,Individual,2 - Commissioning - Older people Pool,Hunts O P  Team,Direct Payments - Social Services
Cambridgeshire County Council,02-Jun-16,20840294-13437628,-693.63,Redacted Personal Data,Individual,2 - Commissioning - Older people Pool,Hunts O P  Team,Direct Payments - Social Services
Cambridgeshire County Council,02-Jun-16,20840307-13437635,-693.63,Redacted Personal Data,Individual,2 - Commissioning - Older people Pool,Hunts O P  Team,Direct Payments - Social Services
Cambridgeshire County Council,02-Jun-16,20840308-13437636,-693.63,Redacted Personal Data,Individual,2 - Commissioning - Older people Pool,Hunts O P  Team,Direct Payments - Social Services
Cambridgeshire County Council,02-Jun-16,20840309-13437637,-693.63,Redacted Personal Data,Individual,2 - Commissioning - Older people Pool,Hunts O P  Team,Direct Payments - Social Services
Cambridgeshire County Council,02-Jun-16,20841245-13437656,-693.63,Redacted Personal Data,Individual,2 - Commissioning - Older people Pool,Hunts O P  Team,Direct Payments - Social Services
Cambridgeshire County Council,02-Jun-16,20841253-13437659,-693.63,Redacted Personal Data,Individual,2 - Commissioning - Older people Pool,Hunts O P  Team,Direct Payments - Social Services
Cambridgeshire County Council,09-Jun-16,19380247-13468312,-679,Redacted Personal Data,Individual,3 - Operations - Countywide Services,Countywide PD Service - Care,SDS - Care and support Services
Cambridgeshire County Council,09-Jun-16,19380962-13468316,-679,Redacted Personal Data,Individual,3 - Operations - Countywide Services,Countywide PD Service - Care,SDS - Care and support Services
Cambridgeshire County Council,09-Jun-16,19380965-13468319,-679,Redacted Personal Data,Individual,3 - Operations - Countywide Services,Countywide PD Service - Care,SDS - Care and support Services
Cambridgeshire County Council,09-Jun-16,19380967-13468321,-679,Redacted Personal Data,Individual,3 - Operations - Countywide Services,Countywide PD Service - Care,SDS - Care and support Services
Cambridgeshire County Council,09-Jun-16,19380970-13468324,-679,Redacted Personal Data,Individual,3 - Operations - Countywide Services,Countywide PD Service - Care,SDS - Care and support Services
Cambridgeshire County Council,09-Jun-16,19380973-13468327,-679,Redacted Personal Data,Individual,3 - Operations - Countywide Services,Countywide PD Service - Care,SDS - Care and support Services
Cambridgeshire County Council,09-Jun-16,19380976-13468330,-679,Redacted Personal Data,Individual,3 - Operations - Countywide Services,Countywide PD Service - Care,SDS - Care and support Services
Cambridgeshire County Council,09-Jun-16,19380977-13468284,-679,Redacted Personal Data,Individual,3 - Operations - Countywide Services,Countywide PD Service - Care,SDS - Care and support Services
Cambridgeshire County Council,09-Jun-16,19380981-13468288,-679,Redacted Personal Data,Individual,3 - Operations - Countywide Services,Countywide PD Service - Care,SDS - Care and support Services
Cambridgeshire County Council,09-Jun-16,19380982-13468289,-679,Redacted Personal Data,Individual,3 - Operations - Countywide Services,Countywide PD Service - Care,SDS - Care and support Services
Cambridgeshire County Council,09-Jun-16,19380983-13468290,-679,Redacted Personal Data,Individual,3 - Operations - Countywide Services,Countywide PD Service - Care,SDS - Care and support Services
Cambridgeshire County Council,09-Jun-16,19380987-13468294,-679,Redacted Personal Data,Individual,3 - Operations - Countywide Services,Countywide PD Service - Care,SDS - Care and support Services
Cambridgeshire County Council,23-Jun-16,20958267-13532133,-675.15,Gr Gibbs,Care Establishment,2 - Operations - Learning Disability,LDP Huntingdonshire Locality - Care,Residential Independent Sector
Cambridgeshire County Council,23-Jun-16,20871206-13528239,-661.56,Glennfield Care Centre (Op),Care Establishment,2 - Commissioning - Older people Pool,Older People Mental Health Fenland,Nursing Independent Sector
Cambridgeshire County Council,23-Jun-16,20871207-13528240,-661.56,Glennfield Care Centre (Op),Care Establishment,2 - Commissioning - Older people Pool,Older People Mental Health Fenland,Nursing Independent Sector
Cambridgeshire County Council,23-Jun-16,20871210-13528243,-661.56,Glennfield Care Centre (Op),Care Establishment,2 - Commissioning - Older people Pool,Older People Mental Health Fenland,Nursing Independent Sector
Cambridgeshire County Council,23-Jun-16,20871211-13528244,-661.56,Glennfield Care Centre (Op),Care Establishment,2 - Commissioning - Older people Pool,Older People Mental Health Fenland,Nursing Independent Sector
Cambridgeshire County Council,23-Jun-16,20871212-13528245,-661.56,Glennfield Care Centre (Op),Care Establishment,2 - Commissioning - Older people Pool,Older People Mental Health Fenland,Nursing Independent Sector
Cambridgeshire County Council,23-Jun-16,20871214-13528247,-661.56,Glennfield Care Centre (Op),Care Establishment,2 - Commissioning - Older people Pool,Older People Mental Health Fenland,Nursing Independent Sector
Cambridgeshire County Council,23-Jun-16,20871215-13528248,-661.56,Glennfield Care Centre (Op),Care Establishment,2 - Commissioning - Older people Pool,Older People Mental Health Fenland,Nursing Independent Sector
Cambridgeshire County Council,06-Jun-16,20857798-13453056,-652.28,Chs Group,Care Establishment,CSC,Leaving Care C & F - Asylum Seekers,Living support grants - Financial Assistance - Asylum Seekers
Cambridgeshire County Council,01-Jun-16,20755862-13420474,-650.57,Pride Fostering Service,Care Establishment,S&C,Placements - Social Care,Agency Placements - Out County
Cambridgeshire County Council,16-Jun-16,20869500-13492951,-646.07,Bramley Court,Care Establishment,2 - Commissioning - Older people Pool,Older People - City & South,Residential Independent Sector
Cambridgeshire County Council,29-Jun-16,20987557-13567024,-623.38,Bill Ibbotts Catering Equipment Services Ltd,Trade Supplier,S&C,"Catering - Property, Equipment & Maintenance",Repair of canteen equipment
Cambridgeshire County Council,02-Jun-16,20844164-13435231,-620.11,St Elizabeth'S Care Home,Care Establishment,3 - Operations - Countywide Services,Countywide PD Service - Care,Residential Independent Sector
Cambridgeshire County Council,02-Jun-16,20844165-13435232,-620.11,St Elizabeth'S Care Home,Care Establishment,3 - Operations - Countywide Services,Countywide PD Service - Care,Residential Independent Sector
Cambridgeshire County Council,02-Jun-16,20844168-13435235,-620.11,St Elizabeth'S Care Home,Care Establishment,3 - Operations - Countywide Services,Countywide PD Service - Care,Residential Independent Sector
Cambridgeshire County Council,02-Jun-16,20844170-13435237,-620.11,St Elizabeth'S Care Home,Care Establishment,3 - Operations - Countywide Services,Countywide PD Service - Care,Residential Independent Sector
Cambridgeshire County Council,02-Jun-16,20844174-13435241,-620.11,St Elizabeth'S Care Home,Care Establishment,3 - Operations - Countywide Services,Countywide PD Service - Care,Residential Independent Sector
Cambridgeshire County Council,02-Jun-16,20844175-13435242,-620.11,St Elizabeth'S Care Home,Care Establishment,3 - Operations - Countywide Services,Countywide PD Service - Care,Residential Independent Sector
Cambridgeshire County Council,02-Jun-16,20844176-13435243,-620.11,St Elizabeth'S Care Home,Care Establishment,3 - Operations - Countywide Services,Countywide PD Service - Care,Residential Independent Sector
Cambridgeshire County Council,02-Jun-16,20844178-13435245,-620.11,St Elizabeth'S Care Home,Care Establishment,3 - Operations - Countywide Services,Countywide PD Service - Care,Residential Independent Sector
Cambridgeshire County Council,02-Jun-16,20844179-13435246,-620.11,St Elizabeth'S Care Home,Care Establishment,3 - Operations - Countywide Services,Countywide PD Service - Care,Residential Independent Sector
Cambridgeshire County Council,02-Jun-16,20844188-13435229,-620.11,St Elizabeth'S Care Home,Care Establishment,3 - Operations - Countywide Services,Countywide PD Service - Care,Residential Independent Sector
Cambridgeshire County Council,10-Jun-16,20685473-13475122,-617.76,A10 Taxis,Trade Supplier,S&C,Home to School Transport - Special,Home to School - Outcounty
Cambridgeshire County Council,02-Jun-16,20845649-13434746,-615.34,Redacted Personal Data,Individual,3 - Operations - Countywide Services,Countywide PD Service - Care,Direct Payments - Social Services
Cambridgeshire County Council,02-Jun-16,20845651-13434748,-615.34,Redacted Personal Data,Individual,3 - Operations - Countywide Services,Countywide PD Service - Care,Direct Payments - Social Services
Cambridgeshire County Council,02-Jun-16,20845654-13434751,-615.34,Redacted Personal Data,Individual,3 - Operations - Countywide Services,Countywide PD Service - Care,Direct Payments - Social Services
Cambridgeshire County Council,02-Jun-16,20845655-13434752,-615.34,Redacted Personal Data,Individual,3 - Operations - Countywide Services,Countywide PD Service - Care,Direct Payments - Social Services
Cambridgeshire County Council,02-Jun-16,20845656-13434753,-615.34,Redacted Personal Data,Individual,3 - Operations - Countywide Services,Countywide PD Service - Care,Direct Payments - Social Services
Cambridgeshire County Council,02-Jun-16,20845657-13434754,-615.34,Redacted Personal Data,Individual,3 - Operations - Countywide Services,Countywide PD Service - Care,Direct Payments - Social Services
Cambridgeshire County Council,02-Jun-16,20845659-13434756,-615.34,Redacted Personal Data,Individual,3 - Operations - Countywide Services,Countywide PD Service - Care,Direct Payments - Social Services
Cambridgeshire County Council,02-Jun-16,20845660-13434757,-615.34,Redacted Personal Data,Individual,3 - Operations - Countywide Services,Countywide PD Service - Care,Direct Payments - Social Services
Cambridgeshire County Council,23-Jun-16,20907248-13539824,-600.29,Midfield Lodge Care Centre,Care Establishment,2 - Commissioning - Older people Pool,Hunts O P  Team,Nursing Independent Sector
Cambridgeshire County Council,23-Jun-16,20907250-13539826,-600.29,Midfield Lodge Care Centre,Care Establishment,2 - Commissioning - Older people Pool,Hunts O P  Team,Nursing Independent Sector
Cambridgeshire County Council,23-Jun-16,20907258-13539834,-600.29,Midfield Lodge Care Centre,Care Establishment,2 - Commissioning - Older people Pool,Hunts O P  Team,Nursing Independent Sector
Cambridgeshire County Council,23-Jun-16,20907261-13539837,-600.29,Midfield Lodge Care Centre,Care Establishment,2 - Commissioning - Older people Pool,Hunts O P  Team,Nursing Independent Sector
Cambridgeshire County Council,23-Jun-16,20907262-13539838,-600.29,Midfield Lodge Care Centre,Care Establishment,2 - Commissioning - Older people Pool,Hunts O P  Team,Nursing Independent Sector
Cambridgeshire County Council,23-Jun-16,20907263-13539839,-600.29,Midfield Lodge Care Centre,Care Establishment,2 - Commissioning - Older people Pool,Hunts O P  Team,Nursing Independent Sector
Cambridgeshire County Council,23-Jun-16,20907266-13539842,-600.29,Midfield Lodge Care Centre,Care Establishment,2 - Commissioning - Older people Pool,Hunts O P  Team,Nursing Independent Sector
Cambridgeshire County Council,23-Jun-16,20907272-13539848,-600.29,Midfield Lodge Care Centre,Care Establishment,2 - Commissioning - Older people Pool,Hunts O P  Team,Nursing Independent Sector
Cambridgeshire County Council,23-Jun-16,20907273-13539849,-600.29,Midfield Lodge Care Centre,Care Establishment,2 - Commissioning - Older people Pool,Hunts O P  Team,Nursing Independent Sector
Cambridgeshire County Council,23-Jun-16,20907274-13539850,-600.29,Midfield Lodge Care Centre,Care Establishment,2 - Commissioning - Older people Pool,Hunts O P  Team,Nursing Independent Sector
Cambridgeshire County Council,23-Jun-16,20907275-13539851,-600.29,Midfield Lodge Care Centre,Care Establishment,2 - Commissioning - Older people Pool,Hunts O P  Team,Nursing Independent Sector
Cambridgeshire County Council,23-Jun-16,20907279-13539855,-600.29,Midfield Lodge Care Centre,Care Establishment,2 - Commissioning - Older people Pool,Hunts O P  Team,Nursing Independent Sector
Cambridgeshire County Council,09-Jun-16,20864765-13466530,-588.01,Vwfs Uk Ltd T/A Vw Group Leasing,Trade Supplier,S&C,Groomfields - Caxton Depot,Leased Vehicle Costs
Cambridgeshire County Council,23-Jun-16,20842507-13537448,-570.56,Orchard House Nursing Home,Care Establishment,2 - Commissioning - Older people Pool,Hunts O P  Team,Nursing Independent Sector
Cambridgeshire County Council,23-Jun-16,20842512-13537453,-570.56,Orchard House Nursing Home,Care Establishment,2 - Commissioning - Older people Pool,Hunts O P  Team,Nursing Independent Sector
Cambridgeshire County Council,23-Jun-16,20842513-13537454,-570.56,Orchard House Nursing Home,Care Establishment,2 - Commissioning - Older people Pool,Hunts O P  Team,Nursing Independent Sector
Cambridgeshire County Council,23-Jun-16,20842514-13537455,-570.56,Orchard House Nursing Home,Care Establishment,2 - Commissioning - Older people Pool,Hunts O P  Team,Nursing Independent Sector
Cambridgeshire County Council,23-Jun-16,20843828-13537460,-570.56,Orchard House Nursing Home,Care Establishment,2 - Commissioning - Older people Pool,Hunts O P  Team,Nursing Independent Sector
Cambridgeshire County Council,23-Jun-16,20843829-13537461,-570.56,Orchard House Nursing Home,Care Establishment,2 - Commissioning - Older people Pool,Hunts O P  Team,Nursing Independent Sector
Cambridgeshire County Council,23-Jun-16,20843831-13537463,-570.56,Orchard House Nursing Home,Care Establishment,2 - Commissioning - Older people Pool,Hunts O P  Team,Nursing Independent Sector
Cambridgeshire County Council,09-Jun-16,20846826-13467473,-569.27,Affinity Trust,Care Establishment,2 - Operations - Learning Disability,LDP South Cambs Locality - Care,Supported Living
Cambridgeshire County Council,23-Jun-16,20871209-13528242,-567.05,Glennfield Care Centre (Op),Care Establishment,2 - Commissioning - Older people Pool,Older People Mental Health Fenland,Nursing Independent Sector
Cambridgeshire County Council,23-Jun-16,20947581-13541022,-566.39,Bramley Court,Care Establishment,2 - Commissioning - Older people Pool,Older People - City & South,Nursing Independent Sector
Cambridgeshire County Council,23-Jun-16,20947583-13541023,-566.39,Bramley Court,Care Establishment,2 - Commissioning - Older people Pool,Older People - City & South,Nursing Independent Sector
Cambridgeshire County Council,23-Jun-16,20947588-13541025,-566.39,Bramley Court,Care Establishment,2 - Commissioning - Older people Pool,Older People - City & South,Nursing Independent Sector
Cambridgeshire County Council,23-Jun-16,20957261-13529307,-566.39,Cherry Hinton Nursing Home,Care Establishment,2 - Commissioning - Older people Pool,Older People - City & South,Nursing Independent Sector
Cambridgeshire County Council,23-Jun-16,20957263-13529309,-566.39,Cherry Hinton Nursing Home,Care Establishment,2 - Commissioning - Older people Pool,Older People - City & South,Nursing Independent Sector
Cambridgeshire County Council,23-Jun-16,20957265-13529310,-566.39,Cherry Hinton Nursing Home,Care Establishment,2 - Commissioning - Older people Pool,Older People - City & South,Nursing Independent Sector
Cambridgeshire County Council,23-Jun-16,20957269-13529311,-566.39,Cherry Hinton Nursing Home,Care Establishment,2 - Commissioning - Older people Pool,Older People - City & South,Nursing Independent Sector
Cambridgeshire County Council,23-Jun-16,20957270-13529312,-566.39,Cherry Hinton Nursing Home,Care Establishment,2 - Commissioning - Older people Pool,Older People - City & South,Nursing Independent Sector
Cambridgeshire County Council,23-Jun-16,20907269-13539845,-566.31,Midfield Lodge Care Centre,Care Establishment,2 - Commissioning - Older people Pool,Hunts O P  Team,Nursing Independent Sector
Cambridgeshire County Council,23-Jun-16,20907278-13539854,-566.31,Midfield Lodge Care Centre,Care Establishment,2 - Commissioning - Older people Pool,Hunts O P  Team,Nursing Independent Sector
Cambridgeshire County Council,02-Jun-16,20842602-13430713,-562.08,Linkage Community Trust Ltd,Trust (Other),2 - Operations - Learning Disability,LDP Huntingdonshire Locality - Care,Residential Independent Sector
Cambridgeshire County Council,27-Jun-16,20480138-13554441,-560.4,Global Radio Services Ltd,Trade Supplier,Traffic Management & Road Safety,"Education, Training and Publicity",Advertising / Publicity
Cambridgeshire County Council,23-Jun-16,20870195-13537602,-553.04,Swan House Nursing & Residential Home,Care Establishment,2 - Commissioning - Older people Pool,East Cambs - O P Team,Nursing Independent Sector
Cambridgeshire County Council,23-Jun-16,20870199-13537604,-553.04,Swan House Nursing & Residential Home,Care Establishment,2 - Commissioning - Older people Pool,East Cambs - O P Team,Nursing Independent Sector
Cambridgeshire County Council,23-Jun-16,20870201-13537605,-553.04,Swan House Nursing & Residential Home,Care Establishment,2 - Commissioning - Older people Pool,East Cambs - O P Team,Nursing Independent Sector
Cambridgeshire County Council,23-Jun-16,20870205-13537606,-553.04,Swan House Nursing & Residential Home,Care Establishment,2 - Commissioning - Older people Pool,East Cambs - O P Team,Nursing Independent Sector
Cambridgeshire County Council,23-Jun-16,20870208-13537607,-553.04,Swan House Nursing & Residential Home,Care Establishment,2 - Commissioning - Older people Pool,East Cambs - O P Team,Nursing Independent Sector
Cambridgeshire County Council,09-Jun-16,20870039-13468778,-541.38,The Elms Nursing Home,Care Establishment,2 - Commissioning - Older people Pool,East Cambs - O P Team,Nursing Independent Sector
Cambridgeshire County Council,09-Jun-16,20870040-13468779,-541.38,The Elms Nursing Home,Care Establishment,2 - Commissioning - Older people Pool,East Cambs - O P Team,Nursing Independent Sector
Cambridgeshire County Council,09-Jun-16,20870043-13468782,-541.38,The Elms Nursing Home,Care Establishment,2 - Commissioning - Older people Pool,East Cambs - O P Team,Nursing Independent Sector
Cambridgeshire County Council,09-Jun-16,20870044-13468783,-541.38,The Elms Nursing Home,Care Establishment,2 - Commissioning - Older people Pool,East Cambs - O P Team,Nursing Independent Sector
Cambridgeshire County Council,09-Jun-16,20870047-13468786,-541.38,The Elms Nursing Home,Care Establishment,2 - Commissioning - Older people Pool,East Cambs - O P Team,Nursing Independent Sector
Cambridgeshire County Council,09-Jun-16,20870051-13468790,-541.38,The Elms Nursing Home,Care Establishment,2 - Commissioning - Older people Pool,East Cambs - O P Team,Nursing Independent Sector
Cambridgeshire County Council,09-Jun-16,20870052-13468791,-541.38,The Elms Nursing Home,Care Establishment,2 - Commissioning - Older people Pool,East Cambs - O P Team,Nursing Independent Sector
Cambridgeshire County Council,09-Jun-16,20870053-13468792,-541.38,The Elms Nursing Home,Care Establishment,2 - Commissioning - Older people Pool,East Cambs - O P Team,Nursing Independent Sector
Cambridgeshire County Council,16-Jun-16,20869482-13492934,-538.39,Bramley Court,Care Establishment,2 - Commissioning - Older people Pool,Older People - City & South,Residential Independent Sector
Cambridgeshire County Council,23-Jun-16,20866210-13541403,-535.71,Barchester Healthcare Homes Ltd,Care Establishment,2 - Commissioning - Older people Pool,Older People Mental Health City & South,Nursing Independent Sector
Cambridgeshire County Council,23-Jun-16,20869935-13531013,-535,Rose Lodge,Care Establishment,2 - Commissioning - Older people Pool,Older People - Fenland,Residential Independent Sector
Cambridgeshire County Council,23-Jun-16,20869936-13531014,-535,Rose Lodge,Care Establishment,2 - Commissioning - Older people Pool,Older People - Fenland,Residential Independent Sector
Cambridgeshire County Council,23-Jun-16,20869937-13531015,-535,Rose Lodge,Care Establishment,2 - Commissioning - Older people Pool,Older People - Fenland,Residential Independent Sector
Cambridgeshire County Council,23-Jun-16,20869938-13531008,-535,Rose Lodge,Care Establishment,2 - Commissioning - Older people Pool,Older People - Fenland,Residential Independent Sector
Cambridgeshire County Council,23-Jun-16,20869939-13531009,-535,Rose Lodge,Care Establishment,2 - Commissioning - Older people Pool,Older People - Fenland,Residential Independent Sector
Cambridgeshire County Council,23-Jun-16,20869940-13531010,-535,Rose Lodge,Care Establishment,2 - Commissioning - Older people Pool,Older People - Fenland,Residential Independent Sector
Cambridgeshire County Council,23-Jun-16,20869941-13531011,-535,Rose Lodge,Care Establishment,2 - Commissioning - Older people Pool,Older People - Fenland,Residential Independent Sector
Cambridgeshire County Council,02-Jun-16,20844177-13435244,-531.52,St Elizabeth'S Care Home,Care Establishment,3 - Operations - Countywide Services,Countywide PD Service - Care,Residential Independent Sector
Cambridgeshire County Council,02-Jun-16,20682299-13434611,-524.16,Wentworth Croft Residential And Nursing,Care Establishment,2 - Commissioning - Older people Pool,Older People Mental Health Hunts,Nursing Independent Sector
Cambridgeshire County Council,02-Jun-16,20682300-13434612,-524.16,Wentworth Croft Residential And Nursing,Care Establishment,2 - Commissioning - Older people Pool,Older People Mental Health Hunts,Nursing Independent Sector
Cambridgeshire County Council,02-Jun-16,20682303-13434615,-524.16,Wentworth Croft Residential And Nursing,Care Establishment,2 - Commissioning - Older people Pool,Older People Mental Health Hunts,Nursing Independent Sector
Cambridgeshire County Council,02-Jun-16,20682304-13434616,-524.16,Wentworth Croft Residential And Nursing,Care Establishment,2 - Commissioning - Older people Pool,Older People Mental Health Hunts,Nursing Independent Sector
Cambridgeshire County Council,02-Jun-16,20682305-13434617,-524.16,Wentworth Croft Residential And Nursing,Care Establishment,2 - Commissioning - Older people Pool,Older People Mental Health Hunts,Nursing Independent Sector
Cambridgeshire County Council,02-Jun-16,20682306-13434618,-524.16,Wentworth Croft Residential And Nursing,Care Establishment,2 - Commissioning - Older people Pool,Older People Mental Health Hunts,Nursing Independent Sector
Cambridgeshire County Council,02-Jun-16,20682307-13434619,-524.16,Wentworth Croft Residential And Nursing,Care Establishment,2 - Commissioning - Older people Pool,Older People Mental Health Hunts,Nursing Independent Sector
Cambridgeshire County Council,02-Jun-16,20682308-13434620,-524.16,Wentworth Croft Residential And Nursing,Care Establishment,2 - Commissioning - Older people Pool,Older People Mental Health Hunts,Nursing Independent Sector
Cambridgeshire County Council,02-Jun-16,20682309-13434621,-524.16,Wentworth Croft Residential And Nursing,Care Establishment,2 - Commissioning - Older people Pool,Older People Mental Health Hunts,Nursing Independent Sector
Cambridgeshire County Council,02-Jun-16,20682310-13434622,-524.16,Wentworth Croft Residential And Nursing,Care Establishment,2 - Commissioning - Older people Pool,Older People Mental Health Hunts,Nursing Independent Sector
Cambridgeshire County Council,02-Jun-16,20682311-13434623,-524.16,Wentworth Croft Residential And Nursing,Care Establishment,2 - Commissioning - Older people Pool,Older People Mental Health Hunts,Nursing Independent Sector
Cambridgeshire County Council,02-Jun-16,20682312-13434624,-524.16,Wentworth Croft Residential And Nursing,Care Establishment,2 - Commissioning - Older people Pool,Older People Mental Health Hunts,Nursing Independent Sector
Cambridgeshire County Council,09-Jun-16,20870642-13467804,-519.02,Mihomecare Ltd (Fenland Premier Care),Care Establishment,2 - Commissioning - Older people Pool,East Cambs - O P Team,Day and Domicillary Care Independent Sector
Cambridgeshire County Council,09-Jun-16,20870644-13467806,-519.02,Mihomecare Ltd (Fenland Premier Care),Care Establishment,2 - Commissioning - Older people Pool,East Cambs - O P Team,Day and Domicillary Care Independent Sector
Cambridgeshire County Council,23-Jun-16,20907271-13539847,-514.53,Midfield Lodge Care Centre,Care Establishment,2 - Commissioning - Older people Pool,Hunts O P  Team,Nursing Independent Sector
Cambridgeshire County Council,23-Jun-16,20940462-13529712,-510,Comberton Village College,Education,S&C,H to S Transport - Post 16,Home to School - Contract
Cambridgeshire County Council,29-Jun-16,20987492-13566984,-507.19,Bill Ibbotts Catering Equipment Services Ltd,Trade Supplier,S&C,"Catering - Property, Equipment & Maintenance",Repair of canteen equipment
Cambridgeshire County Council,13-Jun-16,20867691-13478265,-504,Randstad Education Limited,Trade Supplier,E&P,SEND Specialist Services - Access & Inclusion,Pay - Supply Cover - Long-term supply
Cambridgeshire County Council,13-Jun-16,20781693-13477930,500,Kindred Drama Consultancy,Education,Traffic Management & Road Safety,Road Safety Partnership Working,Joint / Partnership Funding
Cambridgeshire County Council,01-Jun-16,20837352-13420209,500,Redacted Personal Data,Parent/Guardian,CSC,FCP allowances,Boarding Out Allowances
Cambridgeshire County Council,02-Jun-16,20849555-13436813,500,Redacted Personal Data,Parent/Guardian,3 - Operations - Countywide Services,Countywide PD Service - Care,Direct Payments - Social Services
Cambridgeshire County Council,02-Jun-16,20849556-13436814,500,Redacted Personal Data,Parent/Guardian,3 - Operations - Countywide Services,Countywide PD Service - Care,Direct Payments - Social Services
Cambridgeshire County Council,02-Jun-16,20849557-13436815,500,Redacted Personal Data,Parent/Guardian,3 - Operations - Countywide Services,Countywide PD Service - Care,Direct Payments - Social Services
Cambridgeshire County Council,02-Jun-16,20849558-13436816,500,Redacted Personal Data,Parent/Guardian,3 - Operations - Countywide Services,Countywide PD Service - Care,Direct Payments - Social Services
Cambridgeshire County Council,17-Jun-16,20854970-13500921,500,Waterbeach Level Internal Drainage Board,Other Public Bodies,LGSS Managed,County Farms,Business rates
Cambridgeshire County Council,20-Jun-16,20867945-13506027,500,Deborah House,Trade Supplier,LRNG,School Governor Training,Other Hired Contract Services
Cambridgeshire County Council,09-Jun-16,20872231-13468238,500,Fenland Association For Community Transport Ltd (Fact),Trade Supplier,2 - Operations - Learning Disability,LDP Fenland Locality - Care,SDS - PB Travel
Cambridgeshire County Council,14-Jun-16,20888076-13482343,500,Redacted Personal Data,Parent/Guardian,CSC,FCP allowances,Boarding Out Allowances
Cambridgeshire County Council,23-Jun-16,20944563-13522043,500,Woodfield Court,Trade Supplier,2 - Commissioning - Older people Pool,East Cambs - O P Team,Residential Independent Sector
Cambridgeshire County Council,23-Jun-16,20944564-13522044,500,Woodfield Court,Trade Supplier,2 - Commissioning - Older people Pool,East Cambs - O P Team,Residential Independent Sector
Cambridgeshire County Council,23-Jun-16,20944565-13522045,500,Woodfield Court,Trade Supplier,2 - Commissioning - Older people Pool,East Cambs - O P Team,Residential Independent Sector
Cambridgeshire County Council,23-Jun-16,20944566-13522046,500,Woodfield Court,Trade Supplier,2 - Commissioning - Older people Pool,East Cambs - O P Team,Residential Independent Sector
Cambridgeshire County Council,23-Jun-16,20948066-13534803,500,The Gables Specialist Nursing Home,Care Establishment,2 - Commissioning - Older people Pool,Older People Mental Health Fenland,Residential Independent Sector
Cambridgeshire County Council,23-Jun-16,20948069-13534804,500,The Gables Specialist Nursing Home,Care Establishment,2 - Commissioning - Older people Pool,Older People Mental Health Fenland,Residential Independent Sector
Cambridgeshire County Council,23-Jun-16,20948075-13534805,500,The Gables Specialist Nursing Home,Care Establishment,2 - Commissioning - Older people Pool,Older People Mental Health Fenland,Residential Independent Sector
Cambridgeshire County Council,23-Jun-16,20948076-13534806,500,The Gables Specialist Nursing Home,Care Establishment,2 - Commissioning - Older people Pool,Older People Mental Health Fenland,Residential Independent Sector
Cambridgeshire County Council,23-Jun-16,20959419-13521906,500,Epsom (Residential Care Only (La/Nhs))(66784),Care Establishment,2 - Commissioning - Older people Pool,Older People - Fenland,Residential Independent Sector
Cambridgeshire County Council,23-Jun-16,20959420-13521907,500,Epsom (Residential Care Only (La/Nhs))(66784),Care Establishment,2 - Commissioning - Older people Pool,Older People - Fenland,Residential Independent Sector
Cambridgeshire County Council,23-Jun-16,20959422-13521909,500,Epsom (Residential Care Only (La/Nhs))(66784),Care Establishment,2 - Commissioning - Older people Pool,Older People - Fenland,Residential Independent Sector
Cambridgeshire County Council,23-Jun-16,20959423-13521910,500,Epsom (Residential Care Only (La/Nhs))(66784),Care Establishment,2 - Commissioning - Older people Pool,Older People - Fenland,Residential Independent Sector
Cambridgeshire County Council,23-Jun-16,20959424-13521911,500,Epsom (Residential Care Only (La/Nhs))(66784),Care Establishment,2 - Commissioning - Older people Pool,Older People - Fenland,Residential Independent Sector
Cambridgeshire County Council,23-Jun-16,20959425-13521912,500,Epsom (Residential Care Only (La/Nhs))(66784),Care Establishment,2 - Commissioning - Older people Pool,Older People - Fenland,Residential Independent Sector
Cambridgeshire County Council,23-Jun-16,20959426-13521913,500,Epsom (Residential Care Only (La/Nhs))(66784),Care Establishment,2 - Commissioning - Older people Pool,Older People - Fenland,Residential Independent Sector
Cambridgeshire County Council,23-Jun-16,20959427-13521914,500,Epsom (Residential Care Only (La/Nhs))(66784),Care Establishment,2 - Commissioning - Older people Pool,Older People - Fenland,Residential Independent Sector
Cambridgeshire County Council,23-Jun-16,20959428-13521915,500,Epsom (Residential Care Only (La/Nhs))(66784),Care Establishment,2 - Commissioning - Older people Pool,Older People - Fenland,Residential Independent Sector
Cambridgeshire County Council,23-Jun-16,20959429-13521916,500,Epsom (Residential Care Only (La/Nhs))(66784),Care Establishment,2 - Commissioning - Older people Pool,Older People - Fenland,Residential Independent Sector
Cambridgeshire County Council,23-Jun-16,20945369-13537902,500.22,Home Meadow Ltd,Care Establishment,2 - Commissioning - Older people Pool,Older People - City & South,Residential Independent Sector
Cambridgeshire County Council,23-Jun-16,20945370-13537903,500.22,Home Meadow Ltd,Care Establishment,2 - Commissioning - Older people Pool,Older People - City & South,Residential Independent Sector
Cambridgeshire County Council,23-Jun-16,20945371-13537904,500.22,Home Meadow Ltd,Care Establishment,2 - Commissioning - Older people Pool,Older People - City & South,Residential Independent Sector
Cambridgeshire County Council,23-Jun-16,20945372-13537905,500.22,Home Meadow Ltd,Care Establishment,2 - Commissioning - Older people Pool,Older People - City & South,Residential Independent Sector
Cambridgeshire County Council,23-Jun-16,20948588-13537877,500.22,Home Meadow Ltd,Care Establishment,2 - Commissioning - Older people Pool,Older People - City & South,Residential Independent Sector
Cambridgeshire County Council,23-Jun-16,20948605-13537878,500.22,Home Meadow Ltd,Care Establishment,2 - Commissioning - Older people Pool,Older People - City & South,Residential Independent Sector
Cambridgeshire County Council,23-Jun-16,20950094-13537919,500.22,Home Meadow Ltd,Care Establishment,2 - Commissioning - Older people Pool,Older People - City & South,Residential Independent Sector
Cambridgeshire County Council,23-Jun-16,20950095-13537920,500.22,Home Meadow Ltd,Care Establishment,2 - Commissioning - Older people Pool,Older People - City & South,Residential Independent Sector
Cambridgeshire County Council,23-Jun-16,20950096-13537921,500.22,Home Meadow Ltd,Care Establishment,2 - Commissioning - Older people Pool,Older People - City & South,Residential Independent Sector
Cambridgeshire County Council,23-Jun-16,20953780-13537879,500.22,Home Meadow Ltd,Care Establishment,2 - Commissioning - Older people Pool,Older People - City & South,Residential Independent Sector
Cambridgeshire County Council,23-Jun-16,20953802-13537880,500.22,Home Meadow Ltd,Care Establishment,2 - Commissioning - Older people Pool,Older People - City & South,Residential Independent Sector
Cambridgeshire County Council,06-Jun-16,20816749-13452908,500.4,The Recruitment Agency Limited,Trade Supplier,S&C,Catering - Ernulf Comm School; St Neots,Pay - Agency Staff
Cambridgeshire County Council,27-Jun-16,20864762-13554581,500.4,Quantec Consultants Limited,Trade Supplier,LGSS Managed,County Farms,County Farms Maintenance Planned
Cambridgeshire County Council,27-Jun-16,20864763-13554582,500.4,Quantec Consultants Limited,Trade Supplier,LGSS Managed,County Farms,County Farms Maintenance Planned
Cambridgeshire County Council,27-Jun-16,20881419-13553910,500.4,The Recruitment Agency Limited,Trade Supplier,S&C,Catering - Shire Hall Serveries,Pay - Agency Staff
Cambridgeshire County Council,28-Jun-16,20973611-13562719,500.83,Jenner Health Centre,Care Establishment,PH,SH Contraception - Prescribed,Other Hired Contract Services
Cambridgeshire County Council,28-Jun-16,20974534-13562702,500.83,York Street Medical Practice,Care Establishment,PH,SH Contraception - Prescribed,Other Hired Contract Services
Cambridgeshire County Council,02-Jun-16,20837731-13438880,501.6,Anglian Water Services Limited,Company,Major Infrastructure Delivery,Hills Road S106,Capital WIP - other  -  Expenditure / Payments
Cambridgeshire County Council,23-Jun-16,20943486-13544284,501.68,Hunters Healthcare (Hunters Down),Care Establishment,2 - Commissioning - Older people Pool,Hunts O P  Team,Residential Independent Sector
Cambridgeshire County Council,23-Jun-16,20943487-13544285,501.68,Hunters Healthcare (Hunters Down),Care Establishment,2 - Commissioning - Older people Pool,Hunts O P  Team,Residential Independent Sector
Cambridgeshire County Council,23-Jun-16,20943488-13544286,501.68,Hunters Healthcare (Hunters Down),Care Establishment,2 - Commissioning - Older people Pool,Hunts O P  Team,Residential Independent Sector
Cambridgeshire County Council,23-Jun-16,20943489-13544287,501.68,Hunters Healthcare (Hunters Down),Care Establishment,2 - Commissioning - Older people Pool,Hunts O P  Team,Residential Independent Sector
Cambridgeshire County Council,23-Jun-16,20948338-13544221,501.68,Hunters Healthcare (Hunters Down),Care Establishment,2 - Commissioning - Older people Pool,Hunts O P  Team,Residential Independent Sector
Cambridgeshire County Council,23-Jun-16,20948339-13544222,501.68,Hunters Healthcare (Hunters Down),Care Establishment,2 - Commissioning - Older people Pool,Hunts O P  Team,Residential Independent Sector
Cambridgeshire County Council,23-Jun-16,20948340-13544223,501.68,Hunters Healthcare (Hunters Down),Care Establishment,2 - Commissioning - Older people Pool,Hunts O P  Team,Residential Independent Sector
Cambridgeshire County Council,23-Jun-16,20948343-13544224,501.68,Hunters Healthcare (Hunters Down),Care Establishment,2 - Commissioning - Older people Pool,Hunts O P  Team,Residential Independent Sector
Cambridgeshire County Council,15-Jun-16,20905053-13486237,502.51,Westminster Homecare Limited,Care Establishment,2 - Commissioning - Older people Pool,Older People Mental Health E Cambs,Day and Domicillary Care Independent Sector
Cambridgeshire County Council,14-Jun-16,20888290-13482073,502.56,Redacted Personal Data,Parent/Guardian,CSC,Operations Manager (O.M.) Children's Fie,Adoption Allowances
Cambridgeshire County Council,09-Jun-16,20871450-13469275,502.68,Woodlands Care Centre,Care Establishment,2 - Commissioning - Older people Pool,Older People - City & South,Nursing Independent Sector
Cambridgeshire County Council,09-Jun-16,20869422-13466627,502.74,Redacted Personal Data,Individual,2 - Commissioning - Older people Pool,Older People - City & South,Direct Payments - Social Services
Cambridgeshire County Council,09-Jun-16,20869423-13466628,502.74,Redacted Personal Data,Individual,2 - Commissioning - Older people Pool,Older People - City & South,Direct Payments - Social Services
Cambridgeshire County Council,09-Jun-16,20869424-13466629,502.74,Redacted Personal Data,Individual,2 - Commissioning - Older people Pool,Older People - City & South,Direct Payments - Social Services
Cambridgeshire County Council,09-Jun-16,20869425-13466630,502.74,Redacted Personal Data,Individual,2 - Commissioning - Older people Pool,Older People - City & South,Direct Payments - Social Services
Cambridgeshire County Council,20-Jun-16,20931142-13510964,502.75,Redacted Personal Data,Individual,CSC,CSC Direct Payments,Direct Payments - Social Services
Cambridgeshire County Council,23-Jun-16,20956225-13522143,503.09,Loughton Hall,Care Establishment,2 - Commissioning - Older people Pool,Older People - City & South,Residential Independent Sector
Cambridgeshire County Council,23-Jun-16,20956226-13522144,503.09,Loughton Hall,Care Establishment,2 - Commissioning - Older people Pool,Older People - City & South,Residential Independent Sector
Cambridgeshire County Council,23-Jun-16,20956227-13522145,503.09,Loughton Hall,Care Establishment,2 - Commissioning - Older people Pool,Older People - City & South,Residential Independent Sector
Cambridgeshire County Council,23-Jun-16,20956228-13522146,503.09,Loughton Hall,Care Establishment,2 - Commissioning - Older people Pool,Older People - City & South,Residential Independent Sector
Cambridgeshire County Council,23-Jun-16,20944549-13530933,503.11,Cottenham Court Nursing Home,Care Establishment,2 - Commissioning - Older people Pool,Older People - City & South,Residential Independent Sector
Cambridgeshire County Council,23-Jun-16,20950395-13530938,503.11,Cottenham Court Nursing Home,Care Establishment,2 - Commissioning - Older people Pool,Older People - City & South,Residential Independent Sector
Cambridgeshire County Council,23-Jun-16,20950400-13530939,503.11,Cottenham Court Nursing Home,Care Establishment,2 - Commissioning - Older people Pool,Older People - City & South,Residential Independent Sector
Cambridgeshire County Council,23-Jun-16,20950405-13530940,503.11,Cottenham Court Nursing Home,Care Establishment,2 - Commissioning - Older people Pool,Older People - City & South,Residential Independent Sector
Cambridgeshire County Council,02-Jun-16,20850246-13430070,503.48,Chs Group,Care Establishment,2 - Operations - Learning Disability,LDP E Cambs Locality - Care,Supported Living
Cambridgeshire County Council,10-Jun-16,20862073-13474941,503.91,Lex Autolease Ltd,Trade Supplier,4 - Operations - Providers services,No. 18 Alder Close High Supported Living Scheme,Leased Vehicle Costs
Cambridgeshire County Council,03-Jun-16,20715588-13447258,504,Coach And Horses Guest House,Trade Supplier,CSC,CSC Access Unit 3,Childrens Lodgings
Cambridgeshire County Council,10-Jun-16,20793650-13474901,504,Coach And Horses Guest House,Trade Supplier,CSC,CSC Access Unit 3,Living support grants
Cambridgeshire County Council,17-Jun-16,20850046-13500642,504,Coach And Horses Guest House,Trade Supplier,CSC,CSC Access Unit 3,Childrens Lodgings
Cambridgeshire County Council,13-Jun-16,20867672-13478263,504,Randstad Education Limited,Trade Supplier,E&P,SEND Specialist Services - Access & Inclusion,Pay - Supply Cover - Long-term supply
Cambridgeshire County Council,09-Jun-16,20868161-13466121,504,Redacted Personal Data,Parent/Guardian,S&C,Home to School Transport - Special,Home to School - Special - Special school
Cambridgeshire County Council,27-Jun-16,20881511-13554536,504,Isl Refrigeration Ltd,Company,S&C,"Catering - Property, Equipment & Maintenance",Repair of canteen equipment
Cambridgeshire County Council,24-Jun-16,20907075-13551143,504,Coach And Horses Guest House,Trade Supplier,CSC,CSC Access Unit 3,Childrens Lodgings
Cambridgeshire County Council,17-Jun-16,20912324-13500641,504,Coach And Horses Guest House,Trade Supplier,CSC,CSC Access Unit 3,Childrens Lodgings
Cambridgeshire County Council,24-Jun-16,20964411-13551158,504,Randstad Education Limited,Trade Supplier,E&P,SEND Specialist Services - Access & Inclusion,Pay - Supply Cover - Long-term supply
Cambridgeshire County Council,27-Jun-16,20964423-13554715,504,Randstad Education Limited,Trade Supplier,E&P,SEND Specialist Services - Access & Inclusion,Pay - Supply Cover - Long-term supply
Cambridgeshire County Council,17-Jun-16,20916611-13500450,504.19,Redacted Personal Data,Individual,SMI's,Early Years - Funded 3s/4s,Care & Ed Childcare Settings
Cambridgeshire County Council,17-Jun-16,20916709-13500506,504.19,Redacted Personal Data,Individual,SMI's,Early Years - Funded 3s/4s,Care & Ed Childcare Settings
Cambridgeshire County Council,01-Jun-16,20837562-13419951,504.4,Redacted Personal Data,Parent/Guardian,CSC,FCP allowances,Boarding Out Allowances
Cambridgeshire County Council,14-Jun-16,20888283-13482058,504.4,Redacted Personal Data,Parent/Guardian,CSC,FCP allowances,Boarding Out Allowances
Cambridgeshire County Council,23-Jun-16,20949838-13540472,504.4,Westminster Homecare Limited,Care Establishment,2 - Commissioning - Older people Pool,Older People - City & South,Day and Domicillary Care Independent Sector
Cambridgeshire County Council,23-Jun-16,20949839-13540473,504.4,Westminster Homecare Limited,Care Establishment,2 - Commissioning - Older people Pool,Older People - City & South,Day and Domicillary Care Independent Sector
Cambridgeshire County Council,23-Jun-16,20949840-13540474,504.4,Westminster Homecare Limited,Care Establishment,2 - Commissioning - Older people Pool,Older People - City & South,Day and Domicillary Care Independent Sector
Cambridgeshire County Council,23-Jun-16,20949844-13540475,504.4,Westminster Homecare Limited,Care Establishment,2 - Commissioning - Older people Pool,Older People - City & South,Day and Domicillary Care Independent Sector
Cambridgeshire County Council,23-Jun-16,20954924-13540014,504.4,Westminster Homecare Limited,Care Establishment,2 - Commissioning - Older people Pool,Older People - City & South,Day and Domicillary Care Independent Sector
Cambridgeshire County Council,28-Jun-16,20971292-13561917,504.4,Redacted Personal Data,Parent/Guardian,CSC,FCP allowances,Boarding Out Allowances
Cambridgeshire County Council,02-Jun-16,20841579-13431460,504.44,Redacted Personal Data,Individual,3 - Operations - Countywide Services,Countywide PD Service - Care,Direct Payments - Social Services
Cambridgeshire County Council,02-Jun-16,20841584-13431465,504.44,Redacted Personal Data,Individual,3 - Operations - Countywide Services,Countywide PD Service - Care,Direct Payments - Social Services
Cambridgeshire County Council,02-Jun-16,20841585-13431466,504.44,Redacted Personal Data,Individual,3 - Operations - Countywide Services,Countywide PD Service - Care,Direct Payments - Social Services
Cambridgeshire County Council,02-Jun-16,20841586-13431467,504.44,Redacted Personal Data,Individual,3 - Operations - Countywide Services,Countywide PD Service - Care,Direct Payments - Social Services
Cambridgeshire County Council,22-Jun-16,20936466-13518910,504.8,"Mrs A C Welton, Acw Consultancy",Company,2 - Commissioning - Older people Pool,Older People - Fenland - Staffing,Staff Training & Development
Cambridgeshire County Council,01-Jun-16,20837080-13420220,505.08,Redacted Personal Data,Foster Parent,CSC,Operations Manager (O.M.) Children's Fie,Adoption Allowances
Cambridgeshire County Council,14-Jun-16,20887793-13482353,505.08,Redacted Personal Data,Foster Parent,CSC,Operations Manager (O.M.) Children's Fie,Adoption Allowances
Cambridgeshire County Council,28-Jun-16,20970812-13562183,505.08,Redacted Personal Data,Foster Parent,CSC,Operations Manager (O.M.) Children's Fie,Adoption Allowances
Cambridgeshire County Council,14-Jun-16,20853831-13482826,505.49,Aa Global Language Service Ltd,Trade Supplier,CSC,CSC Access Group Manager,Interpreters
Cambridgeshire County Council,17-Jun-16,20916415-13500355,505.7,Redacted Personal Data,Individual,SMI's,Early Years - Funded 3s/4s,Care & Ed Childcare Settings
Cambridgeshire County Council,23-Jun-16,20953973-13522187,505.98,Caerus Care Ltd,Care Establishment,2 - Operations - Learning Disability,LDP Fenland Locality - Care,Supported Living
Cambridgeshire County Council,23-Jun-16,20953986-13522188,505.98,Caerus Care Ltd,Care Establishment,2 - Operations - Learning Disability,LDP Fenland Locality - Care,Supported Living
Cambridgeshire County Council,23-Jun-16,20954036-13522161,505.98,Caerus Care Ltd,Care Establishment,2 - Operations - Learning Disability,LDP Fenland Locality - Care,Supported Living
Cambridgeshire County Council,23-Jun-16,20954037-13522162,505.98,Caerus Care Ltd,Care Establishment,2 - Operations - Learning Disability,LDP Fenland Locality - Care,Supported Living
Cambridgeshire County Council,28-Jun-16,20974533-13562446,506.15,Lensfield Medical Practice,Care Establishment,PH,SH Contraception - Prescribed,Other Hired Contract Services
Cambridgeshire County Council,02-Jun-16,20849794-13432137,506.24,Redacted Personal Data,Individual,3 - Operations - Countywide Services,Countywide PD Service - Care,Direct Payments - Social Services
Cambridgeshire County Council,02-Jun-16,20849795-13432138,506.24,Redacted Personal Data,Individual,3 - Operations - Countywide Services,Countywide PD Service - Care,Direct Payments - Social Services
Cambridgeshire County Council,02-Jun-16,20849796-13432139,506.24,Redacted Personal Data,Individual,3 - Operations - Countywide Services,Countywide PD Service - Care,Direct Payments - Social Services
Cambridgeshire County Council,02-Jun-16,20849797-13432140,506.24,Redacted Personal Data,Individual,3 - Operations - Countywide Services,Countywide PD Service - Care,Direct Payments - Social Services
Cambridgeshire County Council,23-Jun-16,20958343-13544321,506.38,Farrington Care Homes Ltd T/A Woodlands Residential Care Home,Care Establishment,2 - Commissioning - Older people Pool,Hunts O P  Team,Residential Independent Sector
Cambridgeshire County Council,23-Jun-16,20958344-13544322,506.38,Farrington Care Homes Ltd T/A Woodlands Residential Care Home,Care Establishment,2 - Commissioning - Older people Pool,Hunts O P  Team,Residential Independent Sector
Cambridgeshire County Council,23-Jun-16,20958345-13544323,506.38,Farrington Care Homes Ltd T/A Woodlands Residential Care Home,Care Establishment,2 - Commissioning - Older people Pool,Hunts O P  Team,Residential Independent Sector
Cambridgeshire County Council,23-Jun-16,20958346-13544324,506.38,Farrington Care Homes Ltd T/A Woodlands Residential Care Home,Care Establishment,2 - Commissioning - Older people Pool,Hunts O P  Team,Residential Independent Sector
Cambridgeshire County Council,06-Jun-16,20743612-13453198,506.44,Little Abington Parish Council,Other Public Bodies,Local Infrastructure & Street Management,Network Management,Village Maintenance - Parishs
Cambridgeshire County Council,02-Jun-16,20841929-13429491,506.46,Redacted Personal Data,Individual,3 - Operations - Countywide Services,Countywide PD Service - Care,Direct Payments - Social Services
Cambridgeshire County Council,02-Jun-16,20841930-13429492,506.46,Redacted Personal Data,Individual,3 - Operations - Countywide Services,Countywide PD Service - Care,Direct Payments - Social Services
Cambridgeshire County Council,02-Jun-16,20841931-13429493,506.46,Redacted Personal Data,Individual,3 - Operations - Countywide Services,Countywide PD Service - Care,Direct Payments - Social Services
Cambridgeshire County Council,02-Jun-16,20841932-13429494,506.46,Redacted Personal Data,Individual,3 - Operations - Countywide Services,Countywide PD Service - Care,Direct Payments - Social Services
Cambridgeshire County Council,24-Jun-16,20964688-13551134,507,Boots Pharmacy,Trade Supplier,PH,SH Contraception - Prescribed,Other Hired Contract Services
Cambridgeshire County Council,21-Jun-16,20859527-13512048,507.19,Bill Ibbotts Catering Equipment Services Ltd,Trade Supplier,S&C,"Catering - Property, Equipment & Maintenance",Repair of canteen equipment
Cambridgeshire County Council,27-Jun-16,20933252-13554227,507.7,Adt Fire And Security Plc,Company,S&C,Catering - Cook Freeze Unit (C3),Alarm / CCTV system
Cambridgeshire County Council,20-Jun-16,20867952-13506242,507.74,Tmp (Uk) Ltd T/A Tmp Worldwide,Trade Supplier,Traffic Management & Road Safety,Policy and Regulation,Private Highways Work
Cambridgeshire County Council,23-Jun-16,20951026-13534512,507.79,Conquest Care Homes Peterborough,Care Establishment,2 - Operations - Learning Disability,LDP Fenland Locality - Care,Supported Living
Cambridgeshire County Council,23-Jun-16,20951027-13534513,507.79,Conquest Care Homes Peterborough,Care Establishment,2 - Operations - Learning Disability,LDP Fenland Locality - Care,Supported Living
Cambridgeshire County Council,23-Jun-16,20951028-13534514,507.79,Conquest Care Homes Peterborough,Care Establishment,2 - Operations - Learning Disability,LDP Fenland Locality - Care,Supported Living
Cambridgeshire County Council,23-Jun-16,20951032-13534515,507.79,Conquest Care Homes Peterborough,Care Establishment,2 - Operations - Learning Disability,LDP Fenland Locality - Care,Supported Living
Cambridgeshire County Council,23-Jun-16,20957369-13534517,507.79,Conquest Care Homes Peterborough,Care Establishment,2 - Operations - Learning Disability,LDP Fenland Locality - Care,Supported Living
Cambridgeshire County Council,23-Jun-16,20957370-13534518,507.79,Conquest Care Homes Peterborough,Care Establishment,2 - Operations - Learning Disability,LDP Fenland Locality - Care,Supported Living
Cambridgeshire County Council,23-Jun-16,20957373-13534521,507.79,Conquest Care Homes Peterborough,Care Establishment,2 - Operations - Learning Disability,LDP Fenland Locality - Care,Supported Living
Cambridgeshire County Council,23-Jun-16,20957375-13534523,507.79,Conquest Care Homes Peterborough,Care Establishment,2 - Operations - Learning Disability,LDP Fenland Locality - Care,Supported Living
Cambridgeshire County Council,02-Jun-16,20849598-13437427,508.04,Tony Stocks T/A Guyatt House,Care Establishment,2 - Operations - Learning Disability,LDP E Cambs Locality - Care,Residential Independent Sector
Cambridgeshire County Council,02-Jun-16,20849599-13437428,508.04,Tony Stocks T/A Guyatt House,Care Establishment,2 - Operations - Learning Disability,LDP E Cambs Locality - Care,Residential Independent Sector
Cambridgeshire County Council,02-Jun-16,20849602-13437430,508.04,Tony Stocks T/A Guyatt House,Care Establishment,2 - Operations - Learning Disability,LDP E Cambs Locality - Care,Residential Independent Sector
Cambridgeshire County Council,02-Jun-16,20849608-13437432,508.04,Tony Stocks T/A Guyatt House,Care Establishment,2 - Operations - Learning Disability,LDP E Cambs Locality - Care,Residential Independent Sector
Cambridgeshire County Council,23-Jun-16,20947078-13541695,508.21,Camb Care Ltd,Care Establishment,2 - Commissioning - Older people Pool,Hunts O P  Team,Day and Domicillary Care Independent Sector
Cambridgeshire County Council,23-Jun-16,20947079-13541696,508.21,Camb Care Ltd,Care Establishment,2 - Commissioning - Older people Pool,Hunts O P  Team,Day and Domicillary Care Independent Sector
Cambridgeshire County Council,23-Jun-16,20947080-13541697,508.21,Camb Care Ltd,Care Establishment,2 - Commissioning - Older people Pool,Hunts O P  Team,Day and Domicillary Care Independent Sector
Cambridgeshire County Council,23-Jun-16,20947081-13541698,508.21,Camb Care Ltd,Care Establishment,2 - Commissioning - Older people Pool,Hunts O P  Team,Day and Domicillary Care Independent Sector
Cambridgeshire County Council,23-Jun-16,20948272-13541568,508.21,Camb Care Ltd,Care Establishment,2 - Commissioning - Older people Pool,Hunts O P  Team,Day and Domicillary Care Independent Sector
Cambridgeshire County Council,23-Jun-16,20948280-13541569,508.21,Camb Care Ltd,Care Establishment,2 - Commissioning - Older people Pool,Hunts O P  Team,Day and Domicillary Care Independent Sector
Cambridgeshire County Council,23-Jun-16,20948287-13541570,508.21,Camb Care Ltd,Care Establishment,2 - Commissioning - Older people Pool,Hunts O P  Team,Day and Domicillary Care Independent Sector
Cambridgeshire County Council,23-Jun-16,20953767-13541619,508.21,Camb Care Ltd,Care Establishment,2 - Commissioning - Older people Pool,Hunts O P  Team,Day and Domicillary Care Independent Sector
Cambridgeshire County Council,23-Jun-16,20953771-13541620,508.21,Camb Care Ltd,Care Establishment,2 - Commissioning - Older people Pool,Hunts O P  Team,Day and Domicillary Care Independent Sector
Cambridgeshire County Council,23-Jun-16,20953773-13541621,508.21,Camb Care Ltd,Care Establishment,2 - Commissioning - Older people Pool,Hunts O P  Team,Day and Domicillary Care Independent Sector
Cambridgeshire County Council,23-Jun-16,20953776-13541622,508.21,Camb Care Ltd,Care Establishment,2 - Commissioning - Older people Pool,Hunts O P  Team,Day and Domicillary Care Independent Sector
Cambridgeshire County Council,10-Jun-16,20750923-13474932,508.8,Bill Ibbotts Catering Equipment Services Ltd,Trade Supplier,S&C,"Catering - Property, Equipment & Maintenance",Repair of canteen equipment
Cambridgeshire County Council,23-Jun-16,20951650-13544156,508.8,Ringshill Care Home,Care Establishment,2 - Commissioning - Older people Pool,Older People - Fenland,Residential Independent Sector
Cambridgeshire County Council,23-Jun-16,20951653-13544157,508.8,Ringshill Care Home,Care Establishment,2 - Commissioning - Older people Pool,Older People - Fenland,Residential Independent Sector
Cambridgeshire County Council,23-Jun-16,20951654-13544158,508.8,Ringshill Care Home,Care Establishment,2 - Commissioning - Older people Pool,Older People - Fenland,Residential Independent Sector
Cambridgeshire County Council,23-Jun-16,20951657-13544159,508.8,Ringshill Care Home,Care Establishment,2 - Commissioning - Older people Pool,Older People - Fenland,Residential Independent Sector
Cambridgeshire County Council,23-Jun-16,20960862-13534703,508.93,Etheldred House,Care Establishment,2 - Commissioning - Older people Pool,Older People Mental Health Hunts,Nursing Independent Sector
Cambridgeshire County Council,27-Jun-16,20913330-13553912,509.34,The Recruitment Agency Limited,Trade Supplier,LRNG,Grafham Water Centre,Pay - Agency Staff
Cambridgeshire County Council,15-Jun-16,20905510-13486422,509.57,Askews And Holts Library Services Ltd,Trade Supplier,Corporate Services,Support - Stock & Distribution,Library Book Fund
Cambridgeshire County Council,23-Jun-16,20943112-13532726,509.6,Askham Village Community Ltd,Care Establishment,2 - Commissioning - Older people Pool,Older People - Fenland,Nursing Independent Sector
Cambridgeshire County Council,23-Jun-16,20944369-13543609,509.6,Ford House Care Home,Care Establishment,2 - Commissioning - Older people Pool,Hunts O P  Team,Nursing Independent Sector
Cambridgeshire County Council,23-Jun-16,20944372-13543610,509.6,Ford House Care Home,Care Establishment,2 - Commissioning - Older people Pool,Hunts O P  Team,Nursing Independent Sector
Cambridgeshire County Council,23-Jun-16,20944374-13543611,509.6,Ford House Care Home,Care Establishment,2 - Commissioning - Older people Pool,Hunts O P  Team,Nursing Independent Sector
Cambridgeshire County Council,23-Jun-16,20944378-13543612,509.6,Ford House Care Home,Care Establishment,2 - Commissioning - Older people Pool,Hunts O P  Team,Nursing Independent Sector
Cambridgeshire County Council,23-Jun-16,20944492-13543601,509.6,Ford House Care Home,Care Establishment,2 - Commissioning - Older people Pool,Hunts O P  Team,Nursing Independent Sector
Cambridgeshire County Council,23-Jun-16,20944494-13543602,509.6,Ford House Care Home,Care Establishment,2 - Commissioning - Older people Pool,Hunts O P  Team,Nursing Independent Sector
Cambridgeshire County Council,23-Jun-16,20944496-13543603,509.6,Ford House Care Home,Care Establishment,2 - Commissioning - Older people Pool,Hunts O P  Team,Nursing Independent Sector
Cambridgeshire County Council,23-Jun-16,20944501-13543604,509.6,Ford House Care Home,Care Establishment,2 - Commissioning - Older people Pool,Hunts O P  Team,Nursing Independent Sector
Cambridgeshire County Council,23-Jun-16,20945753-13535748,509.6,Abbey Healthcare (Huntingdon) Ltd,Care Establishment,2 - Commissioning - Older people Pool,Hunts O P  Team,Nursing Independent Sector
Cambridgeshire County Council,23-Jun-16,20945754-13535749,509.6,Abbey Healthcare (Huntingdon) Ltd,Care Establishment,2 - Commissioning - Older people Pool,Hunts O P  Team,Nursing Independent Sector
Cambridgeshire County Council,23-Jun-16,20945755-13535750,509.6,Abbey Healthcare (Huntingdon) Ltd,Care Establishment,2 - Commissioning - Older people Pool,Hunts O P  Team,Nursing Independent Sector
Cambridgeshire County Council,23-Jun-16,20945756-13535751,509.6,Abbey Healthcare (Huntingdon) Ltd,Care Establishment,2 - Commissioning - Older people Pool,Hunts O P  Team,Nursing Independent Sector
Cambridgeshire County Council,23-Jun-16,20946484-13532754,509.6,Askham Village Community Ltd,Care Establishment,2 - Commissioning - Older people Pool,Older People - Fenland,Nursing Independent Sector
Cambridgeshire County Council,23-Jun-16,20946486-13532755,509.6,Askham Village Community Ltd,Care Establishment,2 - Commissioning - Older people Pool,Older People - Fenland,Nursing Independent Sector
Cambridgeshire County Council,23-Jun-16,20946495-13532756,509.6,Askham Village Community Ltd,Care Establishment,2 - Commissioning - Older people Pool,Older People - Fenland,Nursing Independent Sector
Cambridgeshire County Council,23-Jun-16,20946497-13532757,509.6,Askham Village Community Ltd,Care Establishment,2 - Commissioning - Older people Pool,Older People - Fenland,Nursing Independent Sector
Cambridgeshire County Council,23-Jun-16,20946762-13543597,509.6,Ford House Care Home,Care Establishment,2 - Commissioning - Older people Pool,Hunts O P  Team,Nursing Independent Sector
Cambridgeshire County Council,23-Jun-16,20946763-13543598,509.6,Ford House Care Home,Care Establishment,2 - Commissioning - Older people Pool,Hunts O P  Team,Nursing Independent Sector
Cambridgeshire County Council,23-Jun-16,20946764-13543599,509.6,Ford House Care Home,Care Establishment,2 - Commissioning - Older people Pool,Hunts O P  Team,Nursing Independent Sector
Cambridgeshire County Council,23-Jun-16,20946765-13543600,509.6,Ford House Care Home,Care Establishment,2 - Commissioning - Older people Pool,Hunts O P  Team,Nursing Independent Sector
Cambridgeshire County Council,23-Jun-16,20946767-13535730,509.6,Abbey Healthcare (Huntingdon) Ltd,Care Establishment,2 - Commissioning - Older people Pool,Older People - Fenland,Nursing Independent Sector
Cambridgeshire County Council,23-Jun-16,20946768-13535731,509.6,Abbey Healthcare (Huntingdon) Ltd,Care Establishment,2 - Commissioning - Older people Pool,Older People - Fenland,Nursing Independent Sector
Cambridgeshire County Council,23-Jun-16,20946769-13535732,509.6,Abbey Healthcare (Huntingdon) Ltd,Care Establishment,2 - Commissioning - Older people Pool,Older People - Fenland,Nursing Independent Sector
Cambridgeshire County Council,23-Jun-16,20946771-13535733,509.6,Abbey Healthcare (Huntingdon) Ltd,Care Establishment,2 - Commissioning - Older people Pool,Older People - Fenland,Nursing Independent Sector
Cambridgeshire County Council,23-Jun-16,20948009-13543593,509.6,Ford House Care Home,Care Establishment,2 - Commissioning - Older people Pool,Hunts O P  Team,Nursing Independent Sector
Cambridgeshire County Council,23-Jun-16,20948011-13543595,509.6,Ford House Care Home,Care Establishment,2 - Commissioning - Older people Pool,Hunts O P  Team,Nursing Independent Sector
Cambridgeshire County Council,23-Jun-16,20948012-13543596,509.6,Ford House Care Home,Care Establishment,2 - Commissioning - Older people Pool,Hunts O P  Team,Nursing Independent Sector
Cambridgeshire County Council,23-Jun-16,20948692-13543588,509.6,Ford House Care Home,Care Establishment,2 - Commissioning - Older people Pool,Hunts O P  Team,Nursing Independent Sector
Cambridgeshire County Council,23-Jun-16,20948693-13543589,509.6,Ford House Care Home,Care Establishment,2 - Commissioning - Older people Pool,Hunts O P  Team,Nursing Independent Sector
Cambridgeshire County Council,23-Jun-16,20948694-13543590,509.6,Ford House Care Home,Care Establishment,2 - Commissioning - Older people Pool,Hunts O P  Team,Nursing Independent Sector
Cambridgeshire County Council,23-Jun-16,20948695-13543591,509.6,Ford House Care Home,Care Establishment,2 - Commissioning - Older people Pool,Hunts O P  Team,Nursing Independent Sector
Cambridgeshire County Council,23-Jun-16,20948852-13532730,509.6,Askham Village Community Ltd,Care Establishment,2 - Commissioning - Older people Pool,Older People Mental Health Fenland,Nursing Independent Sector
Cambridgeshire County Council,23-Jun-16,20948853-13532731,509.6,Askham Village Community Ltd,Care Establishment,2 - Commissioning - Older people Pool,Older People Mental Health Fenland,Nursing Independent Sector
Cambridgeshire County Council,23-Jun-16,20948854-13532732,509.6,Askham Village Community Ltd,Care Establishment,2 - Commissioning - Older people Pool,Older People Mental Health Fenland,Nursing Independent Sector
Cambridgeshire County Council,23-Jun-16,20948855-13532733,509.6,Askham Village Community Ltd,Care Establishment,2 - Commissioning - Older people Pool,Older People Mental Health Fenland,Nursing Independent Sector
Cambridgeshire County Council,23-Jun-16,20949032-13543587,509.6,Ford House Care Home,Care Establishment,2 - Commissioning - Older people Pool,Older People - City & South,Nursing Independent Sector
Cambridgeshire County Council,23-Jun-16,20949075-13532727,509.6,Askham Village Community Ltd,Care Establishment,2 - Commissioning - Older people Pool,Older People - Fenland,Nursing Independent Sector
Cambridgeshire County Council,23-Jun-16,20949083-13532728,509.6,Askham Village Community Ltd,Care Establishment,2 - Commissioning - Older people Pool,Older People - Fenland,Nursing Independent Sector
Cambridgeshire County Council,23-Jun-16,20949106-13532729,509.6,Askham Village Community Ltd,Care Establishment,2 - Commissioning - Older people Pool,Older People - Fenland,Nursing Independent Sector
Cambridgeshire County Council,23-Jun-16,20950147-13543617,509.6,Ford House Care Home,Care Establishment,2 - Commissioning - Older people Pool,Older People - City & South,Nursing Independent Sector
Cambridgeshire County Council,23-Jun-16,20950150-13543618,509.6,Ford House Care Home,Care Establishment,2 - Commissioning - Older people Pool,Older People - City & South,Nursing Independent Sector
Cambridgeshire County Council,23-Jun-16,20950155-13543619,509.6,Ford House Care Home,Care Establishment,2 - Commissioning - Older people Pool,Older People - City & South,Nursing Independent Sector
Cambridgeshire County Council,23-Jun-16,20950723-13543605,509.6,Ford House Care Home,Care Establishment,2 - Commissioning - Older people Pool,Hunts O P  Team,Nursing Independent Sector
Cambridgeshire County Council,23-Jun-16,20950724-13543606,509.6,Ford House Care Home,Care Establishment,2 - Commissioning - Older people Pool,Hunts O P  Team,Nursing Independent Sector
Cambridgeshire County Council,23-Jun-16,20950725-13543607,509.6,Ford House Care Home,Care Establishment,2 - Commissioning - Older people Pool,Hunts O P  Team,Nursing Independent Sector
Cambridgeshire County Council,23-Jun-16,20950726-13543608,509.6,Ford House Care Home,Care Establishment,2 - Commissioning - Older people Pool,Hunts O P  Team,Nursing Independent Sector
Cambridgeshire County Council,23-Jun-16,20952120-13535744,509.6,Abbey Healthcare (Huntingdon) Ltd,Care Establishment,2 - Commissioning - Older people Pool,Hunts O P  Team,Nursing Independent Sector
Cambridgeshire County Council,23-Jun-16,20952129-13535745,509.6,Abbey Healthcare (Huntingdon) Ltd,Care Establishment,2 - Commissioning - Older people Pool,Hunts O P  Team,Nursing Independent Sector
Cambridgeshire County Council,23-Jun-16,20952135-13535746,509.6,Abbey Healthcare (Huntingdon) Ltd,Care Establishment,2 - Commissioning - Older people Pool,Hunts O P  Team,Nursing Independent Sector
Cambridgeshire County Council,23-Jun-16,20952146-13535747,509.6,Abbey Healthcare (Huntingdon) Ltd,Care Establishment,2 - Commissioning - Older people Pool,Hunts O P  Team,Nursing Independent Sector
Cambridgeshire County Council,23-Jun-16,20954009-13532749,509.6,Askham Village Community Ltd,Care Establishment,2 - Commissioning - Older people Pool,Older People - Fenland,Nursing Independent Sector
Cambridgeshire County Council,23-Jun-16,20954057-13532740,509.6,Askham Village Community Ltd,Care Establishment,2 - Commissioning - Older people Pool,Older People - Fenland,Nursing Independent Sector
Cambridgeshire County Council,23-Jun-16,20954115-13532742,509.6,Askham Village Community Ltd,Care Establishment,2 - Commissioning - Older people Pool,Older People - Fenland,Nursing Independent Sector
Cambridgeshire County Council,23-Jun-16,20954130-13532743,509.6,Askham Village Community Ltd,Care Establishment,2 - Commissioning - Older people Pool,Older People - Fenland,Nursing Independent Sector
Cambridgeshire County Council,23-Jun-16,20956086-13532774,509.6,Askham Village Community Ltd,Care Establishment,2 - Commissioning - Older people Pool,Older People - Fenland,Nursing Independent Sector
Cambridgeshire County Council,23-Jun-16,20956087-13532775,509.6,Askham Village Community Ltd,Care Establishment,2 - Commissioning - Older people Pool,Older People - Fenland,Nursing Independent Sector
Cambridgeshire County Council,23-Jun-16,20956090-13532776,509.6,Askham Village Community Ltd,Care Establishment,2 - Commissioning - Older people Pool,Older People - Fenland,Nursing Independent Sector
Cambridgeshire County Council,23-Jun-16,20956091-13532777,509.6,Askham Village Community Ltd,Care Establishment,2 - Commissioning - Older people Pool,Older People - Fenland,Nursing Independent Sector
Cambridgeshire County Council,23-Jun-16,20956323-13532770,509.6,Askham Village Community Ltd,Care Establishment,2 - Commissioning - Older people Pool,Older People - Fenland,Nursing Independent Sector
Cambridgeshire County Council,23-Jun-16,20956325-13532771,509.6,Askham Village Community Ltd,Care Establishment,2 - Commissioning - Older people Pool,Older People - Fenland,Nursing Independent Sector
Cambridgeshire County Council,23-Jun-16,20956327-13532772,509.6,Askham Village Community Ltd,Care Establishment,2 - Commissioning - Older people Pool,Older People - Fenland,Nursing Independent Sector
Cambridgeshire County Council,23-Jun-16,20956328-13532773,509.6,Askham Village Community Ltd,Care Establishment,2 - Commissioning - Older people Pool,Older People - Fenland,Nursing Independent Sector
Cambridgeshire County Council,23-Jun-16,20957392-13532766,509.6,Askham Village Community Ltd,Care Establishment,2 - Commissioning - Older people Pool,Older People - Fenland,Nursing Independent Sector
Cambridgeshire County Council,23-Jun-16,20957394-13532767,509.6,Askham Village Community Ltd,Care Establishment,2 - Commissioning - Older people Pool,Older People - Fenland,Nursing Independent Sector
Cambridgeshire County Council,23-Jun-16,20957397-13532768,509.6,Askham Village Community Ltd,Care Establishment,2 - Commissioning - Older people Pool,Older People - Fenland,Nursing Independent Sector
Cambridgeshire County Council,23-Jun-16,20957398-13532769,509.6,Askham Village Community Ltd,Care Establishment,2 - Commissioning - Older people Pool,Older People - Fenland,Nursing Independent Sector
Cambridgeshire County Council,23-Jun-16,20960208-13532750,509.6,Askham Village Community Ltd,Care Establishment,2 - Commissioning - Older people Pool,Older People - Fenland,Nursing Independent Sector
Cambridgeshire County Council,23-Jun-16,20960219-13532751,509.6,Askham Village Community Ltd,Care Establishment,2 - Commissioning - Older people Pool,Older People - Fenland,Nursing Independent Sector
Cambridgeshire County Council,23-Jun-16,20960221-13532752,509.6,Askham Village Community Ltd,Care Establishment,2 - Commissioning - Older people Pool,Older People - Fenland,Nursing Independent Sector
Cambridgeshire County Council,23-Jun-16,20960229-13532753,509.6,Askham Village Community Ltd,Care Establishment,2 - Commissioning - Older people Pool,Older People - Fenland,Nursing Independent Sector
Cambridgeshire County Council,23-Jun-16,20960384-13532744,509.6,Askham Village Community Ltd,Care Establishment,2 - Commissioning - Older people Pool,Older People - Fenland,Nursing Independent Sector
Cambridgeshire County Council,23-Jun-16,20960387-13532745,509.6,Askham Village Community Ltd,Care Establishment,2 - Commissioning - Older people Pool,Older People - Fenland,Nursing Independent Sector
Cambridgeshire County Council,23-Jun-16,20960389-13532746,509.6,Askham Village Community Ltd,Care Establishment,2 - Commissioning - Older people Pool,Older People - Fenland,Nursing Independent Sector
Cambridgeshire County Council,23-Jun-16,20960390-13532747,509.6,Askham Village Community Ltd,Care Establishment,2 - Commissioning - Older people Pool,Older People - Fenland,Nursing Independent Sector
Cambridgeshire County Council,23-Jun-16,20961803-13543583,509.6,Ford House Care Home,Care Establishment,2 - Commissioning - Older people Pool,East Cambs - O P Team,Nursing Independent Sector
Cambridgeshire County Council,23-Jun-16,20961804-13543584,509.6,Ford House Care Home,Care Establishment,2 - Commissioning - Older people Pool,East Cambs - O P Team,Nursing Independent Sector
Cambridgeshire County Council,23-Jun-16,20961805-13543585,509.6,Ford House Care Home,Care Establishment,2 - Commissioning - Older people Pool,East Cambs - O P Team,Nursing Independent Sector
Cambridgeshire County Council,23-Jun-16,20961806-13543586,509.6,Ford House Care Home,Care Establishment,2 - Commissioning - Older people Pool,East Cambs - O P Team,Nursing Independent Sector
Cambridgeshire County Council,20-Jun-16,20881414-13505897,509.71,The Workshop Partnership Ltd,Trade Supplier,S&C,Catering - Central Libs Coffee Shop,Pay - Agency Staff
Cambridgeshire County Council,08-Jun-16,20864715-13459997,510,Redacted Personal Data,Individual,CSC,CSC Direct Payments,Direct Payments - Social Services
Cambridgeshire County Council,15-Jun-16,20905861-13485901,510,Redacted Personal Data,Individual,CSC,CSC Direct Payments,Direct Payments - Social Services
Cambridgeshire County Council,20-Jun-16,20931168-13510883,510,Redacted Personal Data,Individual,CSC,CSC Direct Payments,Direct Payments - Social Services
Cambridgeshire County Council,23-Jun-16,20948844-13527673,510,Craegmoor Supporting You In Cambridgeshire,Care Establishment,2 - Operations - Learning Disability,LDP Fenland Locality - Care,Supported Living
Cambridgeshire County Council,23-Jun-16,20948848-13527670,510,Craegmoor Supporting You In Cambridgeshire,Care Establishment,2 - Operations - Learning Disability,LDP Fenland Locality - Care,Supported Living
Cambridgeshire County Council,23-Jun-16,20948850-13527671,510,Craegmoor Supporting You In Cambridgeshire,Care Establishment,2 - Operations - Learning Disability,LDP Fenland Locality - Care,Supported Living
Cambridgeshire County Council,23-Jun-16,20948851-13527672,510,Craegmoor Supporting You In Cambridgeshire,Care Establishment,2 - Operations - Learning Disability,LDP Fenland Locality - Care,Supported Living
Cambridgeshire County Council,23-Jun-16,20952431-13534496,510,Conquest Care Homes Peterborough,Care Establishment,2 - Operations - Learning Disability,LDP Fenland Locality - Care,Supported Living
Cambridgeshire County Council,23-Jun-16,20952432-13534497,510,Conquest Care Homes Peterborough,Care Establishment,2 - Operations - Learning Disability,LDP Fenland Locality - Care,Supported Living
Cambridgeshire County Council,23-Jun-16,20952433-13534498,510,Conquest Care Homes Peterborough,Care Establishment,2 - Operations - Learning Disability,LDP Fenland Locality - Care,Supported Living
Cambridgeshire County Council,23-Jun-16,20952434-13534499,510,Conquest Care Homes Peterborough,Care Establishment,2 - Operations - Learning Disability,LDP Fenland Locality - Care,Supported Living
Cambridgeshire County Council,23-Jun-16,20953337-13532083,510,The Chestnuts Residential Home,Care Establishment,2 - Commissioning - Older people Pool,Older People - Fenland,Residential Independent Sector
Cambridgeshire County Council,23-Jun-16,20953358-13532084,510,The Chestnuts Residential Home,Care Establishment,2 - Commissioning - Older people Pool,Older People - Fenland,Residential Independent Sector
Cambridgeshire County Council,23-Jun-16,20953373-13532081,510,The Chestnuts Residential Home,Care Establishment,2 - Commissioning - Older people Pool,Older People - Fenland,Residential Independent Sector
Cambridgeshire County Council,23-Jun-16,20953381-13532082,510,The Chestnuts Residential Home,Care Establishment,2 - Commissioning - Older people Pool,Older People - Fenland,Residential Independent Sector
Cambridgeshire County Council,23-Jun-16,20958360-13527678,510,Craegmoor Supporting You In Cambridgeshire,Care Establishment,2 - Operations - Learning Disability,LDP Fenland Locality - Care,Supported Living
Cambridgeshire County Council,23-Jun-16,20958363-13527679,510,Craegmoor Supporting You In Cambridgeshire,Care Establishment,2 - Operations - Learning Disability,LDP Fenland Locality - Care,Supported Living
Cambridgeshire County Council,23-Jun-16,20958365-13527680,510,Craegmoor Supporting You In Cambridgeshire,Care Establishment,2 - Operations - Learning Disability,LDP Fenland Locality - Care,Supported Living
Cambridgeshire County Council,23-Jun-16,20958366-13527681,510,Craegmoor Supporting You In Cambridgeshire,Care Establishment,2 - Operations - Learning Disability,LDP Fenland Locality - Care,Supported Living
Cambridgeshire County Council,23-Jun-16,20961394-13527674,510,Craegmoor Supporting You In Cambridgeshire,Care Establishment,2 - Operations - Learning Disability,LDP Fenland Locality - Care,Supported Living
Cambridgeshire County Council,23-Jun-16,20961395-13527675,510,Craegmoor Supporting You In Cambridgeshire,Care Establishment,2 - Operations - Learning Disability,LDP Fenland Locality - Care,Supported Living
Cambridgeshire County Council,23-Jun-16,20961396-13527676,510,Craegmoor Supporting You In Cambridgeshire,Care Establishment,2 - Operations - Learning Disability,LDP Fenland Locality - Care,Supported Living
Cambridgeshire County Council,23-Jun-16,20961397-13527677,510,Craegmoor Supporting You In Cambridgeshire,Care Establishment,2 - Operations - Learning Disability,LDP Fenland Locality - Care,Supported Living
Cambridgeshire County Council,28-Jun-16,20973520-13562545,510,Alconbury & Brampton Surgeries,Care Establishment,PH,Stop Smoking Service & Intervention - Non Prescribed,Other Hired Contract Services
Cambridgeshire County Council,30-Jun-16,20987583-13573899,510,Redacted Personal Data,Individual,SMI's,High needs top-up - Post-16,SEN Funding
Cambridgeshire County Council,17-Jun-16,20916398-13500563,510.12,Redacted Personal Data,Individual,SMI's,Early Years - Funded 3s/4s,Care & Ed Childcare Settings
Cambridgeshire County Council,23-Jun-16,20962006-13530998,510.44,Rose Lodge,Care Establishment,2 - Commissioning - Older people Pool,Older People Mental Health Fenland,Nursing Independent Sector
Cambridgeshire County Council,23-Jun-16,20962014-13530999,510.44,Rose Lodge,Care Establishment,2 - Commissioning - Older people Pool,Older People Mental Health Fenland,Nursing Independent Sector
Cambridgeshire County Council,23-Jun-16,20962029-13530997,510.44,Rose Lodge,Care Establishment,2 - Commissioning - Older people Pool,Older People Mental Health Fenland,Nursing Independent Sector
Cambridgeshire County Council,23-Jun-16,20962949-13531040,510.44,Rose Lodge,Care Establishment,2 - Commissioning - Older people Pool,Older People Mental Health Fenland,Nursing Independent Sector
Cambridgeshire County Council,02-Jun-16,20847003-13433917,510.73,Redacted Personal Data,Individual,2 - Operations - Learning Disability,LDP City Locality - Care,SDS - Care and support Services
Cambridgeshire County Council,02-Jun-16,20847010-13433921,510.73,Redacted Personal Data,Individual,2 - Operations - Learning Disability,LDP City Locality - Care,SDS - Care and support Services
Cambridgeshire County Council,02-Jun-16,20847024-13433925,510.73,Redacted Personal Data,Individual,2 - Operations - Learning Disability,LDP City Locality - Care,SDS - Care and support Services
Cambridgeshire County Council,02-Jun-16,20847042-13433930,510.73,Redacted Personal Data,Individual,2 - Operations - Learning Disability,LDP City Locality - Care,SDS - Care and support Services
Cambridgeshire County Council,13-Jun-16,20861471-13477895,511.39,Newton Parish Council,Other Public Bodies,Local Infrastructure & Street Management,Network Management,Village Maintenance - Parishs
Cambridgeshire County Council,02-Jun-16,20843683-13432835,511.56,Redacted Personal Data,Individual,2 - Commissioning - Older people Pool,Older People - Fenland,SDS - Care and support Services
Cambridgeshire County Council,02-Jun-16,20843711-13432836,511.56,Redacted Personal Data,Individual,2 - Commissioning - Older people Pool,Older People - Fenland,SDS - Care and support Services
Cambridgeshire County Council,02-Jun-16,20843722-13432837,511.56,Redacted Personal Data,Individual,2 - Commissioning - Older people Pool,Older People - Fenland,SDS - Care and support Services
Cambridgeshire County Council,02-Jun-16,20843723-13432838,511.56,Redacted Personal Data,Individual,2 - Commissioning - Older people Pool,Older People - Fenland,SDS - Care and support Services
Cambridgeshire County Council,21-Jun-16,20903388-13511915,511.58,Richmond Fellowship,Charity,4 - Commissioning - Mental Health & Supporting People,Mental Health Vol Grants,Grants to Voluntary Bodies
Cambridgeshire County Council,28-Jun-16,20974519-13562455,511.6,Cedar House Surgery,Care Establishment,PH,SH Contraception - Prescribed,Other Hired Contract Services
Cambridgeshire County Council,01-Jun-16,20836736-13420873,511.8,Redacted Personal Data,Foster Parent,CSC,Leaving Care C & F - Asylum Seekers,Boarding Out Allowances
Cambridgeshire County Council,30-Jun-16,20992908-13570995,512,Ace Cabs,Trade Supplier,S&C,H to S Transport - Post 16,Home to School - Contract
Cambridgeshire County Council,23-Jun-16,20943083-13541969,512.12,Mihomecare Ltd (Enara Hunts),Care Establishment,2 - Commissioning - Older people Pool,Hunts O P  Team,Day and Domicillary Care Independent Sector
Cambridgeshire County Council,23-Jun-16,20949087-13541987,512.12,Mihomecare Ltd (Enara Hunts),Care Establishment,2 - Commissioning - Older people Pool,Hunts O P  Team,Day and Domicillary Care Independent Sector
Cambridgeshire County Council,23-Jun-16,20949094-13541989,512.12,Mihomecare Ltd (Enara Hunts),Care Establishment,2 - Commissioning - Older people Pool,Hunts O P  Team,Day and Domicillary Care Independent Sector
Cambridgeshire County Council,23-Jun-16,20949096-13541990,512.12,Mihomecare Ltd (Enara Hunts),Care Establishment,2 - Commissioning - Older people Pool,Hunts O P  Team,Day and Domicillary Care Independent Sector
Cambridgeshire County Council,23-Jun-16,20949393-13537934,512.33,Abbott Healthcare Ltd,Care Establishment,2 - Commissioning - Older people Pool,Hunts O P  Team,Day and Domicillary Care Independent Sector
Cambridgeshire County Council,23-Jun-16,20949394-13537935,512.33,Abbott Healthcare Ltd,Care Establishment,2 - Commissioning - Older people Pool,Hunts O P  Team,Day and Domicillary Care Independent Sector
Cambridgeshire County Council,23-Jun-16,20949395-13537925,512.33,Abbott Healthcare Ltd,Care Establishment,2 - Commissioning - Older people Pool,Hunts O P  Team,Day and Domicillary Care Independent Sector
Cambridgeshire County Council,23-Jun-16,20949396-13537926,512.33,Abbott Healthcare Ltd,Care Establishment,2 - Commissioning - Older people Pool,Hunts O P  Team,Day and Domicillary Care Independent Sector
Cambridgeshire County Council,23-Jun-16,20943283-13537552,512.6,Buchan Healthcare Ltd,Care Establishment,2 - Commissioning - Older people Pool,Older People Mental Health City & South,Residential Independent Sector
Cambridgeshire County Council,23-Jun-16,20943284-13537553,512.6,Buchan Healthcare Ltd,Care Establishment,2 - Commissioning - Older people Pool,Older People Mental Health City & South,Residential Independent Sector
Cambridgeshire County Council,23-Jun-16,20943285-13537554,512.6,Buchan Healthcare Ltd,Care Establishment,2 - Commissioning - Older people Pool,Older People Mental Health City & South,Residential Independent Sector
Cambridgeshire County Council,23-Jun-16,20943286-13537555,512.6,Buchan Healthcare Ltd,Care Establishment,2 - Commissioning - Older people Pool,Older People Mental Health City & South,Residential Independent Sector
Cambridgeshire County Council,23-Jun-16,20943730-13532712,512.6,Fitzwilliam Healthcare Ltd,Care Establishment,2 - Commissioning - Older people Pool,Older People - City & South,Residential Independent Sector
Cambridgeshire County Council,23-Jun-16,20943740-13532713,512.6,Fitzwilliam Healthcare Ltd,Care Establishment,2 - Commissioning - Older people Pool,Older People - City & South,Residential Independent Sector
Cambridgeshire County Council,23-Jun-16,20943741-13532714,512.6,Fitzwilliam Healthcare Ltd,Care Establishment,2 - Commissioning - Older people Pool,Older People - City & South,Residential Independent Sector
Cambridgeshire County Council,23-Jun-16,20943742-13532715,512.6,Fitzwilliam Healthcare Ltd,Care Establishment,2 - Commissioning - Older people Pool,Older People - City & South,Residential Independent Sector
Cambridgeshire County Council,23-Jun-16,20943743-13532716,512.6,Fitzwilliam Healthcare Ltd,Care Establishment,2 - Commissioning - Older people Pool,Older People - City & South,Residential Independent Sector
Cambridgeshire County Council,23-Jun-16,20951802-13532695,512.6,Fitzwilliam Healthcare Ltd,Care Establishment,2 - Commissioning - Older people Pool,Older People - City & South,Residential Independent Sector
Cambridgeshire County Council,23-Jun-16,20951805-13532696,512.6,Fitzwilliam Healthcare Ltd,Care Establishment,2 - Commissioning - Older people Pool,Older People - City & South,Residential Independent Sector
Cambridgeshire County Council,23-Jun-16,20951807-13532697,512.6,Fitzwilliam Healthcare Ltd,Care Establishment,2 - Commissioning - Older people Pool,Older People - City & South,Residential Independent Sector
Cambridgeshire County Council,23-Jun-16,20951808-13532698,512.6,Fitzwilliam Healthcare Ltd,Care Establishment,2 - Commissioning - Older people Pool,Older People - City & South,Residential Independent Sector
Cambridgeshire County Council,23-Jun-16,20953940-13544329,512.6,Brook Healthcare#1,Care Establishment,2 - Commissioning - Older people Pool,Older People - City & South,Residential Independent Sector
Cambridgeshire County Council,23-Jun-16,20953942-13544331,512.6,Brook Healthcare#1,Care Establishment,2 - Commissioning - Older people Pool,Older People - City & South,Residential Independent Sector
Cambridgeshire County Council,23-Jun-16,20957806-13534732,512.6,Etheldred House,Care Establishment,2 - Commissioning - Older people Pool,Older People - City & South,Residential Independent Sector
Cambridgeshire County Council,23-Jun-16,20957807-13534733,512.6,Etheldred House,Care Establishment,2 - Commissioning - Older people Pool,Older People - City & South,Residential Independent Sector
Cambridgeshire County Council,23-Jun-16,20957808-13534734,512.6,Etheldred House,Care Establishment,2 - Commissioning - Older people Pool,Older People - City & South,Residential Independent Sector
Cambridgeshire County Council,23-Jun-16,20957809-13534735,512.6,Etheldred House,Care Establishment,2 - Commissioning - Older people Pool,Older People - City & South,Residential Independent Sector
Cambridgeshire County Council,23-Jun-16,20958059-13532699,512.6,Fitzwilliam Healthcare Ltd,Care Establishment,2 - Commissioning - Older people Pool,Older People - City & South,Residential Independent Sector
Cambridgeshire County Council,23-Jun-16,20958060-13532700,512.6,Fitzwilliam Healthcare Ltd,Care Establishment,2 - Commissioning - Older people Pool,Older People - City & South,Residential Independent Sector
Cambridgeshire County Council,23-Jun-16,20958061-13532701,512.6,Fitzwilliam Healthcare Ltd,Care Establishment,2 - Commissioning - Older people Pool,Older People - City & South,Residential Independent Sector
Cambridgeshire County Council,23-Jun-16,20958064-13532702,512.6,Fitzwilliam Healthcare Ltd,Care Establishment,2 - Commissioning - Older people Pool,Older People - City & South,Residential Independent Sector
Cambridgeshire County Council,23-Jun-16,20958574-13534728,512.6,Etheldred House,Care Establishment,2 - Commissioning - Older people Pool,Older People - City & South,Residential Independent Sector
Cambridgeshire County Council,23-Jun-16,20958576-13534729,512.6,Etheldred House,Care Establishment,2 - Commissioning - Older people Pool,Older People - City & South,Residential Independent Sector
Cambridgeshire County Council,23-Jun-16,20958579-13534730,512.6,Etheldred House,Care Establishment,2 - Commissioning - Older people Pool,Older People - City & South,Residential Independent Sector
Cambridgeshire County Council,23-Jun-16,20958582-13534731,512.6,Etheldred House,Care Establishment,2 - Commissioning - Older people Pool,Older People - City & South,Residential Independent Sector
Cambridgeshire County Council,23-Jun-16,20959209-13532683,512.6,Fitzwilliam Healthcare Ltd,Care Establishment,2 - Commissioning - Older people Pool,Older People - City & South,Residential Independent Sector
Cambridgeshire County Council,23-Jun-16,20959210-13532684,512.6,Fitzwilliam Healthcare Ltd,Care Establishment,2 - Commissioning - Older people Pool,Older People - City & South,Residential Independent Sector
Cambridgeshire County Council,23-Jun-16,20959212-13532685,512.6,Fitzwilliam Healthcare Ltd,Care Establishment,2 - Commissioning - Older people Pool,Older People - City & South,Residential Independent Sector
Cambridgeshire County Council,23-Jun-16,20959213-13532686,512.6,Fitzwilliam Healthcare Ltd,Care Establishment,2 - Commissioning - Older people Pool,Older People - City & South,Residential Independent Sector
Cambridgeshire County Council,23-Jun-16,20959277-13532687,512.6,Fitzwilliam Healthcare Ltd,Care Establishment,2 - Commissioning - Older people Pool,Older People - City & South,Residential Independent Sector
Cambridgeshire County Council,23-Jun-16,20959278-13532688,512.6,Fitzwilliam Healthcare Ltd,Care Establishment,2 - Commissioning - Older people Pool,Older People - City & South,Residential Independent Sector
Cambridgeshire County Council,23-Jun-16,20959279-13532689,512.6,Fitzwilliam Healthcare Ltd,Care Establishment,2 - Commissioning - Older people Pool,Older People - City & South,Residential Independent Sector
Cambridgeshire County Council,23-Jun-16,20959280-13532690,512.6,Fitzwilliam Healthcare Ltd,Care Establishment,2 - Commissioning - Older people Pool,Older People - City & South,Residential Independent Sector
Cambridgeshire County Council,23-Jun-16,20961090-13534695,512.6,Etheldred House,Care Establishment,2 - Commissioning - Older people Pool,Older People - City & South,Residential Independent Sector
Cambridgeshire County Council,23-Jun-16,20961101-13534696,512.6,Etheldred House,Care Establishment,2 - Commissioning - Older people Pool,Older People - City & South,Residential Independent Sector
Cambridgeshire County Council,23-Jun-16,20961128-13534697,512.6,Etheldred House,Care Establishment,2 - Commissioning - Older people Pool,Older People - City & South,Residential Independent Sector
Cambridgeshire County Council,23-Jun-16,20961131-13534698,512.6,Etheldred House,Care Establishment,2 - Commissioning - Older people Pool,Older People - City & South,Residential Independent Sector
Cambridgeshire County Council,01-Jun-16,20837635-13420156,513,Peter Hakes Chartered Town Planner And Environmental Consultant,Company,Growth & Economy,Joint Strategic Planning Unit,Other Hired Contract Services
Cambridgeshire County Council,23-Jun-16,20963076-13527153,513.14,Sense For Deaf Blind People,Care Establishment,2 - Operations - Learning Disability,LDP South Cambs Locality - Care,Daycare
Cambridgeshire County Council,23-Jun-16,20963082-13527156,513.14,Sense For Deaf Blind People,Care Establishment,2 - Operations - Learning Disability,LDP South Cambs Locality - Care,Daycare
Cambridgeshire County Council,23-Jun-16,20963089-13527157,513.14,Sense For Deaf Blind People,Care Establishment,2 - Operations - Learning Disability,LDP South Cambs Locality - Care,Daycare
Cambridgeshire County Council,23-Jun-16,20963098-13527160,513.14,Sense For Deaf Blind People,Care Establishment,2 - Operations - Learning Disability,LDP South Cambs Locality - Care,Daycare
Cambridgeshire County Council,27-Jun-16,20881545-13554494,513.3,Capitol Commercial Collections Ltd,Trade Supplier,LGSS,Revenue Services,Debt Collection Services
Cambridgeshire County Council,02-Jun-16,20779680-13435847,513.46,J & P Meats Ltd T/A Days Of Buckden,Trade Supplier,LRNG,Grafham Water Centre,Provisions - General
Cambridgeshire County Council,23-Jun-16,20950201-13526055,513.57,The Old Vicarage#1,Care Establishment,2 - Commissioning - Older people Pool,Older People Mental Health Fenland,Residential Independent Sector
Cambridgeshire County Council,23-Jun-16,20950202-13526056,513.57,The Old Vicarage#1,Care Establishment,2 - Commissioning - Older people Pool,Older People Mental Health Fenland,Residential Independent Sector
Cambridgeshire County Council,23-Jun-16,20950204-13526057,513.57,The Old Vicarage#1,Care Establishment,2 - Commissioning - Older people Pool,Older People Mental Health Fenland,Residential Independent Sector
Cambridgeshire County Council,23-Jun-16,20950208-13526058,513.57,The Old Vicarage#1,Care Establishment,2 - Commissioning - Older people Pool,Older People Mental Health Fenland,Residential Independent Sector
Cambridgeshire County Council,02-Jun-16,20841015-13432597,513.8,Redacted Personal Data,Individual,3 - Operations - Countywide Services,Countywide PD Service - Care,Direct Payments - Social Services
Cambridgeshire County Council,02-Jun-16,20841016-13432598,513.8,Redacted Personal Data,Individual,3 - Operations - Countywide Services,Countywide PD Service - Care,Direct Payments - Social Services
Cambridgeshire County Council,02-Jun-16,20841017-13432599,513.8,Redacted Personal Data,Individual,3 - Operations - Countywide Services,Countywide PD Service - Care,Direct Payments - Social Services
Cambridgeshire County Council,02-Jun-16,20841018-13432600,513.8,Redacted Personal Data,Individual,3 - Operations - Countywide Services,Countywide PD Service - Care,Direct Payments - Social Services
Cambridgeshire County Council,02-Jun-16,20845537-13434201,513.8,Redacted Personal Data,Individual,3 - Operations - Countywide Services,Countywide PD Service - Care,Direct Payments - Social Services
Cambridgeshire County Council,02-Jun-16,20845538-13434202,513.8,Redacted Personal Data,Individual,3 - Operations - Countywide Services,Countywide PD Service - Care,Direct Payments - Social Services
Cambridgeshire County Council,02-Jun-16,20845539-13434203,513.8,Redacted Personal Data,Individual,3 - Operations - Countywide Services,Countywide PD Service - Care,Direct Payments - Social Services
Cambridgeshire County Council,02-Jun-16,20845540-13434204,513.8,Redacted Personal Data,Individual,3 - Operations - Countywide Services,Countywide PD Service - Care,Direct Payments - Social Services
Cambridgeshire County Council,23-Jun-16,20952213-13526192,514.44,Iceni House#1,Care Establishment,3 - Operations - Countywide Services,Countywide PD Service - Care,Nursing Independent Sector
Cambridgeshire County Council,23-Jun-16,20952214-13526193,514.44,Iceni House#1,Care Establishment,3 - Operations - Countywide Services,Countywide PD Service - Care,Nursing Independent Sector
Cambridgeshire County Council,23-Jun-16,20952215-13526194,514.44,Iceni House#1,Care Establishment,3 - Operations - Countywide Services,Countywide PD Service - Care,Nursing Independent Sector
Cambridgeshire County Council,23-Jun-16,20952216-13526195,514.44,Iceni House#1,Care Establishment,3 - Operations - Countywide Services,Countywide PD Service - Care,Nursing Independent Sector
Cambridgeshire County Council,02-Jun-16,20838846-13436507,514.56,Social Care Solutions Ltd,Care Establishment,4 - Commissioning - Mental Health & Supporting People,Hunts Mental Health Team,Day and Domicillary Care Independent Sector
Cambridgeshire County Council,15-Jun-16,20905078-13486241,514.67,Westminster Homecare Limited,Care Establishment,4 - Commissioning - Mental Health & Supporting People,Cambridge Mental Health team,Day and Domicillary Care Independent Sector
Cambridgeshire County Council,16-Jun-16,20869097-13492985,515.5,Bramley Court,Care Establishment,2 - Commissioning - Older people Pool,Older People - City & South,Residential Independent Sector
Cambridgeshire County Council,16-Jun-16,20869098-13492986,515.5,Bramley Court,Care Establishment,2 - Commissioning - Older people Pool,Older People - City & South,Residential Independent Sector
Cambridgeshire County Council,16-Jun-16,20869099-13492987,515.5,Bramley Court,Care Establishment,2 - Commissioning - Older people Pool,Older People - City & South,Residential Independent Sector
Cambridgeshire County Council,16-Jun-16,20869100-13492933,515.5,Bramley Court,Care Establishment,2 - Commissioning - Older people Pool,Older People - City & South,Residential Independent Sector
Cambridgeshire County Council,23-Jun-16,20945099-13532093,515.5,The Chestnuts Residential Home,Care Establishment,2 - Commissioning - Older people Pool,Older People - Fenland,Residential Independent Sector
Cambridgeshire County Council,23-Jun-16,20945100-13532094,515.5,The Chestnuts Residential Home,Care Establishment,2 - Commissioning - Older people Pool,Older People - Fenland,Residential Independent Sector
Cambridgeshire County Council,23-Jun-16,20945101-13532095,515.5,The Chestnuts Residential Home,Care Establishment,2 - Commissioning - Older people Pool,Older People - Fenland,Residential Independent Sector
Cambridgeshire County Council,23-Jun-16,20945102-13532096,515.5,The Chestnuts Residential Home,Care Establishment,2 - Commissioning - Older people Pool,Older People - Fenland,Residential Independent Sector
Cambridgeshire County Council,23-Jun-16,20951250-13531633,515.5,Bethany Francis House#1,Care Establishment,3 - Operations - Countywide Services,Countywide PD Service - Care,Residential Independent Sector
Cambridgeshire County Council,23-Jun-16,20951251-13531634,515.5,Bethany Francis House#1,Care Establishment,3 - Operations - Countywide Services,Countywide PD Service - Care,Residential Independent Sector
Cambridgeshire County Council,23-Jun-16,20951252-13531635,515.5,Bethany Francis House#1,Care Establishment,3 - Operations - Countywide Services,Countywide PD Service - Care,Residential Independent Sector
Cambridgeshire County Council,23-Jun-16,20951253-13531636,515.5,Bethany Francis House#1,Care Establishment,3 - Operations - Countywide Services,Countywide PD Service - Care,Residential Independent Sector
Cambridgeshire County Council,23-Jun-16,20957927-13543833,515.5,Gracefield Nursing And Residential Home,Care Establishment,2 - Commissioning - Older people Pool,Older People Mental Health Hunts,Nursing Independent Sector
Cambridgeshire County Council,23-Jun-16,20957928-13543834,515.5,Gracefield Nursing And Residential Home,Care Establishment,2 - Commissioning - Older people Pool,Older People Mental Health Hunts,Nursing Independent Sector
Cambridgeshire County Council,23-Jun-16,20957929-13543835,515.5,Gracefield Nursing And Residential Home,Care Establishment,2 - Commissioning - Older people Pool,Older People Mental Health Hunts,Nursing Independent Sector
Cambridgeshire County Council,23-Jun-16,20957930-13543836,515.5,Gracefield Nursing And Residential Home,Care Establishment,2 - Commissioning - Older people Pool,Older People Mental Health Hunts,Nursing Independent Sector
Cambridgeshire County Council,23-Jun-16,20944850-13525691,515.51,Midas Care Ltd,Care Establishment,2 - Commissioning - Older people Pool,Older People - Fenland,Day and Domicillary Care Independent Sector
Cambridgeshire County Council,23-Jun-16,20944855-13525692,515.51,Midas Care Ltd,Care Establishment,2 - Commissioning - Older people Pool,Older People - Fenland,Day and Domicillary Care Independent Sector
Cambridgeshire County Council,23-Jun-16,20946661-13525381,515.51,Midas Care Ltd,Care Establishment,3 - Operations - Countywide Services,Countywide PD Service - Care,Day and Domicillary Care Independent Sector
Cambridgeshire County Council,23-Jun-16,20946662-13525382,515.51,Midas Care Ltd,Care Establishment,3 - Operations - Countywide Services,Countywide PD Service - Care,Day and Domicillary Care Independent Sector
Cambridgeshire County Council,23-Jun-16,20946663-13525383,515.51,Midas Care Ltd,Care Establishment,3 - Operations - Countywide Services,Countywide PD Service - Care,Day and Domicillary Care Independent Sector
Cambridgeshire County Council,23-Jun-16,20946664-13525384,515.51,Midas Care Ltd,Care Establishment,3 - Operations - Countywide Services,Countywide PD Service - Care,Day and Domicillary Care Independent Sector
Cambridgeshire County Council,23-Jun-16,20946847-13525367,515.51,Midas Care Ltd,Care Establishment,2 - Commissioning - Older people Pool,East Cambs - O P Team,Day and Domicillary Care Independent Sector
Cambridgeshire County Council,23-Jun-16,20946850-13525368,515.51,Midas Care Ltd,Care Establishment,2 - Commissioning - Older people Pool,East Cambs - O P Team,Day and Domicillary Care Independent Sector
Cambridgeshire County Council,23-Jun-16,20946853-13525369,515.51,Midas Care Ltd,Care Establishment,2 - Commissioning - Older people Pool,East Cambs - O P Team,Day and Domicillary Care Independent Sector
Cambridgeshire County Council,23-Jun-16,20946854-13525370,515.51,Midas Care Ltd,Care Establishment,2 - Commissioning - Older people Pool,East Cambs - O P Team,Day and Domicillary Care Independent Sector
Cambridgeshire County Council,23-Jun-16,20950631-13525792,515.51,Midas Care Ltd,Care Establishment,3 - Operations - Countywide Services,Countywide PD Service - Care,Day and Domicillary Care Independent Sector
Cambridgeshire County Council,23-Jun-16,20950632-13525793,515.51,Midas Care Ltd,Care Establishment,3 - Operations - Countywide Services,Countywide PD Service - Care,Day and Domicillary Care Independent Sector
Cambridgeshire County Council,23-Jun-16,20950640-13525736,515.51,Midas Care Ltd,Care Establishment,3 - Operations - Countywide Services,Countywide PD Service - Care,Day and Domicillary Care Independent Sector
Cambridgeshire County Council,23-Jun-16,20950644-13525740,515.51,Midas Care Ltd,Care Establishment,3 - Operations - Countywide Services,Countywide PD Service - Care,Day and Domicillary Care Independent Sector
Cambridgeshire County Council,23-Jun-16,20950901-13525734,515.51,Midas Care Ltd,Care Establishment,2 - Commissioning - Older people Pool,Older People - Fenland,Day and Domicillary Care Independent Sector
Cambridgeshire County Council,23-Jun-16,20950902-13525735,515.51,Midas Care Ltd,Care Establishment,2 - Commissioning - Older people Pool,Older People - Fenland,Day and Domicillary Care Independent Sector
Cambridgeshire County Council,23-Jun-16,20957380-13536496,515.51,Brookfield Care,Care Establishment,2 - Commissioning - Older people Pool,Hunts O P  Team,Day and Domicillary Care Independent Sector
Cambridgeshire County Council,23-Jun-16,20957381-13536497,515.51,Brookfield Care,Care Establishment,2 - Commissioning - Older people Pool,Hunts O P  Team,Day and Domicillary Care Independent Sector
Cambridgeshire County Council,23-Jun-16,20957382-13536498,515.51,Brookfield Care,Care Establishment,2 - Commissioning - Older people Pool,Hunts O P  Team,Day and Domicillary Care Independent Sector
Cambridgeshire County Council,23-Jun-16,20957383-13536499,515.51,Brookfield Care,Care Establishment,2 - Commissioning - Older people Pool,Hunts O P  Team,Day and Domicillary Care Independent Sector
Cambridgeshire County Council,23-Jun-16,20956971-13538834,515.99,Abbott Healthcare Ltd,Care Establishment,2 - Commissioning - Older people Pool,Older People - City & South,Day and Domicillary Care Independent Sector
Cambridgeshire County Council,23-Jun-16,20956976-13538835,515.99,Abbott Healthcare Ltd,Care Establishment,2 - Commissioning - Older people Pool,Older People - City & South,Day and Domicillary Care Independent Sector
Cambridgeshire County Council,23-Jun-16,20956986-13538836,515.99,Abbott Healthcare Ltd,Care Establishment,2 - Commissioning - Older people Pool,Older People - City & South,Day and Domicillary Care Independent Sector
Cambridgeshire County Council,23-Jun-16,20956989-13538837,515.99,Abbott Healthcare Ltd,Care Establishment,2 - Commissioning - Older people Pool,Older People - City & South,Day and Domicillary Care Independent Sector
Cambridgeshire County Council,20-Jun-16,20931183-13510967,516.07,Redacted Personal Data,Individual,CSC,CSC Direct Payments,Direct Payments - Social Services
Cambridgeshire County Council,23-Jun-16,20958385-13531029,516.1,Rose Lodge,Care Establishment,2 - Commissioning - Older people Pool,Older People - Fenland,Nursing Independent Sector
Cambridgeshire County Council,23-Jun-16,20958387-13531030,516.1,Rose Lodge,Care Establishment,2 - Commissioning - Older people Pool,Older People - Fenland,Nursing Independent Sector
Cambridgeshire County Council,23-Jun-16,20958416-13531031,516.1,Rose Lodge,Care Establishment,2 - Commissioning - Older people Pool,Older People - Fenland,Nursing Independent Sector
Cambridgeshire County Council,23-Jun-16,20958422-13531032,516.1,Rose Lodge,Care Establishment,2 - Commissioning - Older people Pool,Older People - Fenland,Nursing Independent Sector
Cambridgeshire County Council,02-Jun-16,20845868-13428681,516.25,Redacted Personal Data,Individual,2 - Commissioning - Older people Pool,Older People - City & South,Direct Payments - Social Services
Cambridgeshire County Council,02-Jun-16,20845869-13428682,516.25,Redacted Personal Data,Individual,2 - Commissioning - Older people Pool,Older People - City & South,Direct Payments - Social Services
Cambridgeshire County Council,02-Jun-16,20845871-13428684,516.25,Redacted Personal Data,Individual,2 - Commissioning - Older people Pool,Older People - City & South,Direct Payments - Social Services
Cambridgeshire County Council,02-Jun-16,20845873-13428686,516.25,Redacted Personal Data,Individual,2 - Commissioning - Older people Pool,Older People - City & South,Direct Payments - Social Services
Cambridgeshire County Council,23-Jun-16,20942458-13541509,516.28,Camb Care Ltd,Care Establishment,2 - Commissioning - Older people Pool,Hunts O P  Team,Day and Domicillary Care Independent Sector
Cambridgeshire County Council,16-Jun-16,20881422-13492413,516.9,Blue Arrow Limited,Trade Supplier,S&C,Catering - Ranelagh,Pay - Agency Staff
Cambridgeshire County Council,23-Jun-16,20949890-13530963,516.9,Blue Arrow Limited,Trade Supplier,S&C,Catering - Ranelagh,Pay - Agency Staff
Cambridgeshire County Council,17-Jun-16,20867745-13500367,516.95,The Family Planning Association,Charity,Corporate Services,Health Resources Service Project,General Office Expenses & Stationery
Cambridgeshire County Council,27-Jun-16,20935451-13554484,517.23,Semi Independent House,Care Establishment,CSC,Leaving Care C & F - Asylum Seekers,Living support grants - Financial Assistance - Asylum Seekers
Cambridgeshire County Council,23-Jun-16,20951187-13540713,518.08,Woodlands Care Centre,Care Establishment,2 - Commissioning - Older people Pool,Older People Mental Health City & South,Residential Independent Sector
Cambridgeshire County Council,23-Jun-16,20951189-13540702,518.08,Woodlands Care Centre,Care Establishment,2 - Commissioning - Older people Pool,Older People Mental Health City & South,Residential Independent Sector
Cambridgeshire County Council,23-Jun-16,20951192-13540703,518.08,Woodlands Care Centre,Care Establishment,2 - Commissioning - Older people Pool,Older People Mental Health City & South,Residential Independent Sector
Cambridgeshire County Council,23-Jun-16,20951197-13540704,518.08,Woodlands Care Centre,Care Establishment,2 - Commissioning - Older people Pool,Older People Mental Health City & South,Residential Independent Sector
Cambridgeshire County Council,23-Jun-16,20956917-13532269,518.08,Cedar Court Care Ltd,Care Establishment,2 - Commissioning - Older people Pool,Hunts O P  Team,Nursing Independent Sector
Cambridgeshire County Council,23-Jun-16,20956918-13532270,518.08,Cedar Court Care Ltd,Care Establishment,2 - Commissioning - Older people Pool,Hunts O P  Team,Nursing Independent Sector
Cambridgeshire County Council,23-Jun-16,20956919-13532271,518.08,Cedar Court Care Ltd,Care Establishment,2 - Commissioning - Older people Pool,Hunts O P  Team,Nursing Independent Sector
Cambridgeshire County Council,23-Jun-16,20956920-13532272,518.08,Cedar Court Care Ltd,Care Establishment,2 - Commissioning - Older people Pool,Hunts O P  Team,Nursing Independent Sector
Cambridgeshire County Council,13-Jun-16,20755896-13478046,518.4,Bill Ibbotts Catering Equipment Services Ltd,Trade Supplier,S&C,"Catering - Property, Equipment & Maintenance",Repair of canteen equipment
Cambridgeshire County Council,30-Jun-16,20936726-13570947,518.41,A J Speechley Son & Partner,Partnership,LGSS Managed,County Farms,County Farms Maintenance unplanned
Cambridgeshire County Council,08-Jun-16,20861212-13460024,518.72,Westminster Homecare Limited,Care Establishment,4 - Commissioning - Mental Health & Supporting People,Cambridge Mental Health team,Day and Domicillary Care Independent Sector
Cambridgeshire County Council,08-Jun-16,20862095-13460015,518.72,Westminster Homecare Limited,Care Establishment,2 - Commissioning - Older people Pool,Older People Mental Health E Cambs,Day and Domicillary Care Independent Sector
Cambridgeshire County Council,08-Jun-16,20862100-13460018,518.72,Westminster Homecare Limited,Care Establishment,4 - Commissioning - Mental Health & Supporting People,Cambridge Mental Health team,Day and Domicillary Care Independent Sector
Cambridgeshire County Council,15-Jun-16,20905155-13486243,518.73,Westminster Homecare Limited,Care Establishment,4 - Commissioning - Mental Health & Supporting People,Cambridge Mental Health team,Day and Domicillary Care Independent Sector
Cambridgeshire County Council,23-Jun-16,20942754-13524916,518.92,Midas Care Ltd,Care Establishment,2 - Operations - Learning Disability,LDP E Cambs Locality - Care,Day and Domicillary Care Independent Sector
Cambridgeshire County Council,23-Jun-16,20942755-13524917,518.92,Midas Care Ltd,Care Establishment,2 - Operations - Learning Disability,LDP E Cambs Locality - Care,Day and Domicillary Care Independent Sector
Cambridgeshire County Council,23-Jun-16,20942756-13524918,518.92,Midas Care Ltd,Care Establishment,2 - Operations - Learning Disability,LDP E Cambs Locality - Care,Day and Domicillary Care Independent Sector
Cambridgeshire County Council,23-Jun-16,20942757-13524919,518.92,Midas Care Ltd,Care Establishment,2 - Operations - Learning Disability,LDP E Cambs Locality - Care,Day and Domicillary Care Independent Sector
Cambridgeshire County Council,23-Jun-16,20945805-13537336,518.94,Nas Services Ltd,Charity,2 - Operations - Learning Disability,LDP City Locality - Care,Daycare
Cambridgeshire County Council,23-Jun-16,20945806-13537337,518.94,Nas Services Ltd,Charity,2 - Operations - Learning Disability,LDP City Locality - Care,Daycare
Cambridgeshire County Council,23-Jun-16,20945808-13537338,518.94,Nas Services Ltd,Charity,2 - Operations - Learning Disability,LDP City Locality - Care,Daycare
Cambridgeshire County Council,23-Jun-16,20945810-13537339,518.94,Nas Services Ltd,Charity,2 - Operations - Learning Disability,LDP City Locality - Care,Daycare
Cambridgeshire County Council,02-Jun-16,20840708-13434653,518.97,Wentworth Croft Residential And Nursing,Care Establishment,2 - Commissioning - Older people Pool,Older People Mental Health Hunts,Nursing Independent Sector
Cambridgeshire County Council,02-Jun-16,20840709-13434654,518.97,Wentworth Croft Residential And Nursing,Care Establishment,2 - Commissioning - Older people Pool,Older People Mental Health Hunts,Nursing Independent Sector
Cambridgeshire County Council,02-Jun-16,20840710-13434655,518.97,Wentworth Croft Residential And Nursing,Care Establishment,2 - Commissioning - Older people Pool,Older People Mental Health Hunts,Nursing Independent Sector
Cambridgeshire County Council,02-Jun-16,20840711-13434656,518.97,Wentworth Croft Residential And Nursing,Care Establishment,2 - Commissioning - Older people Pool,Older People Mental Health Hunts,Nursing Independent Sector
Cambridgeshire County Council,02-Jun-16,20845609-13434629,518.97,Wentworth Croft Residential And Nursing,Care Establishment,2 - Commissioning - Older people Pool,Older People Mental Health Fenland,Nursing Independent Sector
Cambridgeshire County Council,02-Jun-16,20845610-13434630,518.97,Wentworth Croft Residential And Nursing,Care Establishment,2 - Commissioning - Older people Pool,Older People Mental Health Fenland,Nursing Independent Sector
Cambridgeshire County Council,02-Jun-16,20845611-13434631,518.97,Wentworth Croft Residential And Nursing,Care Establishment,2 - Commissioning - Older people Pool,Older People Mental Health Fenland,Nursing Independent Sector
Cambridgeshire County Council,02-Jun-16,20845612-13434632,518.97,Wentworth Croft Residential And Nursing,Care Establishment,2 - Commissioning - Older people Pool,Older People Mental Health Fenland,Nursing Independent Sector
Cambridgeshire County Council,23-Jun-16,20949194-13531682,519.02,Mihomecare Ltd (The Care Agency),Care Establishment,2 - Commissioning - Older people Pool,Older People - Fenland,Day and Domicillary Care Independent Sector
Cambridgeshire County Council,23-Jun-16,20949195-13531683,519.02,Mihomecare Ltd (The Care Agency),Care Establishment,2 - Commissioning - Older people Pool,Older People - Fenland,Day and Domicillary Care Independent Sector
Cambridgeshire County Council,23-Jun-16,20949212-13531659,519.02,Mihomecare Ltd (The Care Agency),Care Establishment,2 - Commissioning - Older people Pool,Older People - Fenland,Day and Domicillary Care Independent Sector
Cambridgeshire County Council,23-Jun-16,20949230-13531665,519.02,Mihomecare Ltd (The Care Agency),Care Establishment,2 - Commissioning - Older people Pool,Older People - Fenland,Day and Domicillary Care Independent Sector
Cambridgeshire County Council,23-Jun-16,20956576-13530816,519.02,Mihomecare Ltd (Fenland Premier Care),Care Establishment,2 - Commissioning - Older people Pool,East Cambs - O P Team,Day and Domicillary Care Independent Sector
Cambridgeshire County Council,23-Jun-16,20956578-13530817,519.02,Mihomecare Ltd (Fenland Premier Care),Care Establishment,2 - Commissioning - Older people Pool,East Cambs - O P Team,Day and Domicillary Care Independent Sector
Cambridgeshire County Council,23-Jun-16,20956579-13530818,519.02,Mihomecare Ltd (Fenland Premier Care),Care Establishment,2 - Commissioning - Older people Pool,East Cambs - O P Team,Day and Domicillary Care Independent Sector
Cambridgeshire County Council,23-Jun-16,20956580-13530819,519.02,Mihomecare Ltd (Fenland Premier Care),Care Establishment,2 - Commissioning - Older people Pool,East Cambs - O P Team,Day and Domicillary Care Independent Sector
Cambridgeshire County Council,01-Jun-16,20837233-13420191,519.76,Redacted Personal Data,Foster Parent,CSC,Operations Manager (O.M.) Children's Fie,Adoption Allowances
Cambridgeshire County Council,14-Jun-16,20887961-13482325,519.76,Redacted Personal Data,Foster Parent,CSC,Operations Manager (O.M.) Children's Fie,Adoption Allowances
Cambridgeshire County Council,28-Jun-16,20970976-13562326,519.76,Redacted Personal Data,Foster Parent,CSC,Operations Manager (O.M.) Children's Fie,Adoption Allowances
Cambridgeshire County Council,17-Jun-16,20916740-13500519,519.95,Redacted Personal Data,Individual,SMI's,Early Years - Funded 3s/4s,Care & Ed Childcare Settings
Cambridgeshire County Council,15-Jun-16,20432796-13486199,520,Fenland District Council,Other Public Bodies,LGSS Managed,Elm Family centre,Business rates
Cambridgeshire County Council,15-Jun-16,20432833-13486212,520,Fenland District Council,Other Public Bodies,LGSS Managed,Murrow Children's Centre,Business rates
Cambridgeshire County Council,23-Jun-16,20955426-13527739,520.12,Soham Lodge,Care Establishment,2 - Commissioning - Older people Pool,Older People Mental Health E Cambs,Nursing Independent Sector
Cambridgeshire County Council,23-Jun-16,20955436-13527740,520.12,Soham Lodge,Care Establishment,2 - Commissioning - Older people Pool,Older People Mental Health E Cambs,Nursing Independent Sector
Cambridgeshire County Council,23-Jun-16,20955459-13535719,520.12,Abbey Healthcare (Huntingdon) Ltd,Care Establishment,2 - Commissioning - Older people Pool,Older People Mental Health Hunts,Nursing Independent Sector
Cambridgeshire County Council,23-Jun-16,20955468-13527741,520.12,Soham Lodge,Care Establishment,2 - Commissioning - Older people Pool,Older People Mental Health E Cambs,Nursing Independent Sector
Cambridgeshire County Council,23-Jun-16,20955476-13535721,520.12,Abbey Healthcare (Huntingdon) Ltd,Care Establishment,2 - Commissioning - Older people Pool,Older People Mental Health Hunts,Nursing Independent Sector
Cambridgeshire County Council,23-Jun-16,20955496-13535712,520.12,Abbey Healthcare (Huntingdon) Ltd,Care Establishment,2 - Commissioning - Older people Pool,Older People Mental Health Hunts,Nursing Independent Sector
Cambridgeshire County Council,23-Jun-16,20955506-13527738,520.12,Soham Lodge,Care Establishment,2 - Commissioning - Older people Pool,Older People Mental Health E Cambs,Nursing Independent Sector
Cambridgeshire County Council,23-Jun-16,20955513-13535714,520.12,Abbey Healthcare (Huntingdon) Ltd,Care Establishment,2 - Commissioning - Older people Pool,Older People Mental Health Hunts,Nursing Independent Sector
Cambridgeshire County Council,23-Jun-16,20957951-13535752,520.12,Abbey Healthcare (Huntingdon) Ltd,Care Establishment,2 - Commissioning - Older people Pool,Older People Mental Health Hunts,Nursing Independent Sector
Cambridgeshire County Council,23-Jun-16,20957952-13535753,520.12,Abbey Healthcare (Huntingdon) Ltd,Care Establishment,2 - Commissioning - Older people Pool,Older People Mental Health Hunts,Nursing Independent Sector
Cambridgeshire County Council,23-Jun-16,20957953-13535754,520.12,Abbey Healthcare (Huntingdon) Ltd,Care Establishment,2 - Commissioning - Older people Pool,Older People Mental Health Hunts,Nursing Independent Sector
Cambridgeshire County Council,23-Jun-16,20957954-13535755,520.12,Abbey Healthcare (Huntingdon) Ltd,Care Establishment,2 - Commissioning - Older people Pool,Older People Mental Health Hunts,Nursing Independent Sector
Cambridgeshire County Council,27-Jun-16,20933372-13554429,520.94,Arrest A Pest (Gidding) Ltd,Trade Supplier,S&C,"Catering - Property, Equipment & Maintenance",Building cleaning
Cambridgeshire County Council,27-Jun-16,20905458-13554358,521.21,Performing Right Society Ltd T/A Prs For Music,Other Public Bodies,E&P,Children's Centre North Cambridge,Other Hired Contract Services
Cambridgeshire County Council,23-Jun-16,20943237-13529439,521.35,Hardwick Dene,Care Establishment,2 - Commissioning - Older people Pool,Hunts O P  Team,Residential Independent Sector
Cambridgeshire County Council,23-Jun-16,20943239-13529440,521.35,Hardwick Dene,Care Establishment,2 - Commissioning - Older people Pool,Hunts O P  Team,Residential Independent Sector
Cambridgeshire County Council,23-Jun-16,20943247-13529441,521.35,Hardwick Dene,Care Establishment,2 - Commissioning - Older people Pool,Hunts O P  Team,Residential Independent Sector
Cambridgeshire County Council,23-Jun-16,20943250-13529442,521.35,Hardwick Dene,Care Establishment,2 - Commissioning - Older people Pool,Hunts O P  Team,Residential Independent Sector
Cambridgeshire County Council,29-Jun-16,20973983-13567105,521.52,Panther Taxis Ltd,Trade Supplier,S&C,Home to School Transport - Special,Social Services Transport
Cambridgeshire County Council,02-Jun-16,20837782-13434736,521.64,Sense,Care Establishment,3 - Operations - Countywide Services,Sensory Services,Day and Domicillary Care Independent Sector
Cambridgeshire County Council,23-Jun-16,20956819-13537342,521.72,Nas Services Ltd,Charity,2 - Operations - Learning Disability,LDP City Locality - Care,Daycare
Cambridgeshire County Council,23-Jun-16,20956826-13537343,521.72,Nas Services Ltd,Charity,2 - Operations - Learning Disability,LDP City Locality - Care,Daycare
Cambridgeshire County Council,23-Jun-16,20956831-13537340,521.72,Nas Services Ltd,Charity,2 - Operations - Learning Disability,LDP City Locality - Care,Daycare
Cambridgeshire County Council,23-Jun-16,20956833-13537341,521.72,Nas Services Ltd,Charity,2 - Operations - Learning Disability,LDP City Locality - Care,Daycare
Cambridgeshire County Council,20-Jun-16,20881415-13506302,522.12,Image@Work,Trade Supplier,S&C,Catering - Ernulf Comm School; St Neots,Clothing / Uniform
Cambridgeshire County Council,23-Jun-16,20943202-13537033,522.5,Cambridgeshire Homecare,Care Establishment,2 - Commissioning - Older people Pool,Hunts O P  Team,Day and Domicillary Care Independent Sector
Cambridgeshire County Council,23-Jun-16,20943203-13537034,522.5,Cambridgeshire Homecare,Care Establishment,2 - Commissioning - Older people Pool,Hunts O P  Team,Day and Domicillary Care Independent Sector
Cambridgeshire County Council,23-Jun-16,20943204-13537035,522.5,Cambridgeshire Homecare,Care Establishment,2 - Commissioning - Older people Pool,Hunts O P  Team,Day and Domicillary Care Independent Sector
Cambridgeshire County Council,23-Jun-16,20943205-13537036,522.5,Cambridgeshire Homecare,Care Establishment,2 - Commissioning - Older people Pool,Hunts O P  Team,Day and Domicillary Care Independent Sector
Cambridgeshire County Council,23-Jun-16,20944452-13537246,522.5,Cambridgeshire Homecare,Care Establishment,2 - Commissioning - Older people Pool,Hunts O P  Team,Day and Domicillary Care Independent Sector
Cambridgeshire County Council,23-Jun-16,20944453-13537247,522.5,Cambridgeshire Homecare,Care Establishment,2 - Commissioning - Older people Pool,Hunts O P  Team,Day and Domicillary Care Independent Sector
Cambridgeshire County Council,23-Jun-16,20944454-13537248,522.5,Cambridgeshire Homecare,Care Establishment,2 - Commissioning - Older people Pool,Hunts O P  Team,Day and Domicillary Care Independent Sector
Cambridgeshire County Council,23-Jun-16,20944455-13537249,522.5,Cambridgeshire Homecare,Care Establishment,2 - Commissioning - Older people Pool,Hunts O P  Team,Day and Domicillary Care Independent Sector
Cambridgeshire County Council,23-Jun-16,20950233-13522684,522.5,Citc Care Ltd (Home Choice),Care Establishment,2 - Commissioning - Older people Pool,Hunts O P  Team,Day and Domicillary Care Independent Sector
Cambridgeshire County Council,23-Jun-16,20950234-13522685,522.5,Citc Care Ltd (Home Choice),Care Establishment,2 - Commissioning - Older people Pool,Hunts O P  Team,Day and Domicillary Care Independent Sector
Cambridgeshire County Council,23-Jun-16,20950235-13522686,522.5,Citc Care Ltd (Home Choice),Care Establishment,2 - Commissioning - Older people Pool,Hunts O P  Team,Day and Domicillary Care Independent Sector
Cambridgeshire County Council,23-Jun-16,20950236-13522687,522.5,Citc Care Ltd (Home Choice),Care Establishment,2 - Commissioning - Older people Pool,Hunts O P  Team,Day and Domicillary Care Independent Sector
Cambridgeshire County Council,23-Jun-16,20955545-13522342,522.5,Citc Care Ltd (Home Choice),Care Establishment,2 - Commissioning - Older people Pool,Hunts O P  Team,Day and Domicillary Care Independent Sector
Cambridgeshire County Council,23-Jun-16,20955546-13522343,522.5,Citc Care Ltd (Home Choice),Care Establishment,2 - Commissioning - Older people Pool,Hunts O P  Team,Day and Domicillary Care Independent Sector
Cambridgeshire County Council,23-Jun-16,20955553-13522346,522.5,Citc Care Ltd (Home Choice),Care Establishment,2 - Commissioning - Older people Pool,Hunts O P  Team,Day and Domicillary Care Independent Sector
Cambridgeshire County Council,23-Jun-16,20955557-13522347,522.5,Citc Care Ltd (Home Choice),Care Establishment,2 - Commissioning - Older people Pool,Hunts O P  Team,Day and Domicillary Care Independent Sector
Cambridgeshire County Council,23-Jun-16,20959989-13537146,522.5,Cambridgeshire Homecare,Care Establishment,2 - Commissioning - Older people Pool,Hunts O P  Team,Day and Domicillary Care Independent Sector
Cambridgeshire County Council,23-Jun-16,20959992-13537147,522.5,Cambridgeshire Homecare,Care Establishment,2 - Commissioning - Older people Pool,Hunts O P  Team,Day and Domicillary Care Independent Sector
Cambridgeshire County Council,23-Jun-16,20959995-13537148,522.5,Cambridgeshire Homecare,Care Establishment,2 - Commissioning - Older people Pool,Hunts O P  Team,Day and Domicillary Care Independent Sector
Cambridgeshire County Council,23-Jun-16,20959996-13537149,522.5,Cambridgeshire Homecare,Care Establishment,2 - Commissioning - Older people Pool,Hunts O P  Team,Day and Domicillary Care Independent Sector
Cambridgeshire County Council,23-Jun-16,20961093-13537057,522.5,Cambridgeshire Homecare,Care Establishment,2 - Commissioning - Older people Pool,Older People - Fenland,Day and Domicillary Care Independent Sector
Cambridgeshire County Council,23-Jun-16,20961122-13537071,522.5,Cambridgeshire Homecare,Care Establishment,2 - Commissioning - Older people Pool,Older People - Fenland,Day and Domicillary Care Independent Sector
Cambridgeshire County Council,23-Jun-16,20961126-13537073,522.5,Cambridgeshire Homecare,Care Establishment,2 - Commissioning - Older people Pool,Older People - Fenland,Day and Domicillary Care Independent Sector
Cambridgeshire County Council,23-Jun-16,20961129-13537074,522.5,Cambridgeshire Homecare,Care Establishment,2 - Commissioning - Older people Pool,Older People - Fenland,Day and Domicillary Care Independent Sector
Cambridgeshire County Council,02-Jun-16,20849207-13436535,522.6,Mns Care Plc - Mabbs Hall Care Home,Care Establishment,2 - Commissioning - Older people Pool,East Cambs - O P Team,Nursing Independent Sector
Cambridgeshire County Council,02-Jun-16,20849214-13436536,522.6,Mns Care Plc - Mabbs Hall Care Home,Care Establishment,2 - Commissioning - Older people Pool,East Cambs - O P Team,Nursing Independent Sector
Cambridgeshire County Council,02-Jun-16,20849217-13436537,522.6,Mns Care Plc - Mabbs Hall Care Home,Care Establishment,2 - Commissioning - Older people Pool,East Cambs - O P Team,Nursing Independent Sector
Cambridgeshire County Council,02-Jun-16,20850014-13436530,522.6,Mns Care Plc - Mabbs Hall Care Home,Care Establishment,2 - Commissioning - Older people Pool,East Cambs - O P Team,Nursing Independent Sector
Cambridgeshire County Council,03-Jun-16,20855577-13446887,522.72,Virgin Media Ltd,Company,Executive Director,Broadband - Super Connected cities,Capital WIP - other  -  Expenditure / Payments
Cambridgeshire County Council,14-Jun-16,20903636-13481984,523.05,Stagecoach Services Ltd,Trade Supplier,Passenger Transport,Guided Busway - Ticket Machine Cash,Creditors - Other Expenditure / Payments
Cambridgeshire County Council,23-Jun-16,20957705-13529405,523.19,Branching Out,Care Establishment,2 - Operations - Learning Disability,LDP E Cambs Special Needs,Day and Domicillary Care Independent Sector
Cambridgeshire County Council,23-Jun-16,20957708-13529406,523.19,Branching Out,Care Establishment,2 - Operations - Learning Disability,LDP E Cambs Special Needs,Day and Domicillary Care Independent Sector
Cambridgeshire County Council,23-Jun-16,20957712-13529407,523.19,Branching Out,Care Establishment,2 - Operations - Learning Disability,LDP E Cambs Special Needs,Day and Domicillary Care Independent Sector
Cambridgeshire County Council,23-Jun-16,20957722-13529412,523.19,Branching Out,Care Establishment,2 - Operations - Learning Disability,LDP E Cambs Special Needs,Day and Domicillary Care Independent Sector
Cambridgeshire County Council,02-Jun-16,20850233-13433990,523.3,Imtech Aqua Maintenance Ltd,Company,LGSS Managed,FM Caretaker Housing,Building Maintenance - Structural Maintenance - Unplanned
Cambridgeshire County Council,23-Jun-16,20948936-13539074,523.33,Primrose Healthcare,Care Establishment,2 - Commissioning - Older people Pool,East Cambs - O P Team,Respite Independent Sector
Cambridgeshire County Council,02-Jun-16,20845382-13432755,523.56,Redacted Personal Data,Individual,2 - Operations - Learning Disability,LDP E Cambs Locality - Care,SDS - Care and support Services
Cambridgeshire County Council,02-Jun-16,20845385-13432730,523.56,Redacted Personal Data,Individual,2 - Operations - Learning Disability,LDP E Cambs Locality - Care,SDS - Care and support Services
Cambridgeshire County Council,02-Jun-16,20845393-13432738,523.56,Redacted Personal Data,Individual,2 - Operations - Learning Disability,LDP E Cambs Locality - Care,SDS - Care and support Services
Cambridgeshire County Council,02-Jun-16,20845404-13432749,523.56,Redacted Personal Data,Individual,2 - Operations - Learning Disability,LDP E Cambs Locality - Care,SDS - Care and support Services
Cambridgeshire County Council,03-Jun-16,20855598-13446968,523.6,Redacted Personal Data,Parent/Guardian,S&C,Home to School Transport - Special,Home to School - Post 16
Cambridgeshire County Council,20-Jun-16,20931172-13510887,523.6,Redacted Personal Data,Individual,CSC,CSC Direct Payments,Direct Payments - Social Services
Cambridgeshire County Council,02-Jun-16,20848313-13434641,524.17,Wentworth Croft Residential And Nursing,Care Establishment,2 - Commissioning - Older people Pool,Older People - Fenland,Nursing Independent Sector
Cambridgeshire County Council,02-Jun-16,20848314-13434642,524.17,Wentworth Croft Residential And Nursing,Care Establishment,2 - Commissioning - Older people Pool,Older People - Fenland,Nursing Independent Sector
Cambridgeshire County Council,02-Jun-16,20848315-13434643,524.17,Wentworth Croft Residential And Nursing,Care Establishment,2 - Commissioning - Older people Pool,Older People - Fenland,Nursing Independent Sector
Cambridgeshire County Council,02-Jun-16,20848316-13434644,524.17,Wentworth Croft Residential And Nursing,Care Establishment,2 - Commissioning - Older people Pool,Older People - Fenland,Nursing Independent Sector
Cambridgeshire County Council,02-Jun-16,20840859-13434647,524.61,Wentworth Croft Residential And Nursing,Care Establishment,2 - Commissioning - Older people Pool,Hunts O P  Team,Nursing Independent Sector
Cambridgeshire County Council,02-Jun-16,20840863-13434648,524.61,Wentworth Croft Residential And Nursing,Care Establishment,2 - Commissioning - Older people Pool,Hunts O P  Team,Nursing Independent Sector
Cambridgeshire County Council,02-Jun-16,20840867-13434649,524.61,Wentworth Croft Residential And Nursing,Care Establishment,2 - Commissioning - Older people Pool,Hunts O P  Team,Nursing Independent Sector
Cambridgeshire County Council,02-Jun-16,20840869-13434650,524.61,Wentworth Croft Residential And Nursing,Care Establishment,2 - Commissioning - Older people Pool,Hunts O P  Team,Nursing Independent Sector
Cambridgeshire County Council,09-Jun-16,20866324-13466939,525,Redacted Personal Data,Individual,3 - Operations - Countywide Services,Countywide PD Service - Care,SDS - Indicative amount (SWIFT)
Cambridgeshire County Council,09-Jun-16,20866325-13466940,525,Redacted Personal Data,Individual,3 - Operations - Countywide Services,Countywide PD Service - Care,SDS - Indicative amount (SWIFT)
Cambridgeshire County Council,09-Jun-16,20866326-13466941,525,Redacted Personal Data,Individual,3 - Operations - Countywide Services,Countywide PD Service - Care,SDS - Indicative amount (SWIFT)
Cambridgeshire County Council,09-Jun-16,20866328-13466942,525,Redacted Personal Data,Individual,3 - Operations - Countywide Services,Countywide PD Service - Care,SDS - Indicative amount (SWIFT)
Cambridgeshire County Council,27-Jun-16,20880063-13554709,525,Child Light Ltd,Charity,S&C,Placements - Education,Independent School Placements
Cambridgeshire County Council,23-Jun-16,20940362-13522770,525,Vision For Education Ltd,Trade Supplier,E&P,Head of Participation & Services for Young People,Pay - Supply Cover - Long-term supply
Cambridgeshire County Council,23-Jun-16,20962216-13535772,525,The Elms Nursing Home,Care Establishment,2 - Commissioning - Older people Pool,Older People - Fenland,Residential Independent Sector
Cambridgeshire County Council,23-Jun-16,20962217-13535773,525,The Elms Nursing Home,Care Establishment,2 - Commissioning - Older people Pool,Older People - Fenland,Residential Independent Sector
Cambridgeshire County Council,23-Jun-16,20962228-13535774,525,The Elms Nursing Home,Care Establishment,2 - Commissioning - Older people Pool,Older People - Fenland,Residential Independent Sector
Cambridgeshire County Council,23-Jun-16,20962230-13535775,525,The Elms Nursing Home,Care Establishment,2 - Commissioning - Older people Pool,Older People - Fenland,Residential Independent Sector
Cambridgeshire County Council,08-Jun-16,20862235-13459959,525.2,Privado Social Care,Trade Supplier,6 - Commissioning - Quality & Transformation,MCA General,Other Hired Contract Services
Cambridgeshire County Council,17-Jun-16,20916516-13500853,525.2,Redacted Personal Data,Individual,SMI's,Early Years - Funded 3s/4s,Care & Ed Childcare Settings
Cambridgeshire County Council,17-Jun-16,20916614-13500357,525.2,Redacted Personal Data,Individual,SMI's,Early Years - Funded 3s/4s,Care & Ed Childcare Settings
Cambridgeshire County Council,23-Jun-16,20944958-13541103,525.81,Symonds House Nursing Home,Care Establishment,2 - Commissioning - Older people Pool,Older People - City & South,Residential Independent Sector
Cambridgeshire County Council,23-Jun-16,20945010-13541104,525.81,Symonds House Nursing Home,Care Establishment,2 - Commissioning - Older people Pool,Older People - City & South,Residential Independent Sector
Cambridgeshire County Council,23-Jun-16,20945281-13541095,525.81,Symonds House Nursing Home,Care Establishment,2 - Commissioning - Older people Pool,Older People - City & South,Residential Independent Sector
Cambridgeshire County Council,23-Jun-16,20945285-13541096,525.81,Symonds House Nursing Home,Care Establishment,2 - Commissioning - Older people Pool,Older People - City & South,Residential Independent Sector
Cambridgeshire County Council,23-Jun-16,20957477-13538728,526.01,Abbott Healthcare Ltd,Care Establishment,3 - Operations - Countywide Services,Countywide PD Service - Care,Day and Domicillary Care Independent Sector
Cambridgeshire County Council,23-Jun-16,20957481-13538730,526.01,Abbott Healthcare Ltd,Care Establishment,3 - Operations - Countywide Services,Countywide PD Service - Care,Day and Domicillary Care Independent Sector
Cambridgeshire County Council,23-Jun-16,20957486-13538732,526.01,Abbott Healthcare Ltd,Care Establishment,3 - Operations - Countywide Services,Countywide PD Service - Care,Day and Domicillary Care Independent Sector
Cambridgeshire County Council,23-Jun-16,20957492-13538735,526.01,Abbott Healthcare Ltd,Care Establishment,3 - Operations - Countywide Services,Countywide PD Service - Care,Day and Domicillary Care Independent Sector
Cambridgeshire County Council,23-Jun-16,20940455-13544368,526.4,Anglian Water Services Limited,Company,LGSS Managed,March Community Centre,Water charges
Cambridgeshire County Council,23-Jun-16,20957368-13534516,526.66,Conquest Care Homes Peterborough,Care Establishment,2 - Operations - Learning Disability,LDP Fenland Locality - Care,Supported Living
Cambridgeshire County Council,23-Jun-16,20957371-13534519,526.66,Conquest Care Homes Peterborough,Care Establishment,2 - Operations - Learning Disability,LDP Fenland Locality - Care,Supported Living
Cambridgeshire County Council,23-Jun-16,20957372-13534520,526.66,Conquest Care Homes Peterborough,Care Establishment,2 - Operations - Learning Disability,LDP Fenland Locality - Care,Supported Living
Cambridgeshire County Council,23-Jun-16,20957374-13534522,526.66,Conquest Care Homes Peterborough,Care Establishment,2 - Operations - Learning Disability,LDP Fenland Locality - Care,Supported Living
Cambridgeshire County Council,20-Jun-16,20931141-13510952,526.9,Redacted Personal Data,Individual,CSC,CSC Direct Payments,Direct Payments - Social Services
Cambridgeshire County Council,20-Jun-16,20862020-13506100,527,Privado Social Care,Trade Supplier,6 - Commissioning - Quality & Transformation,MCA General,Other Hired Contract Services
Cambridgeshire County Council,23-Jun-16,20944983-13526424,527,Fornham House Residential Home,Care Establishment,2 - Commissioning - Older people Pool,East Cambs - O P Team,Residential Independent Sector
Cambridgeshire County Council,23-Jun-16,20944992-13526425,527,Fornham House Residential Home,Care Establishment,2 - Commissioning - Older people Pool,East Cambs - O P Team,Residential Independent Sector
Cambridgeshire County Council,23-Jun-16,20944996-13526426,527,Fornham House Residential Home,Care Establishment,2 - Commissioning - Older people Pool,East Cambs - O P Team,Residential Independent Sector
Cambridgeshire County Council,23-Jun-16,20945006-13526427,527,Fornham House Residential Home,Care Establishment,2 - Commissioning - Older people Pool,East Cambs - O P Team,Residential Independent Sector
Cambridgeshire County Council,23-Jun-16,20952463-13529651,527,Kingfisher House,Care Establishment,2 - Commissioning - Older people Pool,East Cambs - O P Team,Nursing Independent Sector
Cambridgeshire County Council,23-Jun-16,20951651-13531033,527.59,Rose Lodge,Care Establishment,2 - Commissioning - Older people Pool,Older People - Fenland,Residential Independent Sector
